Workbook

Sheet Gesamtübersicht
B2: Bestands- und Bedarfserhebung Kindertageseinrichtungen und Kindertagespflege 2020/2021
D3: Bedarfsplan
J40: Stand: 01.03.2023

Sheet Planungsraum 1
C1: KiTa-Bedarfsplan | G1: Kreis Plön | H1: Planungsraum 2 | I1: Stadt Plön
E3: Abschnitt 1 | J3: Abschnitt 2
A4: Nr. | B4: Ortsteil | C4: Gruppenart | D4: Gruppengröße | G4: Öffnungszeiten/Woche | H4: Sonstige Festlegungen | I4: Kitaname | J4: Träger | K4: Förderzeitraum
D5: U3 | E5: Ü3 | F5: Hort
A6: 1 | B6: Stadt Plön | C6: Krippengruppe | D6: 10 | G6: 30 | I6: Ev.-Luth. Kindertagesstätte "An der Osterkirche" | J6: Ev.-Luth. Kirchengemeinde Plön | K6: 01.01.2021-31.12.2024
A7: 2 | B7: Stadt Plön | C7: Krippengruppe | D7: 10 | G7: 40 | I7: Ev.-Luth. Kindertagesstätte "An der Osterkirche" | J7: Ev.-Luth. Kirchengemeinde Plön | K7: 01.01.2021-31.12.2024
A8: 3 | B8: Stadt Plön | C8: Kindergartengruppe | E8: 20 | G8: 30 | I8: Ev.-Luth. Kindertagesstätte "An der Osterkirche" | J8: Ev.-Luth. Kirchengemeinde Plön | K8: 01.01.2021-31.12.2024
A9: 4 | B9: Stadt Plön | C9: Kindergartengruppe | E9: 20 | G9: 40 | I9: Ev.-Luth. Kindertagesstätte "An der Osterkirche" | J9: Ev.-Luth. Kirchengemeinde Plön | K9: 01.01.2021-31.12.2024
A10: 5 | B10: Stadt Plön | C10: Kindergartengruppe | E10: 20 | G10: 30 | I10: Ev.-Luth. Kindertagesstätte "An der Osterkirche" | J10: Ev.-Luth. Kirchengemeinde Plön | K10: 01.01.2021-31.12.2024
A11: 6 | B11: Stadt Plön | C11: Erg.- u. Rz.-Gr.: mittlere Kindergartengruppe (mit Zustimmung des Kreises bis zu einer Regel-Kindergartengruppe erweiterbar) | E11: 20 | G11: 10 | I11: Ev.-Luth. Kindertagesstätte "An der Osterkirche" | J11: Ev.-Luth. Kirchengemeinde Plön | K11: 01.01.2021-31.12.2024
A12: 7 | B12: Stadt Plön | C12: Erg.- u. Rz.-Gr.: Krippengruppe | E12: 20 | G12: 5 | I12: Ev.-Luth. Kindertagesstätte "An der Osterkirche" | J12: Ev.-Luth. Kirchengemeinde Plön | K12: 01.01.2021-31.12.2024
A13: 8 | B13: Stadt Plön | C13: Erg.- u. Rz.-Gr.:kleine Kindergartengruppe (mit Zustimmung des Kreises bis zu einer Regel-Kindergartengruppe erweiterbar) | D13: 10 | G13: 5 | I13: Ev.-Luth. Kindertagesstätte "An der Osterkirche" | J13: Ev.-Luth. Kirchengemeinde Plön | K13: 01.01.2021-31.12.2024
A14: 9 | B14: Stadt Plön | C14: Erg.- u. Rz.-Gr.:Kindergartengruppe | E14: 20 | G14: 5 | I14: Ev.-Luth. Kindertagesstätte "An der Osterkirche" | J14: Ev.-Luth. Kirchengemeinde Plön | K14: 01.01.2021-31.12.2024
A15: 10 | B15: Stadt Plön | C15: Kindergartengruppe | E15: 20 | G15: 25 | I15: Ev.-Luth. Kindertagesstätte Regenbogenhaus | J15: Ev.-Luth. Kirchengemeinde Plön | K15: 01.01.2021-31.12.2024
A16: 11 | B16: Stadt Plön | C16: Erg. u. Rz. Kindergartengruppe | E16: 20 | G16: 5 | I16: Ev.-Luth. Kindertagesstätte Regenbogenhaus | J16: Ev.-Luth. Kirchengemeinde Plön | K16: 01.01.2021-31.12.2024
A17: 12 | B17: Stadt Plön | C17: Hortgruppe (20) | F17: 20 | G17: 17.5 | I17: Ev.-Luth. Kindertagesstätte Regenbogenhaus | J17: Ev.-Luth. Kirchengemeinde Plön | K17: 01.01.2021-31.12.2024
A18: 13 | B18: Stadt Plön | C18: Krippengruppe | D18: 10 | G18: 25 | I18: Ev.-Luth. Kindertagesstätte Regenbogenhaus | J18: Ev.-Luth. Kirchengemeinde Plön | K18: 01.01.2021-31.12.2024
A19: 14 | B19: Stadt Plön | C19: Erg. u. Rz. Krippengruppe | D19: 10 | G19: 5 | I19: Ev.-Luth. Kindertagesstätte Regenbogenhaus | J19: Ev.-Luth. Kirchengemeinde Plön | K19: 01.01.2021-31.12.2024
A20: 15 | B20: Stadt Plön | C20: Kindergartengruppe | E20: 20 | G20: 25 | I20: Ev.-Luth. Kindertagesstätte Regenbogenhaus | J20: Ev.-Luth. Kirchengemeinde Plön | K20: 01.01.2021-31.12.2024
A21: 16 | B21: Stadt Plön | C21: Erg. u. Rz. Kindergartengruppe | E21: 20 | G21: 5 | I21: Ev.-Luth. Kindertagesstätte Regenbogenhaus | J21: Ev.-Luth. Kirchengemeinde Plön | K21: 01.01.2021-31.12.2024
A22: 17 | B22: Stadt Plön | C22: Erg. u. Rz. kleine Kindergartengruppe | E22: 10 | G22: 10 | I22: Ev.-Luth. Kindertagesstätte Regenbogenhaus | J22: Ev.-Luth. Kirchengemeinde Plön | K22: 01.01.2021-31.12.2024
A23: 18 | B23: Stadt Plön | C23: Erg. u. Rz. kleine altersgemischte Gruppe | D23: 3 | E23: 4 | G23: 5 | I23: Ev.-Luth. Kindertagesstätte Regenbogenhaus | J23: Ev.-Luth. Kirchengemeinde Plön | K23: 01.01.2021-31.12.2024
A24: 19 | B24: Stadt Plön | C24: altersgemischte Gruppe | D24: 5 | E24: 10 | G24: 25 | I24: Ev.-Luth. Kindertagesstätte Regenbogenhaus | J24: Ev.-Luth. Kirchengemeinde Plön | K24: 01.01.2021-31.12.2024
A25: 20 | B25: Stadt Plön | C25: Erg. u. Rz. altersgemischte Gruppe | D25: 5 | E25: 10 | G25: 15 | I25: Ev.-Luth. Kindertagesstätte Regenbogenhaus | J25: Ev.-Luth. Kirchengemeinde Plön | K25: 01.01.2021-31.12.2024
A26: 21 | B26: Stadt Plön | C26: Natur-Kindergartengruppe | E26: 16 | G26: 30 | I26: Ev.-Luth. Kindertagesstätte Regenbogenhaus | J26: Ev.-Luth. Kirchengemeinde Plön | K26: 01.01.2021-31.12.2024
A27: 22 | B27: Stadt Plön | C27: Erg. u. Rz. mittlere Kindergartengruppe (15) (mit Zustimmung des Kreises bis zu einer Regel-Kindergartengruppe erweiterbar) | E27: 15 | G27: 2.5 | I27: Freier Kindergarten Plön e.V. | J27: Freier Kindergarten Plön e.V. | K27: 01.01.2021-31.12.2024
A28: 23 | B28: Stadt Plön | C28: Erg. u. Rz. mittlere Kindergartengruppee (15) (mit Zustimmung des Kreises bis zu einer Regel-Kindergartengruppe erweiterbar) | E28: 15 | G28: 12.5 | I28: Freier Kindergarten Plön e.V. | J28: Freier Kindergarten Plön e.V. | K28: 01.01.2021-31.12.2024
A29: 24 | B29: Stadt Plön | C29: Kindergartengruppe | E29: 20 | G29: 25 | I29: Freier Kindergarten Plön e.V. | J29: Freier Kindergarten Plön e.V. | K29: 01.01.2021-31.12.2024
A30: 25 | B30: Stadt Plön | C30: Kindergartengruppe | E30: 20 | G30: 40 | I30: Freier Kindergarten Plön e.V. | J30: Freier Kindergarten Plön e.V. | K30: 01.01.2021-31.12.2024
A31: 26 | B31: Stadt Plön | C31: Kindergartengruppe | E31: 20 | G31: 35 | I31: Johanniter Kita am Trammer See | J31: Johanniter-Unfall-Hilfe e.V. (PLÖ) | K31: 01.01.2021-31.12.2024
A32: 27 | B32: Stadt Plön | C32: altersgemischte Gruppe | D32: 5 | E32: 10 | G32: 35 | I32: Johanniter Kita am Trammer See | J32: Johanniter-Unfall-Hilfe e.V. (PLÖ) | K32: 01.01.2021-31.12.2024
A33: 28 | B33: Stadt Plön | C33: Erg. u. Rz. Kindergartengruppe | E33: 20 | G33: 5 | I33: Johanniter Kita am Trammer See | J33: Johanniter-Unfall-Hilfe e.V. (PLÖ) | K33: 01.01.2021-31.12.2024
A34: 29 | B34: Stadt Plön | C34: Erg. u. Rz. Krippengruppe | D34: 10 | G34: 5 | I34: Johanniter Kita am Trammer See | J34: Johanniter-Unfall-Hilfe e.V. (PLÖ) | K34: 01.01.2021-31.12.2024
A35: 30 | B35: Stadt Plön | C35: Krippengruppe | D35: 10 | G35: 35 | I35: Johanniter Kita am Trammer See | J35: Johanniter-Unfall-Hilfe e.V. (PLÖ) | K35: 01.01.2021-31.12.2024
A36: 31 | B36: Stadt Plön | C36: Erg. u. Rz. altersgemischte Gruppe | D36: 5 | E36: 10 | G36: 7.5 | I36: Johanniter Kita am Trammer See | J36: Johanniter-Unfall-Hilfe e.V. (PLÖ) | K36: 01.01.2021-31.12.2024
A37: 32 | B37: Stadt Plön | C37: Kindergartengruppe | E37: 20 | G37: 30 | I37: Kita SeeBLÜTE | J37: Die Gemeinnützigen von Plön e.V. | K37: 01.01.2021-31.12.2024
A38: 33 | B38: Stadt Plön | C38: Erg. u. Rz. mittlere Kindergartengruppe(15) | E38: 15 | G38: 10 | I38: Kita SeeBLÜTE | J38: Die Gemeinnützigen von Plön e.V. | K38: 01.01.2021-31.12.2024
A39: 34 | B39: Stadt Plön | C39: Erg. u. Rz. kleine Krippengruppe (5) | D39: 5 | G39: 15 | I39: Kita SeeBLÜTE | J39: Die Gemeinnützigen von Plön e.V. | K39: 01.01.2021-31.12.2024
A40: 35 | B40: Stadt Plön | C40: Erg. u. Rz. altersgemischte Gruppe | D40: 5 | E40: 10 | G40: 5 | I40: Kita SeeBLÜTE | J40: Die Gemeinnützigen von Plön e.V. | K40: 01.01.2021-31.12.2024
A41: 36 | B41: Stadt Plön | C41: Erg. u. Rz. altersgemischte Gruppe | D41: 5 | E41: 10 | G41: 5 | I41: Kita SeeBLÜTE | J41: Die Gemeinnützigen von Plön e.V. | K41: 01.01.2021-31.12.2024
A42: 37 | B42: Stadt Plön | C42: altersgemischte Gruppe | D42: 5 | E42: 10 | G42: 30 | I42: Kita SeeBLÜTE | J42: Die Gemeinnützigen von Plön e.V. | K42: 01.01.2021-31.12.2024
A43: 38 | B43: Stadt Plön | C43: altersgemischte Gruppe | D43: 5 | E43: 10 | G43: 30 | I43: Kita SeeBLÜTE | J43: Die Gemeinnützigen von Plön e.V. | K43: 01.01.2021-31.12.2024
A44: 39 | B44: Stadt Plön | C44: altersgemischte Gruppe | D44: 5 | E44: 10 | G44: 30 | I44: Kreiszwerge e.V. | J44: Kreiszwerge Plön e.V. | K44: 01.01.2021-31.12.2024
A45: 40 | B45: Stadt Plön | C45: Kindergartengruppe | E45: 20 | G45: 32.5 | I45: Waldorfkindergarten Plön | J45: Verein zur Förderung der Waldorfpädagogik in Plön e.V. | K45: 01.01.2021-31.12.2024
A46: 41
A47: Plätze U3 | D47: =SUMIF(C6:C46,"Krippengruppe",D6:D46)+SUMIF(C6:C46,"altersgemischte Gruppe",D6:D46)+SUMIF(C6:C76,"kleine Krippengruppe",D6:D46) -> 65 | G47: =AVERAGE(G6:G46) -> 19.4375 | H47: (Std. Mittelwert)
A48: Plätze Ü3 | E48: =SUMIF(C6:C46, "Kindergartengruppe", E6:E46) + SUMIF(C6:C46, "altersgemischte Gruppe", E6:E46) + SUMIF(C6:C46, "Natur-Kindergartengruppe", E6:E46) + SUMIF(C6:C46, "mittlere Kindergartengruppe*", E6:E46) -> 266 | F48: =SUM(F6:F46) -> 20
A49: Plätze gesamt | D49: =SUM(D47:F48) -> 351
D50: Kindertagespflege
A51: Plätze U3 | D51: 20
A52: Plätze Ü3
A53: Plätze gesamt
E54: Plätze gesamt
A55: Plätze U3 | D55: =SUM(D47+D51) -> 85
A56: Plätze Ü3 | E56: =SUM(E48+E52) -> 266 | F56: =SUM(F48+F52) -> 20
A57: Plätze gesamt | D57: =SUM(D55:F56) -> 371

Sheet Planungsraum 2
C1: KiTa-Bedarfsplan | G1: Kreis Plön | H1: Planungsraum 2 | I1: Preetz
E3: Abschnitt 1 | J3: Abschnitt 2
A4: Nr. | B4: Ortsteil | C4: Gruppenart | D4: Gruppengröße | G4: Öffnungszeiten/Woche | H4: Sonstige Festlegungen | I4: Kitaname | J4: Träger | K4: Förderzeitraum
D5: U3 | E5: Ü3 | F5: Hort
A6: 1 | B6: Stadt Preetz | C6: Kindergartengruppe | E6: 20 | G6: 25 | I6: Ev.-Luth. Kindergarten Preetz "Ein Garten für Kinder" | J6: Ev.-Luth. Kirchengemeinde Preetz | K6: 01.01.2021-31.12.2024
A7: 2 | B7: Stadt Preetz | C7: Erg. u. Rz. Kindergartengruppe | E7: 20 | G7: 5 | I7: Ev.-Luth. Kindergarten Preetz "Ein Garten für Kinder" | J7: Ev.-Luth. Kirchengemeinde Preetz | K7: 01.01.2021-31.12.2024
A8: 3 | B8: Stadt Preetz | C8: Erg. u. Rz. mittlere Hortgruppe(15) | F8: 15 | G8: 5 | I8: Ev.-Luth. Kindergarten Preetz "Ein Garten für Kinder" | J8: Ev.-Luth. Kirchengemeinde Preetz | K8: 01.01.2021-31.12.2024
A9: 4 | B9: Stadt Preetz | C9: Erg. u. Rz. kleine Kindergartengruppe (10) | E9: 10 | G9: 5 | I9: Ev.-Luth. Kindergarten Preetz "Ein Garten für Kinder" | J9: Ev.-Luth. Kirchengemeinde Preetz | K9: 01.01.2021-31.12.2024
A10: 5 | B10: Stadt Preetz | C10: Erg. u. Rz. Kindergartengruppe | E10: 20 | G10: 7.5 | I10: Ev.-Luth. Kindergarten Preetz "Ein Garten für Kinder" | J10: Ev.-Luth. Kirchengemeinde Preetz | K10: 01.01.2021-31.12.2024
A11: 6 | B11: Stadt Preetz | C11: Erg. u. Rz. Kindergartengruppe | E11: 20 | G11: 5 | I11: Ev.-Luth. Kindergarten Preetz "Ein Garten für Kinder" | J11: Ev.-Luth. Kirchengemeinde Preetz | K11: 01.01.2021-31.12.2024
A12: 7 | B12: Stadt Preetz | C12: Erg. u. Rz. Kindergartengruppe | E12: 20 | G12: 5 | I12: Ev.-Luth. Kindergarten Preetz "Ein Garten für Kinder" | J12: Ev.-Luth. Kirchengemeinde Preetz | K12: 01.01.2021-31.12.2024
A13: 8 | B13: Stadt Preetz | C13: Erg. u. Rz. mittlere Kindergartengruppe (15) | E13: 15 | G13: 20 | I13: Ev.-Luth. Kindergarten Preetz "Ein Garten für Kinder" | J13: Ev.-Luth. Kirchengemeinde Preetz | K13: 01.01.2021-31.12.2024
A14: 9 | B14: Stadt Preetz | C14: Erg. u. Rz. Kindergartengruppe | E14: 20 | G14: 5 | I14: Ev.-Luth. Kindergarten Preetz "Ein Garten für Kinder" | J14: Ev.-Luth. Kirchengemeinde Preetz | K14: 01.01.2021-31.12.2024
A15: 10 | B15: Stadt Preetz | C15: Erg. u. Rz. mittlere Kindergartengruppe (15) | E15: 15 | G15: 20 | I15: Ev.-Luth. Kindergarten Preetz "Ein Garten für Kinder" | J15: Ev.-Luth. Kirchengemeinde Preetz | K15: 01.01.2021-31.12.2024
A16: 11 | B16: Stadt Preetz | C16: Kindergartengruppe | E16: 20 | G16: 25 | I16: Ev.-Luth. Kindergarten Preetz "Ein Garten für Kinder" | J16: Ev.-Luth. Kirchengemeinde Preetz | K16: 01.01.2021-31.12.2024
A17: 12 | B17: Stadt Preetz | C17: Hortgruppe | F17: 20 | G17: 20 | I17: Ev.-Luth. Kindergarten Preetz "Ein Garten für Kinder" | J17: Ev.-Luth. Kirchengemeinde Preetz | K17: 01.01.2021-31.12.2024
A18: 13 | B18: Stadt Preetz | C18: Kindergartengruppe | E18: 20 | G18: 25 | I18: Ev.-Luth. Kindergarten Preetz "Ein Garten für Kinder" | J18: Ev.-Luth. Kirchengemeinde Preetz | K18: 01.01.2021-31.12.2024
A19: 14 | B19: Stadt Preetz | C19: kleine Hortngruppe (10) | F19: 10 | G19: 20 | I19: Ev.-Luth. Kindergarten Preetz "Ein Garten für Kinder" | J19: Ev.-Luth. Kirchengemeinde Preetz | K19: 01.01.2021-31.12.2024
A20: 15 | B20: Stadt Preetz | C20: Kindergartengruppe | E20: 20 | G20: 25 | I20: Ev.-Luth. Kindergarten Preetz "Ein Garten für Kinder" | J20: Ev.-Luth. Kirchengemeinde Preetz | K20: 01.01.2021-31.12.2024
A21: 16 | B21: Stadt Preetz | C21: integrative Kindergartengruppe | E21: 15 | G21: 30 | I21: Integrativer Kindergarten Regenbogen | J21: Lebenshilfewerk Kreis Plön gGmbH | K21: 01.01.2021-31.12.2024
A22: 17 | B22: Stadt Preetz | C22: integrative Kindergartengruppe | E22: 15 | G22: 30 | I22: Integrativer Kindergarten Regenbogen | J22: Lebenshilfewerk Kreis Plön gGmbH | K22: 01.01.2021-31.12.2024
A23: 18 | B23: Stadt Preetz | C23: integrative Kindergartengruppe | E23: 15 | G23: 30 | I23: Integrativer Kindergarten Regenbogen | J23: Lebenshilfewerk Kreis Plön gGmbH | K23: 01.01.2021-31.12.2024
A24: 19 | B24: Stadt Preetz | C24: integrative Kindergartengruppe | E24: 15 | G24: 32.5 | I24: Integrativer Kindergarten Regenbogen | J24: Lebenshilfewerk Kreis Plön gGmbH | K24: 01.01.2021-31.12.2024
A25: 20 | B25: Stadt Preetz | C25: Kindergartengruppe | E25: 20 | G25: 30 | I25: Integrativer Kindergarten Regenbogen | J25: Lebenshilfewerk Kreis Plön gGmbH
A26: 21 | B26: Stadt Preetz | C26: Kindergartengruppe (mit Ausnahmebewilligung FK-Schlüssel 1,5) | E26: 20 | G26: 35 | I26: Kindergarten "Bunte Kiste" | J26: Stadt Preetz | K26: 01.01.2021-31.12.2024
A27: 22 | B27: Stadt Preetz | C27: Erg. u. Rz. Kindergartengruppe (mit Ausnahmebewilligung FK-Schlüssel 1,5) | E27: 20 | G27: 10 | I27: Kindergarten "Bunte Kiste" | J27: Stadt Preetz | K27: 01.01.2021-31.12.2024
A28: 23 | B28: Stadt Preetz | C28: Erg. u. Rz. Krippengruppe | D28: 10 | G28: 10 | I28: Kindergarten "Bunte Kiste" | J28: Stadt Preetz | K28: 01.01.2021-31.12.2024
A29: 24 | B29: Stadt Preetz | C29: Erg. u. Rz. kleine Krippengruppe (5) | D29: 5 | G29: 10 | I29: Kindergarten "Bunte Kiste" | J29: Stadt Preetz | K29: 01.01.2021-31.12.2024
A30: 25 | B30: Stadt Preetz | C30: Erg. u. Rz. mittlere Kindergartengruppe (15) | E30: 15 | G30: 10 | I30: Kindergarten "Bunte Kiste" | J30: Stadt Preetz | K30: 01.01.2021-31.12.2024
A31: 26 | B31: Stadt Preetz | C31: Krippengruppe | D31: 10 | G31: 35 | I31: Kindergarten "Bunte Kiste" | J31: Stadt Preetz | K31: 01.01.2021-31.12.2024
A32: 27 | B32: Stadt Preetz | C32: Krippengruppe | D32: 10 | G32: 35 | I32: Kindergarten "Bunte Kiste" | J32: Stadt Preetz | K32: 01.01.2021-31.12.2024
A33: 28 | B33: Stadt Preetz | C33: Kindergartengruppe (mit Ausnahmebewilligung FK-Schlüssel 1,5) | E33: 20 | G33: 35 | I33: Kindergarten "Bunte Kiste" | J33: Stadt Preetz | K33: 01.01.2021-31.12.2024
A34: 29 | B34: Stadt Preetz | C34: kleine Krippengruppe | D34: 5 | G34: 35 | I34: Kindergarten "Bunte Kiste" | J34: Stadt Preetz | K34: 01.10.2021-31.12.2024
A35: 30 | B35: Stadt Preetz | C35: Erg. u. Rz. Kindergartengruppe (mit Ausnahmebewilligung FK-Schlüssel 1,5) | E35: 20 | G35: 10 | I35: Kindergarten "Hufenweg" | J35: Stadt Preetz | K35: 01.01.2021-31.12.2024
A36: 31 | B36: Stadt Preetz | C36: mittlere Kindergartengruppe | E36: 15 | G36: 25 | I36: Kindergarten "Hufenweg" | J36: Stadt Preetz | K36: 01.01.2021-31.12.2024
A37: 32 | B37: Stadt Preetz | C37: Kindergartengruppe (mit Ausnahmebewilligung FK-Schlüssel 1,5) | E37: 20 | G37: 25 | I37: Kindergarten "Hufenweg" | J37: Stadt Preetz | K37: 01.01.2021-31.12.2024
A38: 33 | B38: Stadt Preetz | C38: Erg. u. Rz. mittlere Kindergartengruppe (15) | E38: 15 | G38: 10 | I38: Kindergarten "Kleine Bunte Kiste" | J38: Stadt Preetz | K38: 01.01.2021-31.12.2024
A39: 34 | B39: Stadt Preetz | C39: Kindergartengruppe (mit Ausnahmebewilligung FK-Schlüssel 1,5) | E39: 20 | G39: 25 | I39: Kindergarten "Kleine Bunte Kiste" | J39: Stadt Preetz | K39: 01.01.2021-31.12.2024
A40: 35 | B40: Stadt Preetz | C40: Kindergartengruppe (mit Ausnahmebewilligung FK-Schlüssel 1,5) | E40: 20 | G40: 25 | I40: Kindergarten "Kleine Bunte Kiste" | J40: Stadt Preetz | K40: 01.01.2021-31.12.2024
A41: 36 | B41: Stadt Preetz | C41: Erg. u. Rz. mittlere Hortgruppe (15 | F41: 15 | G41: 15 | I41: Kinderhort | J41: Stadt Preetz | K41: 01.01.2021-31.12.2024
A42: 37 | B42: Stadt Preetz | C42: mittlere Hortgruppe | F42: 15 | G42: 17.5 | I42: Kinderhort | J42: Stadt Preetz | K42: 01.01.2021-31.12.2024
A43: 38 | B43: Stadt Preetz | C43: mittlere Hortgruppe | F43: 15 | G43: 17.5 | I43: Kinderhort | J43: Stadt Preetz | K43: 01.01.2021-31.12.2024
A44: 39 | B44: Stadt Preetz | C44: Kindergartengruppe | E44: 20 | G44: 25 | I44: Kindertagesstätte "Die Rasselbande" | J44: Stadt Preetz | K44: 01.01.2021-31.12.2024
A45: 40 | B45: Stadt Preetz | C45: Erg. u. Rz. Kindergartengruppe | E45: 20 | G45: 10 | I45: Kindertagesstätte "Die Rasselbande" | J45: Stadt Preetz | K45: 01.01.2021-31.12.2024
A46: 41 | B46: Stadt Preetz | C46: Erg. u. Rz. Kindergartengruppe | E46: 20 | G46: 20 | I46: Kindertagesstätte "Die Rasselbande" | J46: Stadt Preetz | K46: 01.01.2021-31.12.2024
A47: 42 | B47: Stadt Preetz | C47: Erg. u. Rz. Kindergartengruppe | E47: 20 | G47: 20 | I47: Kindertagesstätte "Die Rasselbande" | J47: Stadt Preetz | K47: 01.01.2021-31.12.2024
A48: 43 | B48: Stadt Preetz | C48: Kindergartengruppe | E48: 20 | G48: 25 | I48: Kindertagesstätte "Die Rasselbande" | J48: Stadt Preetz | K48: 01.01.2021-31.12.2024
A49: 44 | B49: Stadt Preetz | C49: Kindergartengruppe | E49: 20 | G49: 25 | I49: Kindertagesstätte "Die Rasselbande" | J49: Stadt Preetz | K49: 01.01.2021-31.12.2024
A50: 45 | B50: Stadt Preetz | C50: Krippengruppe | D50: 10 | G50: 35 | I50: Kindertagesstätte "Die Rasselbande" | J50: Stadt Preetz | K50: 01.01.2021-31.12.2024
A51: 46 | B51: Stadt Preetz | C51: Kindergartengruppe | E51: 20 | G51: 25 | I51: Kindertagesstätte "Die Rasselbande" | J51: Stadt Preetz | K51: 01.01.2021-31.12.2024
A52: 47 | B52: Stadt Preetz | C52: Kindergartengruppe | E52: 20 | G52: 25 | I52: Kindertagesstätte "Die Rasselbande" | J52: Stadt Preetz | K52: 01.01.2021-31.12.2024
A53: 48 | B53: Stadt Preetz | C53: Erg. u. Rz. mittlere Kindergartengruppe (15) | E53: 15 | G53: 5 | I53: Kindertagesstätte "Leuchtturm" | J53: Stadt Preetz | K53: 01.01.2021-31.12.2024
A54: 49 | B54: Stadt Preetz | C54: Erg. u. Rz. mittlere Kindergartengruppe (15) | E54: 15 | G54: 5 | I54: Kindertagesstätte "Leuchtturm" | J54: Stadt Preetz | K54: 01.01.2021-31.12.2024
A55: 50 | B55: Stadt Preetz | C55: altersgemischte Gruppe | D55: 5 | E55: 10 | G55: 35 | I55: Kindertagesstätte "Leuchtturm" | J55: Stadt Preetz | K55: 01.01.2021-31.12.2024
A56: 51 | B56: Stadt Preetz | C56: Kindergartengruppe (mit Ausnahmebewilligung FK-Schlüssel 1,5) | E56: 20 | G56: 35 | I56: Kindertagesstätte "Leuchtturm" | J56: Stadt Preetz | K56: 01.01.2021-31.12.2024
A57: 52 | B57: Stadt Preetz | C57: Krippengruppe | D57: 10 | G57: 35 | I57: Kindertagesstätte "Leuchtturm" | J57: Stadt Preetz | K57: 01.01.2021-31.12.2024
A58: 53 | B58: Stadt Preetz | C58: Kindergartengruppe | E58: 20 | G58: 35 | I58: Kindertagesstätte "Leuchtturm" | J58: Stadt Preetz | K58: 01.07.2021-31.12.2024
A59: 54 | B59: Stadt Preetz | C59: Kindergartengruppe (mit Ausnahmebewilligung FK-Schlüssel 1,5) | E59: 20 | G59: 35 | I59: Kindertagesstätte "Leuchtturm" | J59: Stadt Preetz | K59: 01.01.2021-31.12.2024
A60: 55 | B60: Stadt Preetz | C60: mittlere Hortgruppe (15) | F60: 15 | G60: 18 | I60: Kita Spielraum | J60: gogenio gGmbH | K60: 01.01.2021-31.12.2024
A61: 56 | B61: Stadt Preetz | C61: Krippengruppe | D61: 10 | G61: 25 | I61: Kita Spielraum | J61: gogenio gGmbH | K61: 01.01.2021-31.12.2024
A62: 57 | B62: Stadt Preetz | C62: Erg. u. Rz. Kindergartengruppe | E62: 20 | G62: 12.5 | I62: Kita Spielraum | J62: gogenio gGmbH | K62: 01.01.2021-31.12.2024
A63: 58 | B63: Stadt Preetz | C63: Erg. u. Rz. kleine Krippengruppe | E63: 10 | G63: 8.5 | I63: Kita Spielraum | J63: gogenio gGmbH | K63: 01.01.2021-31.12.2024
A64: 59 | B64: Stadt Preetz | C64: Kindergartengruppe | E64: 20 | G64: 37.5 | I64: Kita Spielraum | J64: gogenio gGmbH | K64: 01.01.2021-31.12.2024
A65: 60 | B65: Stadt Preetz | C65: Kindergartengruppe | E65: 20 | G65: 30 | I65: Kindergarten der freien Schule Leben und Lernen | J65: Freie Schule Leben und Lernen e.V. | K65: 01.01.2021-31.12.2024
A66: 61 | B66: Stadt Preetz | C66: Natur-Kindergartengruppe | E66: 16 | G66: 24 | I66: Naturkindergarten "Die Wühlmäuse" e.V. | J66: "Die Wühlmäuse" e.V. | K66: 01.01.2021-31.12.2024
A67: 62 | B67: Stadt Preetz | C67: Natur-Kindergartengruppe | E67: 16 | G67: 24 | I67: Naturkindergarten "Die Wühlmäuse" e.V. | J67: "Die Wühlmäuse" e.V. | K67: 01.01.2021-31.12.2024
A68: 63 | B68: Stadt Preetz | C68: Natur-Kindergartengruppe | E68: 16 | G68: 24 | I68: Naturkindergarten "Die Wühlmäuse" e.V. | J68: "Die Wühlmäuse" e.V. | K68: 01.01.2021-31.12.2024
B69: Stadt Preetz | C69: Natur-Kindergartengruppe | E69: 16 | G69: 24 | I69: Naturkindergarten "Die Wühlmäuse" e.V. | J69: "Die Wühlmäuse" e.V. | K69: 01.01.2021-31.12.2024
B70: Stadt Preetz | C70: Erg. u. Rz. Natur-Kindergartengruppe | E70: 16 | G70: 7.5 | I70: Naturkindergarten "Die Wühlmäuse" e.V. | J70: "Die Wühlmäuse" e.V. | K70: 01.01.2021-31.12.2024
B71: Stadt Preetz | C71: Erg. u. Rz. Natur-Kindergartengruppe | E71: 16 | G71: 7.5 | I71: Naturkindergarten "Die Wühlmäuse" e.V. | J71: "Die Wühlmäuse" e.V. | K71: 01.01.2021-31.12.2024
A77: Plätze U3 | D77: =SUMIF(C6:C76,"Krippengruppe",D6:D76)+SUMIF(C6:C76,"altersgemischte Gruppe",D6:D76)+SUMIF(C6:C76,"kleine *",D6:D76) -> 60
A78: Plätze Ü3 | E78: =SUMIF(C6:C76, "Kindergartengruppe*", E6:E76) + SUMIF(C6:C76, "altersgemischte Gruppe", E6:E76) + SUMIF(C6:C76, "Natur-Kindergartengruppe", E6:E76) + SUMIF(C6:C76, "mittlere Kindergartengruppe*", E6:E76) + SUMIF(C6:C76, "integrative Kindergartengruppe", E6:E76) + SUMIF(C6:C76, "kleine Kinderg*", E6:E76) -> 549 | F78: =SUM(F6:F76) -> 105
A79: Plätze gesamt | F79: =SUM(D77:F78) -> 714
E80: Kindertagespflege
A81: Plätze U3 | D81: 120
A82: Plätze Ü3
A83: Plätze gesamt | F83: =SUM(D81:F82) -> 120
E84: Plätze gesamt
A85: Plätze U3 | D85: =SUM(D77+D81) -> 180
A86: Plätze Ü3 | E86: =SUM(E78+E82) -> 549 | F86: =SUM(F78+F82) -> 105
A87: Plätze gesamt | F87: =SUM(D85:F86) -> 834

Sheet Planungsraum 3
C1: KiTa-Bedarfsplan | G1: Kreis Plön | H1: Planungsraum 3 | I1: Stadt Schwentinental
E3: Abschnitt 1 | J3: Abschnitt 2
A4: Nr. | B4: Ortsteil | C4: Gruppenart | D4: Gruppengröße | G4: Öffnungszeiten/Woche | H4: Sonstige Festlegungen | I4: Kitaname | J4: Träger | K4: Förderzeitraum
D5: U3 | E5: Ü3 | F5: Hort
A6: 1 | B6: Stadt Schwentinental | C6: Kindergartengruppe | E6: 20 | G6: 30 | I6: DRK Kinderhaus Schwentinental | J6: DRK Kreisverband Ostholstein | K6: 01.01.2021-31.12.2024
A7: 2 | B7: Stadt Schwentinental | C7: Erg. u. Rz. Krippengruppe | D7: 10 | G7: 5 | I7: DRK Kinderhaus Schwentinental | J7: DRK Kreisverband Ostholstein | K7: 01.01.2021-31.12.2024
A8: 3 | B8: Stadt Schwentinental | C8: Erg. u. Rz. Kindergartengruppe | E8: 20 | G8: 6.5 | I8: DRK Kinderhaus Schwentinental | J8: DRK Kreisverband Ostholstein | K8: 01.01.2021-31.12.2024
A9: 4 | B9: Stadt Schwentinental | C9: Erg. u. Rz. kleine Kindergartengruppe (10) | E9: 10 | G9: 2.5 | I9: DRK Kinderhaus Schwentinental | J9: DRK Kreisverband Ostholstein | K9: 01.01.2021-31.12.2024
A10: 5 | B10: Stadt Schwentinental | C10: Erg. u. Rz. Krippengruppe | D10: 10 | G10: 6.5 | I10: DRK Kinderhaus Schwentinental | J10: DRK Kreisverband Ostholstein | K10: 01.01.2021-31.12.2024
A11: 6 | B11: Stadt Schwentinental | C11: Erg. u. Rz. mittlere Kindergartengruppe (15) | E11: 15 | G11: 5 | I11: DRK Kinderhaus Schwentinental | J11: DRK Kreisverband Ostholstein | K11: 01.01.2021-31.12.2024
A12: 7 | B12: Stadt Schwentinental | C12: Erg. u. Rz. kleine Kindergartengruppe (10) | E12: 10 | G12: 5 | I12: DRK Kinderhaus Schwentinental | J12: DRK Kreisverband Ostholstein | K12: 01.01.2021-31.12.2024
A13: 8 | B13: Stadt Schwentinental | C13: Erg. u. Rz. kleine Krippengruppe (5) | D13: 5 | G13: 10 | I13: DRK Kinderhaus Schwentinental | J13: DRK Kreisverband Ostholstein | K13: 01.01.2021-31.12.2024
A14: 9 | B14: Stadt Schwentinental | C14: Erg. u. Rz. Kindergartengruppe | E14: 20 | G14: 10 | I14: DRK Kinderhaus Schwentinental | J14: DRK Kreisverband Ostholstein | K14: 01.01.2021-31.12.2024
A15: 10 | B15: Stadt Schwentinental | C15: Erg. u. Rz. kleine Kindergartengruppe (10) | E15: 10 | G15: 10 | I15: DRK Kinderhaus Schwentinental | J15: DRK Kreisverband Ostholstein | K15: 01.01.2021-31.12.2024
A16: 11 | B16: Stadt Schwentinental | C16: Kindergartengruppe | E16: 20 | G16: 30 | I16: DRK Kinderhaus Schwentinental | J16: DRK Kreisverband Ostholstein | K16: 01.01.2021-31.12.2024
A17: 12 | B17: Stadt Schwentinental | C17: Krippengruppe | D17: 10 | G17: 30 | I17: DRK Kinderhaus Schwentinental | J17: DRK Kreisverband Ostholstein | K17: 01.01.2021-31.12.2024
A18: 13 | B18: Stadt Schwentinental | C18: Krippengruppe | D18: 10 | G18: 30 | I18: DRK Kinderhaus Schwentinental | J18: DRK Kreisverband Ostholstein | K18: 01.01.2021-31.12.2024
A19: 14 | B19: Stadt Schwentinental | C19: Krippengruppe | D19: 10 | G19: 30 | I19: DRK Kinderhaus Schwentinental | J19: DRK Kreisverband Ostholstein | K19: 01.01.2021-31.12.2024
A20: 15 | B20: Stadt Schwentinental | C20: Kindergartengruppe | E20: 20 | G20: 30 | I20: DRK Kinderhaus Schwentinental | J20: DRK Kreisverband Ostholstein | K20: 01.01.2021-31.12.2024
A21: 16 | B21: Stadt Schwentinental | C21: Kindergartengruppe | E21: 20 | G21: 30 | I21: DRK Kinderhaus Schwentinental | J21: DRK Kreisverband Ostholstein | K21: 01.01.2021-31.12.2024
A22: 17 | B22: Stadt Schwentinental | C22: Erg. u. Rz. kleine Kindergartengruppe (10) | E22: 10 | G22: 10 | I22: DRK Kita "Pippi-Lotta" | J22: DRK OV Klausdorf e.V. | K22: 01.01.2021-31.12.2024
A23: 18 | B23: Stadt Schwentinental | C23: Erg. u. Rz. mittlere Kindergartengruppe | E23: 15 | G23: 15 | I23: DRK Kita "Pippi-Lotta" | J23: DRK OV Klausdorf e.V. | K23: 01.01.2021-31.12.2024
A24: 19 | B24: Stadt Schwentinental | C24: Kindergartengruppe | E24: 20 | G24: 35 | I24: DRK Kita "Pippi-Lotta" | J24: DRK OV Klausdorf e.V. | K24: 01.01.2021-31.12.2024
A25: 20 | B25: Stadt Schwentinental | C25: Kindergartengruppe | E25: 20 | G25: 30 | I25: DRK Kita "Pippi-Lotta" | J25: DRK OV Klausdorf e.V. | K25: 01.01.2021-31.12.2024
A26: 21 | B26: Stadt Schwentinental | C26: Natur-Kindergartengruppe | E26: 16 | G26: 45 | I26: DRK Kita "Pippi-Lotta" | J26: DRK OV Klausdorf e.V. | K26: 01.01.2021-31.12.2024
A27: 22 | B27: Stadt Schwentinental | C27: Kindergartengruppe | E27: 20 | G27: 35 | I27: DRK Kita "Schulstraße" | J27: DRK OV Klausdorf e.V. | K27: 01.01.2021-31.12.2024
A28: 23 | B28: Stadt Schwentinental | C28: Erg. u. Rz. Krippengruppe | D28: 10 | G28: 10 | I28: DRK Kita "Schulstraße" | J28: DRK OV Klausdorf e.V. | K28: 01.01.2021-31.12.2024
A29: 24 | B29: Stadt Schwentinental | C29: Erg. u. Rz mittlere Kindergartengruppe | E29: 15 | G29: 10 | I29: DRK Kita "Schulstraße" | J29: DRK OV Klausdorf e.V. | K29: 01.01.2021-31.12.2024
A30: 25 | B30: Stadt Schwentinental | C30: Erg. u. Rz. Kindergartengruppe | E30: 20 | G30: 10 | I30: DRK Kita "Schulstraße" | J30: DRK OV Klausdorf e.V. | K30: 01.01.2021-31.12.2024
A31: 26 | B31: Stadt Schwentinental | C31: Kindergartengruppe | E31: 16 | G31: 35 | I31: DRK Kita "Schulstraße" | J31: DRK OV Klausdorf e.V. | K31: 01.01.2021-31.12.2024
A32: 27 | B32: Stadt Schwentinental | C32: Krippengruppe | E32: 10 | G32: 35 | I32: DRK Kita "Schulstraße" | J32: DRK OV Klausdorf e.V. | K32: 01.01.2021-31.12.2024
A33: 28 | B33: Stadt Schwentinental | C33: Kindergartengruppe | E33: 20 | G33: 35 | I33: DRK Kita "Schulstraße" | J33: DRK OV Klausdorf e.V. | K33: 01.01.2021-31.12.2024
A34: 29 | B34: Stadt Schwentinental | C34: altersgemischte Gruppe | D34: 5 | E34: 10 | G34: 35 | I34: DRK Kita "Schulstraße" | J34: DRK OV Klausdorf e.V. | K34: 01.01.2021-31.12.2024
A35: 30 | B35: Stadt Schwentinental | C35: Natur-Kindergartengruppe | E35: 16 | G35: 30 | I35: DRK Kita Dorfstraße Schwentinental | J35: DRK Kreisverband Ostholstein | K35: 01.01.2021-31.12.2024
A36: 31 | B36: Stadt Schwentinental | C36: Erg. u. Rz. kleine Kindergartengruppe (10) | E36: 10 | G36: 10 | I36: DRK Kita Dorfstraße Schwentinental | J36: DRK Kreisverband Ostholstein | K36: 01.01.2021-31.12.2024
A37: 32 | B37: Stadt Schwentinental | C37: Erg. u. Rz. Kindergartengruppe | E37: 20 | G37: 5 | I37: DRK Kita Dorfstraße Schwentinental | J37: DRK Kreisverband Ostholstein | K37: 01.01.2021-31.12.2024
A38: 33 | B38: Stadt Schwentinental | C38: Erg. u. Rz. Krippengruppe | D38: 10 | G38: 6.5 | I38: DRK Kita Dorfstraße Schwentinental | J38: DRK Kreisverband Ostholstein | K38: 01.01.2021-31.12.2024
A39: 34 | B39: Stadt Schwentinental | C39: Erg. u. Rz. Kindergartengruppe | E39: 20 | G39: 6.5 | I39: DRK Kita Dorfstraße Schwentinental | J39: DRK Kreisverband Ostholstein | K39: 01.01.2021-31.12.2024
A40: 35 | B40: Stadt Schwentinental | C40: Erg. u. Rz. Kindergartengruppe | E40: 20 | G40: 5 | I40: DRK Kita Dorfstraße Schwentinental | J40: DRK Kreisverband Ostholstein | K40: 01.01.2021-31.12.2024
A41: 36 | B41: Stadt Schwentinental | C41: Erg. u. Rz. Krippengruppe | D41: 10 | G41: 5 | I41: DRK Kita Dorfstraße Schwentinental | J41: DRK Kreisverband Ostholstein | K41: 01.01.2021-31.12.2024
A42: 37 | B42: Stadt Schwentinental | C42: Erg. u. Rz. Krippengruppe | D42: 5 | G42: 5 | I42: DRK Kita Dorfstraße Schwentinental | J42: DRK Kreisverband Ostholstein | K42: 01.01.2021-31.12.2024
A43: 38 | B43: Stadt Schwentinental | C43: Erg. u. Rz. Kindergartengruppe | E43: 20 | G43: 10 | I43: DRK Kita Dorfstraße Schwentinental | J43: DRK Kreisverband Ostholstein | K43: 01.01.2021-31.12.2024
A44: 39 | B44: Stadt Schwentinental | C44: Kindergartengruppe | E44: 20 | G44: 30 | I44: DRK Kita Dorfstraße Schwentinental | J44: DRK Kreisverband Ostholstein | K44: 01.01.2021-31.12.2024
A45: 40 | B45: Stadt Schwentinental | C45: altersgemischte Gruppe | D45: 5 | E45: 10 | G45: 30 | I45: DRK Kita Dorfstraße Schwentinental | J45: DRK Kreisverband Ostholstein | K45: 01.01.2021-31.12.2024
A46: 41 | B46: Stadt Schwentinental | C46: Krippengruppe | D46: 10 | G46: 30 | I46: DRK Kita Dorfstraße Schwentinental | J46: DRK Kreisverband Ostholstein | K46: 01.01.2021-31.12.2024
A47: 42 | B47: Stadt Schwentinental | C47: Kindergartengruppe | E47: 20 | G47: 30 | I47: DRK Kita Dorfstraße Schwentinental | J47: DRK Kreisverband Ostholstein | K47: 01.01.2021-31.12.2024
A48: 43 | B48: Stadt Schwentinental | C48: Kindergartengruppe | E48: 20 | G48: 30 | I48: DRK Kita Dorfstraße Schwentinental | J48: DRK Kreisverband Ostholstein | K48: 01.01.2021-31.12.2024
A49: 44 | B49: Stadt Schwentinental | C49: Kindergartengruppe | E49: 20 | G49: 30 | I49: DRK Kita Pavillon Schwentinental | J49: DRK Kreisverband Ostholstein | K49: 01.01.2021-31.12.2024
A50: 45 | B50: Stadt Schwentinental | C50: Erg. u. Rz. mittlere Kindergartengruppe (15) | E50: 15 | G50: 6.5 | I50: DRK Kita Pavillon Schwentinental | J50: DRK Kreisverband Ostholstein | K50: 01.01.2021-31.12.2024
A51: 46 | B51: Stadt Schwentinental | C51: Erg. u. Rz. kleine Kindergartengruppe (10) | E51: 10 | G51: 6.5 | I51: DRK Kita Pavillon Schwentinental | J51: DRK Kreisverband Ostholstein | K51: 01.01.2021-31.12.2024
A52: 47 | B52: Stadt Schwentinental | C52: Erg. u. Rz. Krippengruppe | D52: 10 | G52: 5 | I52: DRK Kita Pavillon Schwentinental | J52: DRK Kreisverband Ostholstein | K52: 01.01.2021-31.12.2024
A53: 48 | B53: Stadt Schwentinental | C53: Erg. u. Rz. Kleine Krippengruppe | D53: 5 | G53: 10 | I53: DRK Kita Pavillon Schwentinental | J53: DRK Kreisverband Ostholstein | K53: 01.01.2021-31.12.2024
A54: 49 | B54: Stadt Schwentinental | C54: Erg. u. Rz. Kindergartengruppe (15) | E54: 15 | G54: 10 | I54: DRK Kita Pavillon Schwentinental | J54: DRK Kreisverband Ostholstein | K54: 01.01.2021-31.12.2024
A55: 50 | B55: Stadt Schwentinental | C55: Erg. u. Rz. Kindergartengruppe (15) | E55: 15 | G55: 10 | I55: DRK Kita Pavillon Schwentinental | J55: DRK Kreisverband Ostholstein | K55: 01.01.2021-31.12.2024
A56: 51 | B56: Stadt Schwentinental | C56: Erg. u. Rz. Krippengruppe | D56: 10 | G56: 10 | I56: DRK Kita Pavillon Schwentinental | J56: DRK Kreisverband Ostholstein | K56: 01.01.2021-31.12.2024
A57: 52 | B57: Stadt Schwentinental | C57: Krippengruppe | D57: 10 | G57: 30 | I57: DRK Kita Pavillon Schwentinental | J57: DRK Kreisverband Ostholstein | K57: 01.01.2021-31.12.2024
A58: 54 | B58: Stadt Schwentinental | C58: Krippengruppe | D58: 10 | G58: 30 | I58: DRK Kita Pavillon Schwentinental | J58: DRK Kreisverband Ostholstein | K58: 01.01.2021-31.12.2024
A59: 55 | B59: Stadt Schwentinental | C59: Krippengruppe | D59: 10 | G59: 30 | I59: DRK Kita Pavillon Schwentinental | J59: DRK Kreisverband Ostholstein | K59: 01.01.2021-31.12.2024
A60: 56 | B60: Stadt Schwentinental | C60: Kindergartengruppe | E60: 20 | G60: 30 | I60: DRK Kita Pavillon Schwentinental | J60: DRK Kreisverband Ostholstein | K60: 01.01.2021-31.12.2024
A61: 57 | B61: Stadt Schwentinental | C61: Kindergartengruppe | E61: 20 | G61: 35 | I61: DRK Kita Pavillon Schwentinental | J61: DRK Kreisverband Ostholstein | K61: 01.01.2021-31.12.2024
A62: 58 | B62: Stadt Schwentinental | C62: Erg. u. Rz. altersgemischte Gruppe | D62: 5 | E62: 10 | G62: 5 | I62: Ev.-Luth. KiTa "Arche Noah am Park" | J62: Ev.-Luth. Kirchenkreis Plön-Segeberg (PLÖ) | K62: 01.01.2021-31.12.2024
A63: 59 | B63: Stadt Schwentinental | C63: Erg. u. Rz. Krippengruppe | D63: 10 | G63: 5 | I63: Ev.-Luth. KiTa "Arche Noah am Park" | J63: Ev.-Luth. Kirchenkreis Plön-Segeberg (PLÖ) | K63: 01.01.2021-31.12.2024
A64: 60 | B64: Stadt Schwentinental | C64: Erg. u. Rz. altersgemischte Gruppe | D64: 5 | E64: 10 | G64: 5 | I64: Ev.-Luth. KiTa "Arche Noah am Park" | J64: Ev.-Luth. Kirchenkreis Plön-Segeberg (PLÖ) | K64: 01.01.2021-31.12.2024
A65: 61 | B65: Stadt Schwentinental | C65: Erg. u. Rz. Krippengruppe | D65: 10 | G65: 5 | I65: Ev.-Luth. KiTa "Arche Noah am Park" | J65: Ev.-Luth. Kirchenkreis Plön-Segeberg (PLÖ) | K65: 01.01.2021-31.12.2024
A66: 62 | B66: Stadt Schwentinental | C66: Erg.- u. Rz.-Gr.: Spätdienst | D66: 5 | E66: 10 | G66: 5 | I66: Ev.-Luth. KiTa "Arche Noah am Park" | J66: Ev.-Luth. Kirchenkreis Plön-Segeberg (PLÖ) | K66: 01.01.2021-31.12.2024
A67: 63 | B67: Stadt Schwentinental | C67: Krippengruppe | D67: 10 | G67: 30 | I67: Ev.-Luth. KiTa "Arche Noah am Park" | J67: Ev.-Luth. Kirchenkreis Plön-Segeberg (PLÖ) | K67: 01.01.2021-31.12.2024
A68: 64 | B68: Stadt Schwentinental | C68: altersgemischte Gruppe | D68: 5 | E68: 10 | G68: 30 | I68: Ev.-Luth. KiTa "Arche Noah am Park" | J68: Ev.-Luth. Kirchenkreis Plön-Segeberg (PLÖ) | K68: 01.01.2021-31.12.2024
A69: 65 | B69: Stadt Schwentinental | C69: altersgemischte Gruppe | D69: 5 | E69: 10 | G69: 30 | I69: Ev.-Luth. KiTa "Arche Noah am Park" | J69: Ev.-Luth. Kirchenkreis Plön-Segeberg (PLÖ) | K69: 01.01.2021-31.12.2024
A70: 66 | B70: Stadt Schwentinental | C70: Krippengruppe | D70: 10 | G70: 30 | I70: Ev.-Luth. KiTa "Arche Noah am Park" | J70: Ev.-Luth. Kirchenkreis Plön-Segeberg (PLÖ) | K70: 01.01.2021-31.12.2024
A71: 67 | B71: Stadt Schwentinental | C71: Kindergartengruppe | E71: 20 | G71: 30 | I71: Ev.-Luth. KiTa "Arche Noah an der Schwentine" | J71: Ev.-Luth. Kirchenkreis Plön-Segeberg (PLÖ) | K71: 01.01.2021-31.12.2024
A72: 68 | B72: Stadt Schwentinental | C72: Natur-Kindergartengruppe | E72: 16 | G72: 35 | I72: Ev.-Luth. KiTa "Arche Noah an der Schwentine" | J72: Ev.-Luth. Kirchenkreis Plön-Segeberg (PLÖ) | K72: 01.01.2021-31.12.2024
A73: 69 | B73: Stadt Schwentinental | C73: Erg. u. Rz. Kindergartengruppe | E73: 20 | G73: 5 | I73: Ev.-Luth. KiTa "Arche Noah an der Schwentine" | J73: Ev.-Luth. Kirchenkreis Plön-Segeberg (PLÖ) | K73: 01.01.2021-31.12.2024
A74: 70 | B74: Stadt Schwentinental | C74: Erg. u. Rz. Natur-Kindergartengruppe | E74: 16 | G74: 5 | I74: Ev.-Luth. KiTa "Arche Noah an der Schwentine" | J74: Ev.-Luth. Kirchenkreis Plön-Segeberg (PLÖ) | K74: 01.01.2021-31.12.2024
A75: 71 | B75: Stadt Schwentinental | C75: Erg. u. Rz. mittlere Kindergartengruppe (15) | E75: 15 | G75: 5 | I75: Ev.-Luth. KiTa "Arche Noah an der Schwentine" | J75: Ev.-Luth. Kirchenkreis Plön-Segeberg (PLÖ) | K75: 01.01.2021-31.12.2024
A76: 72 | B76: Stadt Schwentinental | C76: Erg. u. Rz. Kindergartengruppe | E76: 20 | G76: 5 | I76: Ev.-Luth. KiTa "Arche Noah an der Schwentine" | J76: Ev.-Luth. Kirchenkreis Plön-Segeberg (PLÖ) | K76: 01.01.2021-31.12.2024
A77: 73 | B77: Stadt Schwentinental | C77: Erg. u. Rz. kleine Kindergartengruppe (10) | E77: 10 | G77: 5 | I77: Ev.-Luth. KiTa "Arche Noah an der Schwentine" | J77: Ev.-Luth. Kirchenkreis Plön-Segeberg (PLÖ) | K77: 01.01.2021-31.12.2024
A78: 74 | B78: Stadt Schwentinental | C78: Erg. u. Rz. Kindergartengruppe | E78: 20 | G78: 5 | I78: Ev.-Luth. KiTa "Arche Noah an der Schwentine" | J78: Ev.-Luth. Kirchenkreis Plön-Segeberg (PLÖ) | K78: 01.01.2021-31.12.2024
A79: 75 | B79: Stadt Schwentinental | C79: Natur-Kindergartengruppe | E79: 16 | G79: 30 | I79: Ev.-Luth. KiTa "Arche Noah an der Schwentine" | J79: Ev.-Luth. Kirchenkreis Plön-Segeberg (PLÖ) | K79: 01.01.2021-31.12.2024
A80: 76 | B80: Stadt Schwentinental | C80: integrative Kindergartengruppe | E80: 12 | G80: 30 | I80: Ev.-Luth. KiTa "Arche Noah an der Schwentine" | J80: Ev.-Luth. Kirchenkreis Plön-Segeberg (PLÖ) | K80: 01.01.2021-31.12.2024
A81: 77 | B81: Stadt Schwentinental | C81: Kindergartengruppe | E81: 20 | G81: 30 | I81: Ev.-Luth. KiTa "Arche Noah an der Schwentine" | J81: Ev.-Luth. Kirchenkreis Plön-Segeberg (PLÖ) | K81: 01.01.2021-31.12.2024
A82: 78 | B82: Stadt Schwentinental | C82: Kindergartengruppe | E82: 20 | G82: 30 | I82: Ev.-Luth. KiTa "Arche Noah an der Schwentine" | J82: Ev.-Luth. Kirchenkreis Plön-Segeberg (PLÖ) | K82: 01.01.2021-31.12.2024
A83: 79 | B83: Stadt Schwentinental | C83: Kindergartengruppe | E83: 20 | G83: 40 | I83: Evangelische Kindertagesstätte Klausdorf | J83: Ev.-Luth. Philippus-Kichengemeinde Klausdorf | K83: 01.01.2021-31.12.2024
A84: 80 | B84: Stadt Schwentinental | C84: Erg. u. Rz. kleine altersgemischte Gruppe | D84: 3 | E84: 4 | G84: 5 | I84: Evangelische Kindertagesstätte Klausdorf | J84: Ev.-Luth. Philippus-Kichengemeinde Klausdorf | K84: 01.01.2021-31.12.2024
A85: 81 | B85: Stadt Schwentinental | C85: Erg. u. Rz. kleine altersgemischte Gruppe | D85: 5 | E85: 10 | G85: 10 | I85: Evangelische Kindertagesstätte Klausdorf | J85: Ev.-Luth. Philippus-Kichengemeinde Klausdorf | K85: 01.01.2021-31.12.2024
A86: 82 | B86: Stadt Schwentinental | C86: altersgemischte Gruppe | D86: 5 | E86: 10 | G86: 30 | I86: Evangelische Kindertagesstätte Klausdorf | J86: Ev.-Luth. Philippus-Kichengemeinde Klausdorf | K86: 01.01.2021-31.12.2024
B87: Stadt Schwentinental | C87: Krippengruppe | D87: 10 | G87: 30 | I87: Evangelische Kindertagesstätte Klausdorf | J87: Ev.-Luth. Philippus-Kichengemeinde Klausdorf | K87: 01.01.2021-31.12.2024
B88: Stadt Schwentinental | C88: Erg. u. Rz. mittlere Kindergartengruppe (15) | E88: 10 | G88: 5 | I88: Evangelische Kindertagesstätte Klausdorf | J88: Ev.-Luth. Philippus-Kichengemeinde Klausdorf | K88: 01.01.2021-31.12.2024
B89: Stadt Schwentinental | C89: Erg. u. Rz. mittlere Kindergartengruppe (15) | E89: 10 | G89: 10 | I89: Evangelische Kindertagesstätte Klausdorf | J89: Ev.-Luth. Philippus-Kichengemeinde Klausdorf | K89: 01.01.2021-31.12.2024
A92: Plätze U3 | D92: =SUMIF(C6:C91,"Krippengruppe",D6:D91)+SUMIF(C6:C91,"altersgemischte Gruppe",D6:D91)+SUMIF(C6:C91,"kleine *",D6:D91) -> 125
A93: Plätze Ü3 | E93: =SUMIF(C6:C91, "Kindergartengruppe*", E6:E91) + SUMIF(C6:C91, "altersgemischte Gruppe", E6:E91) + SUMIF(C6:C91, "Natur-Kindergartengruppe", E6:E91) + SUMIF(C6:C91, "mittlere Kindergartengruppe*", E6:E91) + SUMIF(C6:C91, "integrative Kindergartengruppe", E6:E91) + SUMIF(C6:C91, "kleine Kinderg*", E6:E91) -> 502 | F93: =SUMIF(C16:C91, "Kindergartengruppe", F16:F91) + SUMIF(C16:C91, "mittlere Kindergartengruppe (15)", F16:F91) + SUMIF(C16:C91, "kleine Kindergartengruppe (10)", F16:F91) -> 0
A94: Plätze gesamt | F94: =SUM(D92:F93) -> 627
E95: Kindertagespflege
A96: Plätze U3 | D96: 65
A97: Plätze Ü3
A98: Plätze gesamt | F98: =SUM(D96:F97) -> 65
E99: Plätze gesamt
A100: Plätze U3 | D100: =SUM(D92+D96) -> 190
A101: Plätze Ü3 | E101: =SUM(E93+E97) -> 502
A102: Plätze gesamt | F102: =SUM(D100:F101) -> 692

Sheet Planungsraum 10
C1: KiTa-Bedarfsplan | G1: Kreis Plön | H1: Planungsraum 10 | I1: Amt Bokhorst-Wankendorf
E3: Abschnitt 1 | J3: Abschnitt 2
A4: Nr. | B4: Ortsteil | C4: Gruppenart | D4: Gruppengröße | G4: Öffnungszeiten/Woche | H4: Sonstige Festlegungen | I4: Kitaname | J4: Träger | K4: Förderzeitraum
D5: U3 | E5: Ü3 | F5: Hort
A6: 1 | B6: Wankendorf | C6: altersgemischte Gruppe | D6: 5 | E6: 10 | G6: 30 | I6: DRK-Kindertagesstätte "Kleine und Große Racker" | J6: DRK-Ortsverein Wankendorf e.V., c./o. DRK-Kita "Große Racker" | K6: 01.01.2021-31.12.2024
A7: 2 | B7: Wankendorf | C7: Erg. u. Rz. altersgemischte Gruppe | D7: 5 | E7: 10 | G7: 5 | I7: DRK-Kindertagesstätte "Kleine und Große Racker" | J7: DRK-Ortsverein Wankendorf e.V., c./o. DRK-Kita "Große Racker" | K7: 01.01.2021-31.12.2024
A8: 3 | B8: Wankendorf | C8: Erg. u. Rz. altersgemischte Gruppe | D8: 5 | E8: 10 | G8: 10 | I8: DRK-Kindertagesstätte "Kleine und Große Racker" | J8: DRK-Ortsverein Wankendorf e.V., c./o. DRK-Kita "Große Racker" | K8: 01.01.2021-31.12.2024
A9: 4 | B9: Wankendorf | C9: Erg. u. Rz. kleine altersgemischte Gruppe | D9: 3 | E9: 4 | G9: 5 | I9: DRK-Kindertagesstätte "Kleine und Große Racker" | J9: DRK-Ortsverein Wankendorf e.V., c./o. DRK-Kita "Große Racker" | K9: 01.01.2021-31.12.2024
A10: 5 | B10: Wankendorf | C10: Kindergartengruppe | E10: 20 | G10: 25 | I10: DRK-Kindertagesstätte "Kleine und Große Racker" | J10: DRK-Ortsverein Wankendorf e.V., c./o. DRK-Kita "Große Racker" | K10: 01.01.2021-31.12.2024
A11: 6 | B11: Wankendorf | C11: Erg. u. Rz. Kindergartengruppe | E11: 20 | G11: 5 | I11: DRK-Kindertagesstätte "Kleine und Große Racker" | J11: DRK-Ortsverein Wankendorf e.V., c./o. DRK-Kita "Große Racker" | K11: 01.01.2021-31.12.2024
A12: 7 | B12: Wankendorf | C12: Erg. u. Rz. Kindergartengruppe | E12: 20 | G12: 15 | I12: DRK-Kindertagesstätte "Kleine und Große Racker" | J12: DRK-Ortsverein Wankendorf e.V., c./o. DRK-Kita "Große Racker" | K12: 01.01.2021-31.12.2024
A13: 8 | B13: Wankendorf | C13: Kindergartengruppe | E13: 20 | G13: 30 | I13: DRK-Kindertagesstätte "Kleine und Große Racker" | J13: DRK-Ortsverein Wankendorf e.V., c./o. DRK-Kita "Große Racker" | K13: 01.01.2021-31.12.2024
A14: 9 | B14: Wankendorf | C14: Krippengruppe | D14: 10 | G14: 30 | I14: DRK-Kindertagesstätte "Kleine und Große Racker" | J14: DRK-Ortsverein Wankendorf e.V., c./o. DRK-Kita "Große Racker" | K14: 01.01.2021-31.12.2024
A15: 10 | B15: Wankendorf | C15: Kindergartengruppe | E15: 20 | G15: 25 | I15: DRK-Kindertagesstätte "Kleine und Große Racker" | J15: DRK-Ortsverein Wankendorf e.V., c./o. DRK-Kita "Große Racker" | K15: 01.01.2021-31.12.2024
A16: 11 | B16: Wankendorf | C16: Krippengruppe | D16: 10 | G16: 30 | I16: DRK-Kindertagesstätte "Kleine und Große Racker" | J16: DRK-Ortsverein Wankendorf e.V., c./o. DRK-Kita "Große Racker" | K16: 01.01.2021-31.12.2024
A17: 12 | B17: Wankendorf | C17: Erg. u. Rz. Krippengruppe | D17: 10 | G17: 5 | I17: DRK-Kindertagesstätte "Kleine und Große Racker" | J17: DRK-Ortsverein Wankendorf e.V., c./o. DRK-Kita "Große Racker" | K17: 01.01.2021-31.12.2024
A18: 13 | B18: Wankendorf | C18: Erg. u. Rz. Krippengruppe | D18: 10 | G18: 10 | I18: DRK-Kindertagesstätte "Kleine und Große Racker" | J18: DRK-Ortsverein Wankendorf e.V., c./o. DRK-Kita "Große Racker" | K18: 01.01.2021-31.12.2024
A19: 14 | B19: Wankendorf | C19: Erg. u. Rz. kleine Krippengruppe (5) | D19: 5 | G19: 5 | I19: DRK-Kindertagesstätte "Kleine und Große Racker" | J19: DRK-Ortsverein Wankendorf e.V., c./o. DRK-Kita "Große Racker" | K19: 01.01.2021-31.12.2024
A20: 15
A21: 16 | B21: Stolpe | C21: altersgemischte Gruppe | D21: 5 | E21: 10 | G21: 25 | I21: DRK-Kita "Rappelsnuut'n", Stolpe | J21: DRK-Kinder- und Jugendhilfe Nord gGmbH | K21: 01.01.2021-31.12.2024
A22: 17 | B22: Stolpe | C22: Kindergartengruppe | E22: 20 | G22: 25 | I22: DRK-Kita "Rappelsnuut'n", Stolpe | J22: DRK-Kinder- und Jugendhilfe Nord gGmbH | K22: 01.01.2021-31.12.2024
A23: 18 | B23: Stolpe | C23: Erg. u. Rz. altersgemischte Gruppe | D23: 5 | E23: 10 | G23: 5 | I23: DRK-Kita "Rappelsnuut'n", Stolpe | J23: DRK-Kinder- und Jugendhilfe Nord gGmbH | K23: 01.01.2021-31.12.2024
A24: 19 | B24: Stolpe | C24: Erg. u. Rz. altersgemischte Gruppe | D24: 5 | E24: 10 | G24: 5 | I24: DRK-Kita "Rappelsnuut'n", Stolpe | J24: DRK-Kinder- und Jugendhilfe Nord gGmbH | K24: 01.01.2021-31.12.2024
A25: 20 | B25: Schillsdorf | C25: Krippengruppe | D25: 10 | G25: 40 | I25: Ev.-Luth. Kita K. in. der Kastanie | J25: Ev.-Lutherischer Kirchenkreis Altholstein (PLÖ) | K25: 01.01.2021-31.12.2024
A26: 21 | B26: Schillsdorf | C26: Erg. u. Rz. Kindergartengruppe | E26: 20 | G26: 15 | I26: Ev.-Luth. Kita K. in. der Kastanie | J26: Ev.-Lutherischer Kirchenkreis Altholstein (PLÖ) | K26: 01.01.2021-31.12.2024
A27: 22 | B27: Schillsdorf | C27: Kindergartengruppe | E27: 20 | G27: 25 | I27: Ev.-Luth. Kita K. in. der Kastanie | J27: Ev.-Lutherischer Kirchenkreis Altholstein (PLÖ) | K27: 01.01.2021-31.12.2024
A28: 23 | B28: Schillsdorf | C28: altersgemischte Gruppe | D28: 5 | E28: 10 | G28: 25 | I28: Ev.-Luth. Kita K. in. der Kastanie | J28: Ev.-Lutherischer Kirchenkreis Altholstein (PLÖ) | K28: 01.01.2021-31.12.2024
A29: 24 | B29: Schillsdorf | C29: Erg. u. Rz. Krippengruppe | D29: 10 | G29: 5 | I29: Ev.-Luth. Kita K. in. der Kastanie | J29: Ev.-Lutherischer Kirchenkreis Altholstein (PLÖ) | K29: 01.01.2021-31.12.2024
A30: 25 | B30: Schillsdorf | C30: Erg. u. Rz. mittlere Kindergartengruppe (15) | E30: 15 | G30: 5 | I30: Ev.-Luth. Kita K. in. der Kastanie | J30: Ev.-Lutherischer Kirchenkreis Altholstein (PLÖ) | K30: 01.01.2021-31.12.2024
A31: 26 | B31: Schillsdorf | C31: altersgemischte Gruppe | D31: 5 | E31: 10 | G31: 40 | I31: Ev.-Luth. Kita K. in. der Kastanie | J31: Ev.-Lutherischer Kirchenkreis Altholstein (PLÖ) | K31: 01.01.2021-31.12.2024
A32: 27 | B32: Schillsdorf | C32: Natur-Kindergartengruppe | E32: 16 | G32: 30 | I32: Ev.-Luth. Kita K. in. der Kastanie | J32: Ev.-Lutherischer Kirchenkreis Altholstein (PLÖ) | K32: 01.01.2021-31.12.2024
A33: 28 | B33: Wankendorf | C33: Kindergartengruppe | E33: 20 | G33: 45 | I33: Johanniter Kindertagesstätte Kita Kito | J33: Johanniter-Unfall-Hilfe e.V. (PLÖ) | K33: 01.01.2021-31.12.2024
A34: 29 | B34: Wankendorf | C34: Kindergartengruppe | E34: 20 | G34: 30 | I34: Johanniter Kindertagesstätte Kita Kito | J34: Johanniter-Unfall-Hilfe e.V. (PLÖ) | K34: 01.01.2021-31.12.2024
A35: 30 | B35: Wankendorf | C35: Erg. u. Rz. kleine Kindergartengruppe (10) | E35: 10 | G35: 10 | I35: Johanniter Kindertagesstätte Kita Kito | J35: Johanniter-Unfall-Hilfe e.V. (PLÖ) | K35: 01.01.2021-31.12.2024
A36: 31 | B36: Wankendorf | C36: Erg. u. Rz. altersgemischte Gruppe | D36: 5 | E36: 10 | G36: 5 | I36: Johanniter Kindertagesstätte Kita Kito | J36: Johanniter-Unfall-Hilfe e.V. (PLÖ) | K36: 01.01.2021-31.12.2024
A37: 32 | B37: Wankendorf | C37: Erg. u. Rz. Krippengruppe | D37: 10 | G37: 5 | I37: Johanniter Kindertagesstätte Kita Kito | J37: Johanniter-Unfall-Hilfe e.V. (PLÖ) | K37: 01.01.2021-31.12.2024
A38: 33 | B38: Wankendorf | C38: Erg. u. Rz. kleine Kindergartengruppe (10) | E38: 10 | G38: 7.5 | I38: Johanniter Kindertagesstätte Kita Kito | J38: Johanniter-Unfall-Hilfe e.V. (PLÖ) | K38: 01.01.2021-31.12.2024
A39: 34 | B39: Wankendorf | C39: Krippengruppe | D39: 10 | G39: 30 | I39: Johanniter Kindertagesstätte Kita Kito | J39: Johanniter-Unfall-Hilfe e.V. (PLÖ) | K39: 01.01.2021-31.12.2024
A40: 35 | B40: Wankendorf | C40: Krippengruppe | D40: 10 | G40: 30 | I40: Johanniter Kindertagesstätte Kita Kito | J40: Johanniter-Unfall-Hilfe e.V. (PLÖ) | K40: 01.01.2021-31.12.2024
A41: 36 | B41: Wankendorf | C41: Erg. u. Rz. kleine Krippengruppe (5) | D41: 5 | G41: 10 | I41: Johanniter Kindertagesstätte Kita Kito | J41: Johanniter-Unfall-Hilfe e.V. (PLÖ) | K41: 01.01.2021-31.12.2024
A42: 37 | B42: Wankendorf | C42: Natur-Kindergartengruppe | E42: 16 | G42: 25 | I42: Johanniter Kindertagesstätte Kita Kito | J42: Johanniter-Unfall-Hilfe e.V. (PLÖ) | K42: 01.01.2021-31.12.2024
A43: 38 | B43: Ruhwinkel | C43: Kindergartengruppe | E43: 20 | G43: 30 | I43: Johanniter Kindergarten Schönböken | J43: Kindergarten Schönböken e.V. | K43: 01.01.2021-31.12.2024
A44: 39 | B44: Ruhwinkel | C44: Erg. u. Rz. kleine Kindergartengruppe (10) | E44: 10 | G44: 2.5 | I44: Johanniter Kindergarten Schönböken | J44: Kindergarten Schönböken e.V. | K44: 01.01.2021-31.12.2024
A45: 40 | B45: Rendswühren | C45: Natur-Kindergartengruppe | E45: 16 | G45: 30 | I45: Bauernhofkindergarten Hofwichtel Kita Natura Rendswühren | J45: Kita Natura eG (PLÖ) | K45: 01.01.2021-31.12.2024
A46: 41 | B46: Stolpe | C46: Natur-Kindergartengruppe | E46: 16 | G46: 30 | I46: Naturkindergarten Stolpe | J46: Familie und Beruf e.V. | K46: 01.08.2022-31.12.2024
A47: 42
A48: 43
A49: 44
A50: 45
A51: 46
A52: 47
A53: 48
A54: 49
A55: Plätze U3 | D55: =SUMIF(C6:C54,"Krippengruppe",D6:D54)+SUMIF(C6:C54,"altersgemischte Gruppe",D6:D54)+SUMIF(C6:C54,"kleine Krippengruppe",D6:D54) -> 70
A56: Plätze Ü3 | E56: =SUMIF(C6:C54, "Kindergartengruppe", E6:E54) + SUMIF(C6:C54, "altersgemischte Gruppe",E6:E54) + SUMIF(C6:C54, "Natur-Kindergartengruppe", E6:E54) + SUMIF(C6:C54, "mittlere Kindergartengruppe*", E6:E54) + SUMIF(C6:C54, "integrative Kindergartengruppe", E6:E54) + SUMIF(C6:C54, "kleine Kinderg*", E6:E54) -> 264 | F56: =SUMIF(C10:C54, "Kindergartengruppe", F10:F54) + SUMIF(C10:C54, "mittlere Kindergartengruppe (15)", F10:F54) + SUMIF(C10:C54, "kleine Kindergartengruppe (10)", F10:F54) -> 0
A57: Plätze gesamt | F57: =SUM(D55:F56) -> 334
E58: Kindertagespflege
A59: Plätze U3 | D59: 15
A60: Plätze Ü3
A61: Plätze gesamt | F61: =SUM(D59:F60) -> 15
E62: Plätze gesamt
A63: Plätze U3 | D63: =D59+D55 -> 85
A64: Plätze Ü3 | E64: =E60+E56 -> 264 | F64: =F60+F56 -> 0
A65: Plätze gesamt | F65: =SUM(D63:F64) -> 349

Sheet Planungsraum 11
C1: KiTa-Bedarfsplan | G1: Kreis Plön | H1: Planungsraum 11 | I1: Amt Lütjenburg
E3: Abschnitt 1 | J3: Abschnitt 2
A4: Nr. | B4: Ortsteil | C4: Gruppenart | D4: Gruppengröße | G4: Öffnungszeiten/Woche | H4: Sonstige Festlegungen | I4: Kitaname | J4: Träger | K4: Förderzeitraum
D5: U3 | E5: Ü3 | F5: Hort
A6: 1 | B6: Lütjenburg | C6: altersgemischte Gruppe | D6: 5 | E6: 10 | G6: 25 | I6: Evangelischer Kindergarten Lütjenburg | J6: Ev.-Luth. Kirchengemeinde Lütjenburg | K6: 01.01.2021-31.12.2024
A7: 2 | B7: Lütjenburg | C7: Erg. u. Rz. Kindergartengruppe | E7: 20 | G7: 5 | I7: Evangelischer Kindergarten Lütjenburg | J7: Ev.-Luth. Kirchengemeinde Lütjenburg | K7: 01.01.2021-31.12.2024
A8: 3 | B8: Lütjenburg | C8: Erg. u. Rz. Kleine Kindergartengruppe | E8: 10 | G8: 5 | I8: Evangelischer Kindergarten Lütjenburg | J8: Ev.-Luth. Kirchengemeinde Lütjenburg | K8: 01.01.2021-31.12.2024
A9: 4 | B9: Lütjenburg | C9: Erg. u. Rz. Kleine Kindergartengruppe | E9: 10 | G9: 10 | I9: Evangelischer Kindergarten Lütjenburg | J9: Ev.-Luth. Kirchengemeinde Lütjenburg | K9: 01.01.2021-31.12.2024
A10: 5 | B10: Lütjenburg | C10: Erg. u. Rz. Krippengruppe | D10: 10 | G10: 20 | I10: Evangelischer Kindergarten Lütjenburg | J10: Ev.-Luth. Kirchengemeinde Lütjenburg | K10: 01.01.2021-31.12.2024
A11: 6 | B11: Lütjenburg | C11: Erg. u. Rz. Kleine Kindergartengruppe | E11: 10 | G11: 5 | I11: Evangelischer Kindergarten Lütjenburg | J11: Ev.-Luth. Kirchengemeinde Lütjenburg | K11: 01.01.2021-31.12.2024
A12: 7 | B12: Lütjenburg | C12: Erg. u. Rz. Kindergartengruppe | E12: 20 | G12: 10 | I12: Evangelischer Kindergarten Lütjenburg | J12: Ev.-Luth. Kirchengemeinde Lütjenburg | K12: 01.01.2021-31.12.2024
A13: 8 | B13: Lütjenburg | C13: Erg. u. Rz. kleine Krippengruppe (5) | D13: 5 | G13: 5 | I13: Evangelischer Kindergarten Lütjenburg | J13: Ev.-Luth. Kirchengemeinde Lütjenburg | K13: 01.01.2021-31.12.2024
A14: 9 | B14: Lütjenburg | C14: Erg. u. Rz. Kleine Kindergartengruppe | E14: 10 | G14: 10 | I14: Evangelischer Kindergarten Lütjenburg | J14: Ev.-Luth. Kirchengemeinde Lütjenburg | K14: 01.01.2021-31.12.2024
A15: 10 | B15: Lütjenburg | C15: Natur-Kindergartengruppe | E15: 16 | G15: 25 | I15: Evangelischer Kindergarten Lütjenburg | J15: Ev.-Luth. Kirchengemeinde Lütjenburg | K15: 01.01.2021-31.12.2024
A16: 11 | B16: Lütjenburg | C16: Krippengruppe | D16: 10 | G16: 25 | I16: Evangelischer Kindergarten Lütjenburg | J16: Ev.-Luth. Kirchengemeinde Lütjenburg | K16: 01.01.2021-31.12.2024
A17: 12 | B17: Lütjenburg | C17: Kindergartengruppe | E17: 20 | G17: 25 | I17: Evangelischer Kindergarten Lütjenburg | J17: Ev.-Luth. Kirchengemeinde Lütjenburg | K17: 01.01.2021-31.12.2024
A18: 13 | B18: Lütjenburg | C18: Kindergartengruppe | E18: 20 | G18: 25 | I18: Evangelischer Kindergarten Lütjenburg | J18: Ev.-Luth. Kirchengemeinde Lütjenburg | K18: 01.01.2021-31.12.2024
A19: 14 | B19: Schwartbuck | C19: Kindergartengruppe | E19: 20 | G19: 25 | I19: Kindergarten Bärenhöhle Schwartbuck | J19: Gemeinde Schwartbuck | K19: 01.01.2021-31.12.2024
A20: 15 | B20: Schwartbuck | C20: Erg. u. Rz. mittlere Kindergartengruppe (15) | E20: 15 | G20: 5 | I20: Kindergarten Bärenhöhle Schwartbuck | J20: Gemeinde Schwartbuck | K20: 01.01.2021-31.12.2024
A21: 16 | B21: Schwartbuck | C21: Erg. u. Rz. mittlere Kindergartengruppe (15) | E21: 15 | G21: 10 | I21: Kindergarten Bärenhöhle Schwartbuck | J21: Gemeinde Schwartbuck | K21: 01.01.2021-31.12.2024
A22: 17 | B22: Blekendorf | C22: altersgemischte Gruppe | D22: 5 | E22: 10 | G22: 25 | I22: Kindergarten Blekendorf | J22: Gemeinde Blekendorf | K22: 01.01.2021-31.12.2024
A23: 18 | B23: Blekendorf | C23: altersgemischte Gruppe | D23: 5 | E23: 10 | G23: 25 | I23: Kindergarten Blekendorf | J23: Gemeinde Blekendorf | K23: 01.01.2021-31.12.2024
A24: 19 | B24: Blekendorf | C24: Erg. u. Rz. altersgemischte Gruppe | D24: 5 | E24: 10 | G24: 15 | I24: Kindergarten Blekendorf | J24: Gemeinde Blekendorf | K24: 01.01.2021-31.12.2024
A25: 20 | B25: Blekendorf | C25: Kindergartengruppe | E25: 20 | G25: 25 | I25: Kindergarten Blekendorf | J25: Gemeinde Blekendorf | K25: 01.01.2021-31.12.2024
A26: 21 | B26: Hohenfelde | C26: Kindergartengruppe | E26: 20 | G26: 25 | I26: Kindergarten Löwenzahn Hohenfelde | J26: Gemeinde Hohenfelde | K26: 01.01.2021-31.12.2024
A27: 22 | B27: Hohenfelde | C27: Erg. u. Rz. mittlere Kindergartengruppe (15) | E27: 15 | G27: 15 | I27: Kindergarten Löwenzahn Hohenfelde | J27: Gemeinde Hohenfelde | K27: 01.01.2021-31.12.2024
A28: 23 | B28: Panker | C28: Kindergartengruppe | E28: 20 | G28: 25 | I28: Kindergarten Panda Panker | J28: Gemeinde Panker | K28: 01.01.2021-31.12.2024
A29: 24 | B29: Panker | C29: Erg. u. Rz. Kleine altersgemischte Gruppe | D29: 3 | E29: 4 | G29: 5 | I29: Kindergarten Panda Panker | J29: Gemeinde Panker | K29: 01.01.2021-31.12.2024
A30: 25 | B30: Panker | C30: Erg. u. Rz. Kleine altersgemischte Gruppe | D30: 3 | E30: 4 | G30: 5 | I30: Kindergarten Panda Panker | J30: Gemeinde Panker | K30: 01.01.2021-31.12.2024
A31: 26 | B31: Panker | C31: altersgemischte Gruppe | D31: 5 | E31: 10 | G31: 25 | I31: Kindergarten Panda Panker | J31: Gemeinde Panker | K31: 01.01.2021-31.12.2024
A32: 27 | B32: Lütjenburg | C32: Kindergartengruppe | E32: 20 | G32: 25 | I32: Kindergarten Schatzkiste Lütjenburg | J32: Stadt Lütjenburg | K32: 01.01.2021-31.12.2024
A33: 28 | B33: Lütjenburg | C33: Erg. u. Rz. altersgemischte Gruppe | D33: 5 | E33: 10 | G33: 25 | I33: Kindergarten Schatzkiste Lütjenburg | J33: Stadt Lütjenburg | K33: 01.01.2021-31.12.2024
A34: 29 | B34: Lütjenburg | C34: integrative Kindergartengruppe | E34: 15 | G34: 30 | I34: Kindergarten Schatzkiste Lütjenburg | J34: Stadt Lütjenburg | K34: 01.01.2021-31.12.2024
A35: 30 | B35: Lütjenburg | C35: altersgemischte Gruppe | D35: 5 | E35: 10 | G35: 25 | I35: Kindergarten Schatzkiste Lütjenburg | J35: Stadt Lütjenburg | K35: 01.01.2021-31.12.2024
A36: 31 | B36: Giekau | C36: Erg. u. Rz. altersgemischte Gruppe | D36: 5 | E36: 10 | G36: 12.5 | I36: Kindergarten Seekrug Giekau | J36: Gemeinde Giekau | K36: 01.01.2021-31.12.2024
A37: 32 | B37: Giekau | C37: Erg. u. Rz. kleine Kindergartengruppe (10) | E37: 10 | G37: 12.5 | I37: Kindergarten Seekrug Giekau | J37: Gemeinde Giekau | K37: 01.01.2021-31.12.2024
A38: 33 | B38: Giekau | C38: Natur-Kindergartengruppe | E38: 16 | G38: 25 | I38: Kindergarten Seekrug Giekau | J38: Gemeinde Giekau | K38: 01.01.2021-31.12.2024
A39: 34 | B39: Giekau | C39: altersgemischte Gruppe | D39: 5 | E39: 10 | G39: 25 | I39: Kindergarten Seekrug Giekau | J39: Gemeinde Giekau | K39: 01.01.2021-31.12.2024
A40: 35 | B40: Giekau | C40: Kindergartengruppe | E40: 20 | G40: 25 | I40: Kindergarten Seekrug Giekau | J40: Gemeinde Giekau | K40: 01.01.2021-31.12.2024
A41: 36 | B41: Dannau | C41: Erg. u. Rz. altersgemischte Gruppe | D41: 5 | E41: 10 | G41: 7.5 | I41: Kindergarten Spatzennest Dannau | J41: Zweckverband Kindergarten Dannau-Rantzau | K41: 01.01.2021-31.12.2024
A42: 37 | B42: Dannau | C42: Krippengruppe | D42: 10 | G42: 25 | I42: Kindergarten Spatzennest Dannau | J42: Zweckverband Kindergarten Dannau-Rantzau | K42: 01.01.2021-31.12.2024
A43: 38 | B43: Dannau | C43: Kindergartengruppe | D43: 0 | E43: 20 | G43: 25 | I43: Kindergarten Spatzennest Dannau | J43: Zweckverband Kindergarten Dannau-Rantzau | K43: 01.01.2021-31.12.2024
A44: 39 | B44: Dannau | C44: altersgemischte Gruppe | D44: 5 | E44: 10 | G44: 25 | H44: Nachmittagsgruppe | I44: Kindergarten Spatzennest Dannau | J44: Zweckverband Kindergarten Dannau-Rantzau | K44: 01.01.2021-31.12.2024
A45: 40 | B45: Lütjenburg | C45: Krippengruppe | D45: 10 | G45: 20 | I45: Kita im SOS-Kinderdorf SH | J45: SOS-Kinderdorf Schleswig-Holstein | K45: 01.01.2021-31.12.2024
A46: 41 | B46: Lütjenburg | C46: Erg. u. Rz. Krippengruppe | D46: 10 | G46: 20 | I46: Kita im SOS-Kinderdorf SH | J46: SOS-Kinderdorf Schleswig-Holstein | K46: 01.01.2021-31.12.2024
A47: 42 | B47: Lütjenburg | C47: Erg. u. Rz. kleine Krippengruppe (5) | D47: 5 | G47: 5 | I47: Kita im SOS-Kinderdorf SH | J47: SOS-Kinderdorf Schleswig-Holstein | K47: 01.01.2021-31.12.2024
A48: 43 | B48: Lütjenburg | C48: Erg. u. Rz. altersgemischte Gruppe | D48: 5 | E48: 10 | G48: 20 | I48: Kita im SOS-Kinderdorf SH | J48: SOS-Kinderdorf Schleswig-Holstein | K48: 01.01.2021-31.12.2024
A49: 44 | B49: Lütjenburg | C49: Kindergartengruppe | E49: 20 | G49: 20 | I49: Kita im SOS-Kinderdorf SH | J49: SOS-Kinderdorf Schleswig-Holstein | K49: 01.01.2021-31.12.2024
A50: 45 | B50: Lütjenburg | C50: altersgemischte Gruppe | D50: 5 | E50: 10 | G50: 20 | I50: Kita im SOS-Kinderdorf SH | J50: SOS-Kinderdorf Schleswig-Holstein | K50: 01.01.2021-31.12.2024
A51: 46 | B51: Behrensdorf | C51: altersgemischte Gruppe | D51: 5 | E51: 10 | G51: 20 | I51: Villa Kunterbunt Behrensdorf | J51: Gemeinde Behrensdorf | K51: 01.01.2021-31.12.2024
A52: 47 | B52: Behrensdorf | C52: kleine Krippengruppe (5) | D52: 5 | G52: 20 | I52: Villa Kunterbunt Behrensdorf | J52: Gemeinde Behrensdorf | K52: 01.01.2021-31.12.2024
A53: 48 | B53: Behrensdorf | C53: Erg. u. Rz. altersgemischte Gruppe | D53: 5 | E53: 10 | G53: 2.5 | I53: Villa Kunterbunt Behrensdorf | J53: Gemeinde Behrensdorf | K53: 01.01.2021-31.12.2024
A54: 49 | B54: Behrensdorf | C54: Erg. u. Rz. altersgemischte Gruppe | D54: 5 | E54: 10 | G54: 20 | I54: Villa Kunterbunt Behrensdorf | J54: Gemeinde Behrensdorf | K54: 01.01.2021-31.12.2024
A55: 50 | B55: Lütjenburg | C55: Natur-Kindergartengruppe | E55: 16 | G55: 37.5 | I55: Zwergenland Nienthal | J55: Elterninitiative "Zwergenland e.V." NaturErlebniskindergarten | K55: 01.01.2021-31.12.2024
A56: 51
A57: 52
A58: 53
A59: 54
A60: 55
A61: 56
A62: 57
A63: 58
A64: 59
A65: Plätze U3 | D65: =SUMIF(C6:C64, "Krippengruppe", D6:D64) + SUMIF(C6:C64, "altersgemischte Gruppe", D6:D64) + SUMIF(C6:C64, "kleine*", D6:D64) -> 80
A66: Plätze Ü3 | E66: =SUMIF(C6:C64, "Kindergartengruppe", E6:E64) + SUMIF(C6:C64, "altersgemischte Gruppe",E6:E64) + SUMIF(C6:C64, "Natur-Kindergartengruppe", E6:E64) + SUMIF(C6:C64, "mittlere Kindergartengruppe*", E6:E64) + SUMIF(C6:C64, "integrative Kindergartengruppe", E6:E64) + SUMIF(C6:C64, "kleine Kinderg*", E6:E64) -> 353 | F66: =SUMIF(C17:C64, "Kindergartengruppe", F17:F64) + SUMIF(C17:C64, "mittlere Kindergartengruppe (15)", F17:F64) + SUMIF(C17:C64, "kleine Kindergartengruppe (10)", F17:F64) -> 0
A67: Plätze gesamt | F67: =SUM(D65:F66) -> 433
E68: Kindertagespflege
A69: Plätze U3 | D69: 40
A70: Plätze Ü3 | E70: 0 | F70: 0
A71: Plätze gesamt | F71: =SUM(D69:F70) -> 40
E72: Plätze gesamt
A73: Plätze U3 | D73: =D69+D65 -> 120
A74: Plätze Ü3 | E74: =E70+E66 -> 353 | F74: =F70+F66 -> 0
A75: Plätze gesamt | F75: =SUM(D73:F74) -> 473

Sheet Planungsraum 12
C1: KiTa-Bedarfsplan | G1: Kreis Plön | H1: Planungsraum 12 | I1: Amt Großer Plöner See
E3: Abschnitt 1 | J3: Abschnitt 2
A4: Nr. | B4: Ortsteil | C4: Gruppenart | D4: Gruppengröße | G4: Öffnungszeiten/Woche | H4: Sonstige Festlegungen | I4: Kitaname | J4: Träger | K4: Förderzeitraum
D5: U3 | E5: Ü3 | F5: Hort
A6: 1 | B6: Grebin | C6: Erg. u. Rz. altersgemischte Gruppe | D6: 5 | E6: 10 | G6: 2.5 | I6: Die kleinen Strolche der Gemeinde Grebin | J6: Gemeinde Grebin | K6: 01.01.2021-31.12.2024
A7: 2 | B7: Grebin | C7: Erg. u. Rz. kleine Krippengruppe (5) | D7: 5 | G7: 10 | I7: Die kleinen Strolche der Gemeinde Grebin | J7: Gemeinde Grebin | K7: 01.01.2021-31.12.2024
A8: 3 | B8: Grebin | C8: Erg. u. Rz. Kindergartengruppe | E8: 20 | G8: 10 | I8: Die kleinen Strolche der Gemeinde Grebin | J8: Gemeinde Grebin | K8: 01.01.2021-31.12.2024
A9: 4 | B9: Grebin | C9: Erg. u. Rz. altersgemischte Gruppe | D9: 5 | E9: 10 | G9: 5 | I9: Die kleinen Strolche der Gemeinde Grebin | J9: Gemeinde Grebin | K9: 01.01.2021-31.12.2024
A10: 5 | B10: Grebin | C10: Krippengruppe | D10: 10 | G10: 27.5 | I10: Die kleinen Strolche der Gemeinde Grebin | J10: Gemeinde Grebin | K10: 01.01.2021-31.12.2024
A11: 6 | B11: Grebin | C11: Kindergartengruppe | E11: 20 | G11: 27.5 | I11: Die kleinen Strolche der Gemeinde Grebin | J11: Gemeinde Grebin | K11: 01.01.2021-31.12.2024
A12: 7 | B12: Grebin | C12: Natur-Kindergartengruppe | E12: 16 | G12: 27.5 | I12: Die kleinen Strolche der Gemeinde Grebin | J12: Gemeinde Grebin | K12: 01.01.2021-31.12.2024
A13: 8 | B13: Dersau | C13: Erg. u. Rz. kleine altersgemischte Gruppe | D13: 3 | E13: 4 | G13: 5 | I13: Fritz-Joost-Kindergarten der Gemeinde Dersau | J13: Gemeinde Dersau | K13: 01.01.2021-31.12.2024
A14: 9 | B14: Dersau | C14: Erg. u. Rz. kleine Kindergartengruppe (10) | E14: 10 | G14: 5 | I14: Fritz-Joost-Kindergarten der Gemeinde Dersau | J14: Gemeinde Dersau | K14: 01.01.2021-31.12.2024
A15: 10 | B15: Dersau | C15: Erg. u. Rz. altersgemischte Gruppe | D15: 5 | E15: 10 | G15: 5 | I15: Fritz-Joost-Kindergarten der Gemeinde Dersau | J15: Gemeinde Dersau | K15: 01.01.2021-31.12.2024
A16: 11 | B16: Dersau | C16: Kindergartengruppe | E16: 20 | G16: 20 | I16: Fritz-Joost-Kindergarten der Gemeinde Dersau | J16: Gemeinde Dersau | K16: 01.01.2021-31.12.2024
A17: 12 | B17: Dersau | C17: Krippengruppe | D17: 10 | G17: 35 | I17: Fritz-Joost-Kindergarten der Gemeinde Dersau | J17: Gemeinde Dersau | K17: 01.01.2021-31.12.2024
A18: 13 | B18: Dersau | C18: Kindergartengruppe | E18: 20 | G18: 35 | I18: Fritz-Joost-Kindergarten der Gemeinde Dersau | J18: Gemeinde Dersau | K18: 01.01.2021-31.12.2024
A19: 14 | B19: Nehmten | C19: altersgemischte Gruppe | D19: 5 | E19: 10 | G19: 35 | I19: Kindergarten Liliput der Gemeinde Nehmten | J19: Gemeinde Nehmten | K19: 01.01.2021-31.12.2024
A20: 15 | B20: Nehmten | C20: Erg. u. Rz. kleine altersgemischte Gruppe | D20: 5 | E20: 10 | G20: 2.5 | I20: Kindergarten Liliput der Gemeinde Nehmten | J20: Gemeinde Nehmten | K20: 01.01.2021-31.12.2024
A21: 16 | B21: Rathjensdorf | C21: altersgemischte Gruppe | D21: 5 | E21: 10 | G21: 27.5 | I21: Kindergarten Rathjensdorf der Gemeinde Rathjensdorf | J21: Gemeinde Rathjensdorf | K21: 01.01.2021-31.12.2024
A22: 17 | B22: Rathjensdorf | C22: Erg. u. Rz. altersgemischte Gruppe | D22: 5 | E22: 10 | G22: 5 | I22: Kindergarten Rathjensdorf der Gemeinde Rathjensdorf | J22: Gemeinde Rathjensdorf | K22: 01.01.2021-31.12.2024
A23: 18 | B23: Rathjensdorf | C23: Erg. u. Rz. kleine altersgemischte Gruppe | D23: 3 | E23: 4 | G23: 2.5 | I23: Kindergarten Rathjensdorf der Gemeinde Rathjensdorf | J23: Gemeinde Rathjensdorf | K23: 01.01.2021-31.12.2024
A24: 19 | B24: Rathjensdorf | C24: Kindergartengruppe | E24: 20 | G24: 27.5 | I24: Kindergarten Rathjensdorf der Gemeinde Rathjensdorf | J24: Gemeinde Rathjensdorf | K24: 01.01.2021-31.12.2024
A25: 20 | B25: Kalübbe | C25: altersgemischte Gruppe | D25: 5 | E25: 10 | G25: 34 | I25: Kinderstube Kalübbe e.V. | J25: Kinderstube Kalübbe e.V. | K25: 01.01.2021-31.12.2024
A26: 21
A27: 22
A28: 23
A29: 24
A30: 25
A31: 26
A32: 27
A33: 28
A34: 29
A35: Plätze U3 | D35: =SUMIF(C6:C34, "Krippengruppe", D6:D34) + SUMIF(C6:C34, "altersgemischte Gruppe", D6:D34) + SUMIF(C6:C34, "kleine*", D6:D34) -> 35
A36: Plätze Ü3 | E36: =SUMIF(C6:C34, "Kindergartengruppe", E6:E34) + SUMIF(C6:C34, "altersgemischte Gruppe",E6:E34) + SUMIF(C6:C34, "Natur-Kindergartengruppe", E6:E34) + SUMIF(C6:C34, "mittlere Kindergartengruppe*", E6:E34) + SUMIF(C6:C34, "integrative Kindergartengruppe", E6:E34) + SUMIF(C6:C34, "kleine Kinderg*", E6:E34) -> 126 | F36: =SUMIF(C16:C34, "Kindergartengruppe", F16:F34) + SUMIF(C16:C34, "mittlere Kindergartengruppe (15)", F16:F34) + SUMIF(C16:C34, "kleine Kindergartengruppe (10)", F16:F34) -> 0
A37: Plätze gesamt | F37: =SUM(D35:F36) -> 161
E38: Kindertagespflege
A39: Plätze U3 | D39: 10
A40: Plätze Ü3 | E40: 0 | F40: 0
A41: Plätze gesamt | F41: =SUM(D39:F40) -> 10
E42: Plätze gesamt
A43: Plätze U3 | D43: =D39+D35 -> 45
A44: Plätze Ü3 | E44: =E40+E36 -> 126 | F44: =F40+F36 -> 0
A45: Plätze gesamt | F45: =SUM(D43:F44) -> 171

Sheet Planungsraum 13
C1: KiTa-Bedarfsplan | G1: Kreis Plön | H1: Planungsraum 13 | I1: Amt Preetz-Land
E3: Abschnitt 1 | J3: Abschnitt 2
A4: Nr. | B4: Ortsteil | C4: Gruppenart | D4: Gruppengröße | G4: Öffnungszeiten/Woche | H4: Sonstige Festlegungen | I4: Kitaname | J4: Träger | K4: Förderzeitraum
D5: U3 | E5: Ü3 | F5: Hort
A6: 1 | B6: Schellhorn | C6: Erg. u. Rz. mittlere Kindergartengruppe (15) | E6: 15 | G6: 7.5 | I6: Ev. Kindertagesstätte Pusteblume: Kindergarten | J6: Ev.-Luth. Kirchengemeinde Preetz | K6: 01.01.2021-31.12.2024
A7: 2 | B7: Schellhorn | C7: Erg. u. Rz. mittlere Kindergartengruppe (15) | E7: 15 | G7: 7.5 | I7: Ev. Kindertagesstätte Pusteblume: Kindergarten | J7: Ev.-Luth. Kirchengemeinde Preetz | K7: 01.01.2021-31.12.2024
A8: 3 | B8: Schellhorn | C8: Kindergartengruppe | E8: 20 | G8: 25 | I8: Ev. Kindertagesstätte Pusteblume: Kindergarten | J8: Ev.-Luth. Kirchengemeinde Preetz | K8: 01.01.2021-31.12.2024
A9: 4 | B9: Schellhorn | C9: Kindergartengruppe | E9: 20 | G9: 25 | I9: Ev. Kindertagesstätte Pusteblume: Kindergarten | J9: Ev.-Luth. Kirchengemeinde Preetz | K9: 01.01.2021-31.12.2024
A10: 5 | B10: Schellhorn | C10: Erg. u. Rz. Krippengruppe | D10: 10 | G10: 10 | I10: Ev. Kindertagesstätte Pusteblume: Krippe | J10: Ev.-Luth. Kirchengemeinde Preetz | K10: 01.01.2021-31.12.2024
A11: 6 | B11: Schellhorn | C11: Erg. u. Rz. Krippengruppe | D11: 10 | G11: 10 | I11: Ev. Kindertagesstätte Pusteblume: Krippe | J11: Ev.-Luth. Kirchengemeinde Preetz | K11: 01.01.2021-31.12.2024
A12: 7 | B12: Schellhorn | C12: Krippengruppe | D12: 10 | G12: 20 | I12: Ev. Kindertagesstätte Pusteblume: Krippe | J12: Ev.-Luth. Kirchengemeinde Preetz | K12: 01.01.2021-31.12.2024
A13: 8 | B13: Schellhorn | C13: Krippengruppe | D13: 10 | G13: 20 | I13: Ev. Kindertagesstätte Pusteblume: Krippe | J13: Ev.-Luth. Kirchengemeinde Preetz | K13: 01.01.2021-31.12.2024
A14: 9 | B14: Schellhorn | C14: Erg. u. Rz. Kleine Krippengruppe | D14: 5 | G14: 2.5 | I14: Ev. Kindertagesstätte Pusteblume: Krippe | J14: Ev.-Luth. Kirchengemeinde Preetz | K14: 01.01.2021-31.12.2024
A15: 10 | B15: Schellhorn | C15: Erg. u. Rz. Kleine Krippengruppe | D15: 5 | G15: 2.5 | I15: Ev. Kindertagesstätte Pusteblume: Krippe | J15: Ev.-Luth. Kirchengemeinde Preetz | K15: 01.01.2021-31.12.2024
A16: 11 | B16: Rastorf | C16: altersgemischte Gruppe | D16: 5 | E16: 10 | G16: 40 | I16: Ev.-Luth. KiTa "Arche Noah in Rosenfeld" | J16: Ev.-Luth. Kirchenkreis Plön-Segeberg (PLÖ) | K16: 01.01.2021-31.12.2024
A17: 12 | B17: Rastorf | C17: altersgemischte Gruppe | D17: 5 | E17: 10 | G17: 40 | I17: Ev.-Luth. KiTa "Arche Noah in Rosenfeld" | J17: Ev.-Luth. Kirchenkreis Plön-Segeberg (PLÖ)
A18: 13 | B18: Kirchbarkau | C18: Erg. u. Rz. Kindergartengruppe | E18: 20 | G18: 5 | I18: Ev.-Luth. Kita Unterm Regenbogen | J18: Ev.-Lutherischer Kirchenkreis Altholstein (PLÖ) | K18: 01.01.2021-31.12.2024
A19: 14 | B19: Kirchbarkau | C19: Erg. u. Rz. kleine Krippengruppe (5) | D19: 5 | G19: 5 | I19: Ev.-Luth. Kita Unterm Regenbogen | J19: Ev.-Lutherischer Kirchenkreis Altholstein (PLÖ) | K19: 01.01.2021-31.12.2024
A20: 15 | B20: Kirchbarkau | C20: Erg. u. Rz. kleine altersgemischte Gruppe | D20: 3 | E20: 4 | G20: 15 | I20: Ev.-Luth. Kita Unterm Regenbogen | J20: Ev.-Lutherischer Kirchenkreis Altholstein (PLÖ) | K20: 01.01.2021-31.12.2024
A21: 16 | B21: Kirchbarkau | C21: altersgemischte Gruppe | D21: 5 | E21: 10 | G21: 25 | I21: Ev.-Luth. Kita Unterm Regenbogen | J21: Ev.-Lutherischer Kirchenkreis Altholstein (PLÖ) | K21: 01.01.2021-31.12.2024
A22: 17 | B22: Kirchbarkau | C22: Krippengruppe | D22: 10 | G22: 40 | I22: Ev.-Luth. Kita Unterm Regenbogen | J22: Ev.-Lutherischer Kirchenkreis Altholstein (PLÖ) | K22: 01.01.2021-31.12.2024
A23: 18 | B23: Kirchbarkau | C23: Kindergartengruppe | E23: 20 | G23: 40 | I23: Ev.-Luth. Kita Unterm Regenbogen | J23: Ev.-Lutherischer Kirchenkreis Altholstein (PLÖ) | K23: 01.01.2021-31.12.2024
A24: 19 | B24: Kirchbarkau | C24: Kindergartengruppe | E24: 20 | G24: 40 | I24: Ev.-Luth. Kita Unterm Regenbogen | J24: Ev.-Lutherischer Kirchenkreis Altholstein (PLÖ) | K24: 01.01.2021-31.12.2024
A25: 20
A26: 21 | B26: Nettelsee | C26: Erg. u. Rz. kleine altersgemischte Gruppe | D26: 3 | E26: 4 | G26: 5 | I26: Johanniter Kindergarten Nettelsee | J26: Johanniter-Unfall-Hilfe e.V. (PLÖ) | K26: 01.01.2021-31.12.2024
A27: 22 | B27: Nettelsee | C27: Erg. u. Rz. Altersgemischte Gruppe | D27: 5 | E27: 10 | G27: 7.5 | I27: Johanniter Kindergarten Nettelsee | J27: Johanniter-Unfall-Hilfe e.V. (PLÖ) | K27: 01.01.2021-31.12.2024
A28: 23 | B28: Nettelsee | C28: Kindergartengruppe | E28: 20 | G28: 22.5 | I28: Johanniter Kindergarten Nettelsee | J28: Johanniter-Unfall-Hilfe e.V. (PLÖ) | K28: 01.01.2021-31.12.2024
A29: 24 | B29: Nettelsee | C29: altersgemischte Gruppe | E29: 10 | G29: 22.5 | I29: Johanniter Kindergarten Nettelsee | J29: Johanniter-Unfall-Hilfe e.V. (PLÖ) | K29: 01.01.2021-31.12.2024
A30: 25 | B30: Boksee | C30: Natur-Kindergartengruppe | E30: 16 | G30: 32.5 | I30: Kindergarten Boksee e.V. | J30: Kindergarten Boksee e.V. | K30: 01.01.2021-31.12.2024
A31: 26 | B31: Postfeld | C31: altersgemischte Gruppe | D31: 5 | E31: 10 | G31: 36.5 | I31: Kindergarten Krümelbande | J31: Gemeinden Postfeld c/o Amt Preetz-Land | K31: 01.01.2021-31.12.2024
A32: 27 | B32: Lehmkuhlen | C32: Erg. u. Rz. mittlere Kindergartengruppe (15) | E32: 15 | G32: 15 | I32: Kindergarten Lehmkuhlener Wühlmäuse | J32: Gemeinde Lehmkuhlen c/o Amt Preetz-Land | K32: 01.01.2021-31.12.2024
A33: 28 | B33: Lehmkuhlen | C33: Erg. u. Rz. Kindergartengruppe | E33: 20 | G33: 15 | I33: Kindergarten Lehmkuhlener Wühlmäuse | J33: Gemeinde Lehmkuhlen c/o Amt Preetz-Land | K33: 01.01.2021-31.12.2024
A34: 29 | B34: Lehmkuhlen | C34: Krippengruppe | D34: 10 | G34: 26 | I34: Kindergarten Lehmkuhlener Wühlmäuse | J34: Gemeinde Lehmkuhlen c/o Amt Preetz-Land | K34: 01.01.2021-31.12.2024
A35: 30 | B35: Lehmkuhlen | C35: Kindergartengruppe | E35: 20 | G35: 25 | I35: Kindergarten Lehmkuhlener Wühlmäuse | J35: Gemeinde Lehmkuhlen c/o Amt Preetz-Land | K35: 01.01.2021-31.12.2024
A36: 31 | B36: Lehmkuhlen | C36: Kindergartengruppe | E36: 20 | G36: 25 | I36: Kindergarten Lehmkuhlener Wühlmäuse | J36: Gemeinde Lehmkuhlen c/o Amt Preetz-Land | K36: 01.01.2021-31.12.2024
A37: 32 | B37: Lehmkuhlen | C37: Erg. u. Rz. Krippengruppe | D37: 10 | G37: 3.5 | I37: Kindergarten Lehmkuhlener Wühlmäuse | J37: Gemeinde Lehmkuhlen c/o Amt Preetz-Land | K37: 01.01.2021-31.12.2024
A38: 33 | B38: Lehmkuhlen | C38: Erg. u. Rz. Krippengruppe | D38: 10 | G38: 10 | I38: Kindergarten Lehmkuhlener Wühlmäuse | J38: Gemeinde Lehmkuhlen c/o Amt Preetz-Land | K38: 01.01.2021-31.12.2024
A39: 34 | B39: Pohnsdorf | C39: altersgemischte Gruppe | D39: 5 | E39: 10 | G39: 32.5 | I39: Kindergarten Pohnsdorf e.V. | J39: Kindergarten Pohnsdorf e.V. | K39: 01.01.2021-31.12.2024
A40: 35 | B40: Großbarkau | C40: Natur-Kindergartengruppe | E40: 16 | G40: 30 | I40: Kita Natura Großbarkau | J40: Kita Natura eG (PLÖ) | K40: 01.01.2021-31.12.2024
A41: 36 | B41: Warnau | C41: Erg. u. Rz. mittlere Kindergartengruppe (15) | E41: 15 | G41: 8 | I41: Montessori Kinderhaus Warnau e.V. | J41: Montessori Kinderhaus Warnau e.V. | K41: 01.01.2021-31.12.2024
A42: 37 | B42: Warnau | C42: Kindergartengruppe | E42: 20 | G42: 27.5 | I42: Montessori Kinderhaus Warnau e.V. | J42: Montessori Kinderhaus Warnau e.V. | K42: 01.01.2021-31.12.2024
A43: 38 | B43: Löptin | C43: Natur-Kindergartengruppe | E43: 16 | G43: 30 | I43: Kita Natura Löptin | J43: Kita Natura eG (PLÖ) | K43: 01.01.2021-31.12.2024
A44: 39
A45: 40
A46: 41
A47: 42
A48: 43
A49: Plätze U3 | D49: =SUMIF(C6:C48, "Krippengruppe", D6:D48) + SUMIF(C6:C48, "altersgemischte Gruppe", D6:D48) + SUMIF(C6:C48, "kleine*", D6:D48) -> 65
A50: Plätze Ü3 | E50: =SUMIF(C6:C48, "Kindergartengruppe", E6:E48) + SUMIF(C6:C48, "altersgemischte Gruppe",E6:E48) + SUMIF(C6:C48, "Natur-Kindergartengruppe", E6:E48) + SUMIF(C6:C48, "mittlere Kindergartengruppe*", E6:E48) + SUMIF(C6:C48, "integrative Kindergartengruppe", E6:E48) + SUMIF(C6:C48, "kleine Kinderg*", E6:E48) -> 268 | F50: =SUMIF(C23:C48, "Kindergartengruppe", F23:F48) + SUMIF(C23:C48, "mittlere Kindergartengruppe (15)", F23:F48) + SUMIF(C23:C48, "kleine Kindergartengruppe (10)", F23:F48) -> 0
A51: Plätze gesamt | F51: =SUM(D49:F50) -> 333
E52: Kindertagespflege
A53: Plätze U3 | D53: 65
A54: Plätze Ü3 | E54: 0 | F54: 0
A55: Plätze gesamt | F55: =SUM(D53:F54) -> 65
E56: Plätze gesamt
A57: Plätze U3 | D57: =D53+D49 -> 130
A58: Plätze Ü3 | E58: =E54+E50 -> 268 | F58: =F54+F50 -> 0
A59: Plätze gesamt | F59: =SUM(D57:F58) -> 398

Sheet Planungsraum 14
C1: KiTa-Bedarfsplan | G1: Kreis Plön | H1: Planungsraum 14 | I1: Amt Probstei
E3: Abschnitt 1 | J3: Abschnitt 2
A4: Nr. | B4: Ortsteil | C4: Gruppenart | D4: Gruppengröße | G4: Öffnungszeiten/Woche | H4: Sonstige Festlegungen | I4: Kitaname | J4: Träger | K4: Förderzeitraum
D5: U3 | E5: Ü3 | F5: Hort
A6: 1 | B6: Schönberg | C6: Kindergartengruppe | E6: 20 | G6: 30 | I6: ASB Kita Bullerbü Schönberg | J6: Arbeiter-Samariter-Bund | K6: 01.01.2021-31.12.2024
A7: 2 | B7: Schönberg | C7: Erg. u. Rz. Krippengruppe | E7: 10 | G7: 5 | I7: ASB Kita Bullerbü Schönberg | J7: Arbeiter-Samariter-Bund | K7: 01.01.2021-31.12.2024
A8: 3 | B8: Schönberg | C8: Erg. u. Rz. altersgemischte Gruppe | D8: 5 | E8: 10 | G8: 5 | I8: ASB Kita Bullerbü Schönberg | J8: Arbeiter-Samariter-Bund | K8: 01.01.2021-31.12.2024
A9: 4 | B9: Schönberg | C9: Erg. u. Rz. altersgemischte Gruppe | D9: 5 | E9: 10 | G9: 5 | I9: ASB Kita Bullerbü Schönberg | J9: Arbeiter-Samariter-Bund | K9: 01.01.2021-31.12.2024
A10: 5 | B10: Schönberg | C10: Erg. u. Rz. altersgemischte Gruppe | D10: 5 | E10: 10 | G10: 5 | I10: ASB Kita Bullerbü Schönberg | J10: Arbeiter-Samariter-Bund | K10: 01.01.2021-31.12.2024
A11: 6 | B11: Schönberg | C11: Erg. u. Rz. kleine Kindergartengruppe (10) | E11: 10 | G11: 5 | I11: ASB Kita Bullerbü Schönberg | J11: Arbeiter-Samariter-Bund | K11: 01.01.2021-31.12.2024
A12: 7 | B12: Schönberg | C12: Erg. u. Rz. Krippengruppe | D12: 10 | G12: 5 | I12: ASB Kita Bullerbü Schönberg | J12: Arbeiter-Samariter-Bund | K12: 01.01.2021-31.12.2024
A13: 8 | B13: Schönberg | C13: Krippengruppe | D13: 10 | G13: 30 | I13: ASB Kita Bullerbü Schönberg | J13: Arbeiter-Samariter-Bund | K13: 01.01.2021-31.12.2024
A14: 9 | B14: Schönberg | C14: Krippengruppe | D14: 10 | G14: 30 | I14: ASB Kita Bullerbü Schönberg | J14: Arbeiter-Samariter-Bund | K14: 01.01.2021-31.12.2024
A15: 10 | B15: Schönberg | C15: altersgemischte Gruppe | D15: 5 | E15: 10 | G15: 30 | I15: ASB Kita Bullerbü Schönberg | J15: Arbeiter-Samariter-Bund | K15: 01.01.2021-31.12.2024
A16: 11 | B16: Schönberg | C16: Kindergartengruppe | E16: 20 | G16: 30 | I16: AWO Kinderhaus Schönberg | J16: AWO Landesverband Schleswig-Holstein e.V. (PLÖ) | K16: 01.01.2021-31.12.2024
A17: 12 | B17: Schönberg | C17: Erg. u. Rz. kleine Kindergartengruppe (10) | E17: 10 | G17: 10 | I17: AWO Kinderhaus Schönberg | J17: AWO Landesverband Schleswig-Holstein e.V. (PLÖ) | K17: 01.01.2021-31.12.2024
A18: 13 | B18: Schönberg | C18: altersgemischte Gruppe | D18: 5 | E18: 10 | G18: 30 | I18: AWO Kinderhaus Schönberg | J18: AWO Landesverband Schleswig-Holstein e.V. (PLÖ) | K18: 01.01.2021-31.12.2024
A19: 14 | B19: Schönberg | C19: Erg. u. Rz. altersgemischte Gruppe | D19: 5 | E19: 10 | G19: 5 | I19: AWO Kinderhaus Schönberg | J19: AWO Landesverband Schleswig-Holstein e.V. (PLÖ) | K19: 01.01.2021-31.12.2024
A20: 15 | B20: Schönberg | C20: Erg. u. Rz. altersgemischte Gruppe | D20: 5 | E20: 10 | G20: 10 | I20: AWO Kinderhaus Schönberg | J20: AWO Landesverband Schleswig-Holstein e.V. (PLÖ) | K20: 01.01.2021-31.12.2024
A21: 16 | B21: Schönberg | C21: Krippengruppe | D21: 10 | G21: 35 | I21: AWO Kinderhaus Schönberg | J21: AWO Landesverband Schleswig-Holstein e.V. (PLÖ) | K21: 01.01.2021-31.12.2024
A22: 17 | B22: Schönberg | C22: Kindergartengruppe | E22: 20 | G22: 30 | I22: AWO Kinderhaus Schönberg | J22: AWO Landesverband Schleswig-Holstein e.V. (PLÖ) | K22: 01.01.2021-31.12.2024
A23: 18 | B23: Laboe | C23: Kindergartengruppe | E23: 20 | G23: 40 | I23: AWO Kinderhaus Laboe | J23: AWO Landesverband Schleswig-Holstein e.V. (PLÖ) | K23: 01.01.2021-31.12.2024
A24: 19 | B24: Laboe | C24: Erg. u. Rz. kleine altersgemischte Gruppe | D24: 3 | E24: 4 | G24: 5 | I24: AWO Kinderhaus Laboe | J24: AWO Landesverband Schleswig-Holstein e.V. (PLÖ) | K24: 01.01.2021-31.12.2024
A25: 20 | B25: Laboe | C25: altersgemischte Gruppe | D25: 5 | E25: 10 | G25: 30 | I25: AWO Kinderhaus Laboe | J25: AWO Landesverband Schleswig-Holstein e.V. (PLÖ) | K25: 01.01.2021-31.12.2024
A26: 21 | B26: Laboe | C26: Krippengruppe | D26: 10 | G26: 40 | I26: AWO Kinderhaus Laboe | J26: AWO Landesverband Schleswig-Holstein e.V. (PLÖ) | K26: 01.01.2021-31.12.2024
A27: 22 | B27: Laboe | C27: Natur-Kindergartengruppe | E27: 16 | G27: 25 | I27: DRK Kindertagesstätte Laboe | J27: DRK Ortsverein Laboe e.V. | K27: 01.01.2021-31.12.2024
A28: 23 | B28: Laboe | C28: Erg. u. Rz. Kindergartengruppe | E28: 20 | G28: 2.5 | I28: DRK Kindertagesstätte Laboe | J28: DRK Ortsverein Laboe e.V. | K28: 01.01.2021-31.12.2024
A29: 24 | B29: Laboe | C29: Erg. u. Rz. Kindergartengruppe | E29: 20 | G29: 2.5 | I29: DRK Kindertagesstätte Laboe | J29: DRK Ortsverein Laboe e.V. | K29: 01.01.2021-31.12.2024
A30: 25 | B30: Laboe | C30: Erg. u. Rz. Krippengruppe | D30: 10 | G30: 2.5 | I30: DRK Kindertagesstätte Laboe | J30: DRK Ortsverein Laboe e.V. | K30: 01.01.2021-31.12.2024
A31: 26 | B31: Laboe | C31: Erg. u. Rz. Krippengruppe | D31: 10 | G31: 2.5 | I31: DRK Kindertagesstätte Laboe | J31: DRK Ortsverein Laboe e.V. | K31: 01.01.2021-31.12.2024
A32: 27 | B32: Laboe | C32: Kindergartengruppe | E32: 20 | G32: 25 | I32: DRK Kindertagesstätte Laboe | J32: DRK Ortsverein Laboe e.V. | K32: 01.01.2021-31.12.2024
A33: 28 | B33: Laboe | C33: altersgemischte Gruppe | D33: 5 | E33: 10 | G33: 25 | I33: DRK Kindertagesstätte Laboe | J33: DRK Ortsverein Laboe e.V. | K33: 01.01.2021-31.12.2024
A34: 29 | B34: Laboe | C34: Erg. u. Rz. Kindergartengruppe | E34: 20 | G34: 5 | I34: DRK Kindertagesstätte Laboe | J34: DRK Ortsverein Laboe e.V. | K34: 01.01.2021-31.12.2024
A35: 30 | B35: Laboe | C35: Erg. u. Rz. Kindergartengruppe | E35: 20 | G35: 5 | I35: DRK Kindertagesstätte Laboe | J35: DRK Ortsverein Laboe e.V. | K35: 01.01.2021-31.12.2024
A36: 31 | B36: Laboe | C36: Erg. u. Rz. Kindergartengruppe | E36: 20 | G36: 5 | I36: DRK Kindertagesstätte Laboe | J36: DRK Ortsverein Laboe e.V. | K36: 01.01.2021-31.12.2024
A37: 32 | B37: Laboe | C37: Erg. u. Rz. Kindergartengruppe | E37: 20 | G37: 5 | I37: DRK Kindertagesstätte Laboe | J37: DRK Ortsverein Laboe e.V. | K37: 01.01.2021-31.12.2024
A38: 33 | B38: Laboe | C38: Erg. u. Rz. Kindergartengruppe | E38: 20 | G38: 5 | I38: DRK Kindertagesstätte Laboe | J38: DRK Ortsverein Laboe e.V. | K38: 01.01.2021-31.12.2024
A39: 34 | B39: Laboe | C39: Erg. u. Rz. Kindergartengruppe | E39: 20 | G39: 5 | I39: DRK Kindertagesstätte Laboe | J39: DRK Ortsverein Laboe e.V. | K39: 01.01.2021-31.12.2024
A40: 35 | B40: Laboe | C40: Erg. u. Rz. Kindergartengruppe | E40: 20 | G40: 5 | I40: DRK Kindertagesstätte Laboe | J40: DRK Ortsverein Laboe e.V. | K40: 01.01.2021-31.12.2024
A41: 36 | B41: Laboe | C41: Erg. u. Rz. Krippengruppe | D41: 10 | G41: 5 | I41: DRK Kindertagesstätte Laboe | J41: DRK Ortsverein Laboe e.V. | K41: 01.01.2021-31.12.2024
A42: 37 | B42: Laboe | C42: Erg. u. Rz. Krippengruppe | D42: 10 | G42: 5 | I42: DRK Kindertagesstätte Laboe | J42: DRK Ortsverein Laboe e.V. | K42: 01.01.2021-31.12.2024
A43: 38 | B43: Laboe | C43: Erg. u. Rz. Kleine Krippengruppe | D43: 5 | G43: 5 | I43: DRK Kindertagesstätte Laboe | J43: DRK Ortsverein Laboe e.V. | K43: 01.01.2021-31.12.2024
A44: 39 | B44: Laboe | C44: Erg. u. Rz. Krippengruppe | D44: 10 | G44: 5 | I44: DRK Kindertagesstätte Laboe | J44: DRK Ortsverein Laboe e.V. | K44: 01.01.2021-31.12.2024
A45: 40 | B45: Laboe | C45: Erg. u. Rz. Krippengruppe | D45: 10 | G45: 5 | I45: DRK Kindertagesstätte Laboe | J45: DRK Ortsverein Laboe e.V. | K45: 01.01.2021-31.12.2024
A46: 41 | B46: Laboe | C46: Erg. u. Rz. Krippengruppe | D46: 10 | G46: 5 | I46: DRK Kindertagesstätte Laboe | J46: DRK Ortsverein Laboe e.V. | K46: 01.01.2021-31.12.2024
A47: 42 | B47: Laboe | C47: Erg. u. Rz. Krippengruppe | D47: 10 | G47: 5 | I47: DRK Kindertagesstätte Laboe | J47: DRK Ortsverein Laboe e.V. | K47: 01.01.2021-31.12.2024
A48: 43 | B48: Laboe | C48: Krippengruppe | D48: 10 | G48: 25 | I48: DRK Kindertagesstätte Laboe | J48: DRK Ortsverein Laboe e.V. | K48: 01.01.2021-31.12.2024
A49: 44 | B49: Laboe | C49: Krippengruppe | D49: 10 | G49: 25 | I49: DRK Kindertagesstätte Laboe | J49: DRK Ortsverein Laboe e.V. | K49: 01.01.2021-31.12.2024
A50: 45 | B50: Laboe | C50: Natur-Kindergartengruppe | E50: 16 | G50: 25 | I50: DRK Kindertagesstätte Laboe | J50: DRK Ortsverein Laboe e.V. | K50: 01.01.2021-31.12.2024
A51: 46 | B51: Laboe | C51: Krippengruppe | D51: 10 | G51: 25 | I51: DRK Kindertagesstätte Laboe | J51: DRK Ortsverein Laboe e.V. | K51: 01.01.2021-31.12.2024
A52: 47 | B52: Laboe | C52: Krippengruppe | D52: 10 | G52: 25 | I52: DRK Kindertagesstätte Laboe | J52: DRK Ortsverein Laboe e.V. | K52: 01.01.2021-31.12.2024
A53: 48 | B53: Laboe | C53: Kindergartengruppe | E53: 20 | G53: 25 | I53: DRK Kindertagesstätte Laboe | J53: DRK Ortsverein Laboe e.V. | K53: 01.01.2021-31.12.2024
A54: 49 | B54: Probsteierhagen | C54: Kindergartengruppe | E54: 20 | G54: 25 | I54: DRK-KiTa Probsteierhagen | J54: DRK-Ortsverein Probsteierhagen | K54: 01.01.2021-31.12.2024
A55: 50 | B55: Probsteierhagen | C55: Erg. u. Rz. altersgemischte Gruppe | D55: 5 | E55: 10 | G55: 5 | I55: DRK-KiTa Probsteierhagen | J55: DRK-Ortsverein Probsteierhagen | K55: 01.01.2021-31.12.2024
A56: 51 | B56: Probsteierhagen | C56: Erg. u. Rz. Kleine Krippengruppe | D56: 5 | G56: 5 | I56: DRK-KiTa Probsteierhagen | J56: DRK-Ortsverein Probsteierhagen | K56: 01.01.2021-31.12.2024
A57: 52 | B57: Probsteierhagen | C57: Erg. u. Rz. Kindergartengruppe | E57: 20 | G57: 5 | I57: DRK-KiTa Probsteierhagen | J57: DRK-Ortsverein Probsteierhagen | K57: 01.01.2021-31.12.2024
A58: 53 | B58: Probsteierhagen | C58: Erg. u. Rz. Kindergartengruppe | E58: 20 | G58: 10 | I58: DRK-KiTa Probsteierhagen | J58: DRK-Ortsverein Probsteierhagen | K58: 01.01.2021-31.12.2024
A59: 54 | B59: Probsteierhagen | C59: Erg. u. Rz. mittlere Kindergartengruppe (15) | E59: 15 | G59: 5 | I59: DRK-KiTa Probsteierhagen | J59: DRK-Ortsverein Probsteierhagen | K59: 01.01.2021-31.12.2024
A60: 55 | B60: Probsteierhagen | C60: Kindergartengruppe | E60: 20 | G60: 25 | I60: DRK-KiTa Probsteierhagen | J60: DRK-Ortsverein Probsteierhagen | K60: 01.01.2021-31.12.2024
A61: 56 | B61: Probsteierhagen | C61: Krippengruppe | D61: 10 | G61: 35 | I61: DRK-KiTa Probsteierhagen | J61: DRK-Ortsverein Probsteierhagen | K61: 01.01.2021-31.12.2024
A62: 57 | B62: Probsteierhagen | C62: Natur-Kindergartengruppe | E62: 16 | G62: 25 | I62: DRK-KiTa Probsteierhagen | J62: DRK-Ortsverein Probsteierhagen | K62: 01.01.2021-31.12.2024
A63: 58 | B63: Laboe | C63: altersgemischte Gruppe | D63: 5 | E63: 10 | G63: 30 | I63: Ev. Kindergarten "Kleiner Anker" | J63: Kirchenkreisverwaltung Segeberg/Plön | K63: 01.01.2021-31.12.2024
A64: 59 | B64: Laboe | C64: Erg. u. Rz. altersgemischte Gruppe | D64: 5 | E64: 10 | G64: 2.5 | I64: Ev. Kindergarten "Kleiner Anker" | J64: Kirchenkreisverwaltung Segeberg/Plön | K64: 01.01.2021-31.12.2024
A65: 60 | B65: Laboe | C65: Erg. u. Rz. mittlere Kindergartengruppe (15) | E65: 15 | G65: 10 | I65: Ev. Kindergarten "Kleiner Anker" | J65: Kirchenkreisverwaltung Segeberg/Plön | K65: 01.01.2021-31.12.2024
A66: 61 | B66: Laboe | C66: Kindergartengruppe | E66: 18 | G66: 25 | I66: Ev. Kindergarten "Kleiner Anker" | J66: Kirchenkreisverwaltung Segeberg/Plön | K66: 01.01.2021-31.12.2024
A67: 62 | B67: Laboe | C67: Kindergartengruppe | E67: 20 | G67: 30 | I67: Ev. Kindergarten "Kleiner Anker" | J67: Kirchenkreisverwaltung Segeberg/Plön | K67: 01.01.2021-31.12.2024
A68: 63 | B68: Schönberg | C68: Erg. u. Rz. altersgemischte Gruppe | D68: 5 | E68: 10 | G68: 5 | I68: Evangelische KiTa Tausendfüßler | J68: Ev.-Luth. Kichengemeinde Schönberg | K68: 01.01.2021-31.12.2024
A69: 64 | B69: Schönberg | C69: Erg. u. Rz. Kindergartengruppe | E69: 20 | G69: 5 | I69: Evangelische KiTa Tausendfüßler | J69: Ev.-Luth. Kichengemeinde Schönberg | K69: 01.01.2021-31.12.2024
A70: 65 | B70: Schönberg | C70: Erg. u. Rz. mittlere Kindergartengruppe (15) | E70: 15 | G70: 10 | I70: Evangelische KiTa Tausendfüßler | J70: Ev.-Luth. Kichengemeinde Schönberg | K70: 01.01.2021-31.12.2024
A71: 66 | B71: Schönberg | C71: Erg. u. Rz. Kindergartengruppe | E71: 20 | G71: 7.5 | I71: Evangelische KiTa Tausendfüßler | J71: Ev.-Luth. Kichengemeinde Schönberg | K71: 01.01.2021-31.12.2024
A72: 67 | B72: Schönberg | C72: Erg. u. Rz. altersgemischte Gruppe | D72: 5 | E72: 10 | G72: 7.5 | I72: Evangelische KiTa Tausendfüßler | J72: Ev.-Luth. Kichengemeinde Schönberg | K72: 01.01.2021-31.12.2024
A73: 68 | B73: Schönberg | C73: altersgemischte Gruppe | D73: 5 | E73: 10 | G73: 30 | I73: Evangelische KiTa Tausendfüßler | J73: Ev.-Luth. Kichengemeinde Schönberg | K73: 01.01.2021-31.12.2024
A74: 69 | B74: Schönberg | C74: Kindergartengruppe | E74: 20 | G74: 30 | I74: Evangelische KiTa Tausendfüßler | J74: Ev.-Luth. Kichengemeinde Schönberg | K74: 01.01.2021-31.12.2024
A75: 70 | B75: Schönberg | C75: Kindergartengruppe | E75: 20 | G75: 30 | I75: Evangelische KiTa Tausendfüßler | J75: Ev.-Luth. Kichengemeinde Schönberg | K75: 01.01.2021-31.12.2024
A76: 71 | B76: Schönberg | C76: Natur-Kindergartengruppe | E76: 16 | G76: 20 | I76: Evangelische KiTa Tausendfüßler | J76: Ev.-Luth. Kichengemeinde Schönberg | K76: 01.01.2021-31.12.2024
A77: 72 | B77: Schönberg | C77: Krippengruppe | D77: 10 | G77: 35 | I77: Evangelische KiTa Tausendfüßler | J77: Ev.-Luth. Kichengemeinde Schönberg | K77: 01.01.2021-31.12.2024
A78: 73 | B78: Wendtorf | C78: Erg. u. Rz. altersgemischte Gruppe | D78: 5 | E78: 10 | G78: 7.5 | I78: Gemeinschaftskindertagesstätte Wendtorf | J78: Gemeinde Wendtorf | K78: 01.01.2021-31.12.2024
A79: 74 | B79: Wendtorf | C79: Erg. u. Rz. altersgemischte Gruppe | D79: 5 | E79: 10 | G79: 5 | I79: Gemeinschaftskindertagesstätte Wendtorf | J79: Gemeinde Wendtorf | K79: 01.01.2021-31.12.2024
A80: 75 | B80: Wendtorf | C80: Erg. u. Rz. mittlere Kindergartengruppe (15) | E80: 15 | G80: 7.5 | I80: Gemeinschaftskindertagesstätte Wendtorf | J80: Gemeinde Wendtorf | K80: 01.01.2021-31.12.2024
A81: 76 | B81: Wendtorf | C81: Erg. u. Rz. altersgemischte Gruppe | D81: 5 | E81: 10 | G81: 5 | I81: Gemeinschaftskindertagesstätte Wendtorf | J81: Gemeinde Wendtorf | K81: 01.01.2021-31.12.2024
A82: 77 | B82: Wendtorf | C82: Natur-Kindergartengruppe | E82: 16 | G82: 25 | I82: Gemeinschaftskindertagesstätte Wendtorf | J82: Gemeinde Wendtorf | K82: 01.01.2021-31.12.2024
A83: 78 | B83: Wendtorf | C83: Kindergartengruppe | E83: 20 | G83: 30 | I83: Gemeinschaftskindertagesstätte Wendtorf | J83: Gemeinde Wendtorf | K83: 01.01.2021-31.12.2024
A84: 79 | B84: Wendtorf | C84: Kindergartengruppe | E84: 20 | G84: 27.5 | I84: Gemeinschaftskindertagesstätte Wendtorf | J84: Gemeinde Wendtorf | K84: 01.01.2021-31.12.2024
A85: 80 | B85: Wendtorf | C85: Krippengruppe | D85: 10 | G85: 32.5 | I85: Gemeinschaftskindertagesstätte Wendtorf | J85: Gemeinde Wendtorf | K85: 01.01.2021-31.12.2024
A86: 81 | B86: Wendtorf | C86: Krippengruppe | D86: 10 | G86: 27.5 | I86: Gemeinschaftskindertagesstätte Wendtorf | J86: Gemeinde Wendtorf | K86: 01.01.2021-31.12.2024
A87: 82 | B87: Schönberg | C87: Hortgruppe | F87: 20 | G87: 27.5 | I87: Hort Schönberg | J87: Der Schulverband Probstei | K87: 01.01.2021-31.12.2024
A88: 83 | B88: Schönberg | C88: Hortgruppe | F88: 20 | G88: 27.5 | I88: Hort Schönberg | J88: Der Schulverband Probstei | K88: 01.01.2021-31.12.2024
A89: 84 | B89: Schönberg | C89: Hortgruppe | F89: 20 | G89: 27.5 | I89: Hort Schönberg | J89: Der Schulverband Probstei | K89: 01.01.2021-31.12.2024
A90: 85 | B90: Schönberg | C90: Hortgruppe | F90: 20 | G90: 19 | I90: Hort Schönberg | J90: Der Schulverband Probstei | K90: 01.01.2021-31.12.2024
B91: Schönberg | C91: Hortgruppe | F91: 20 | G91: 24 | I91: Hort Schönberg | J91: Der Schulverband Probstei | K91: 01.01.2021-31.12.2024
A92: 86 | B92: Schönberg | C92: integrative Kindergartengruppe | E92: 15 | G92: 30 | I92: Integrativer Kindergarten Regenbogen - Außenstelle Schönberg | J92: Lebenshilfewerk Kreis Plön gGmbH | K92: 01.01.2021-31.12.2024
A93: 87 | B93: Schönberg | C93: integrative Kindergartengruppe | E93: 15 | G93: 30 | I93: Integrativer Kindergarten Regenbogen - Außenstelle Schönberg | J93: Lebenshilfewerk Kreis Plön gGmbH | K93: 01.01.2021-31.12.2024
A94: 88 | B94: Stoltenberg | C94: Kindergartengruppe | E94: 20 | G94: 35 | I94: Johanniter Kindertagesstätte "Die Schatzinsel" | J94: Johanniter-Unfall-Hilfe e.V. (PLÖ) | K94: 01.01.2021-31.12.2024
A95: 89 | B95: Schönberg | C95: Natur-Kindergartengruppe | E95: 16 | G95: 35 | I95: Johanniter Kindertagesstätte Strandpiraten | J95: Johanniter-Unfall-Hilfe e.V. (PLÖ) | K95: 01.01.2021-31.12.2024
A96: 90 | B96: Schönberg | C96: altersgemischte Gruppe | D96: 5 | E96: 10 | G96: 35 | I96: Johanniter Kindertagesstätte Strandpiraten | J96: Johanniter-Unfall-Hilfe e.V. (PLÖ) | K96: 01.01.2021-31.12.2024
A97: 91 | B97: Schönberg | C97: Erg. u. Rz. altersgemischte Gruppe | D97: 5 | E97: 10 | G97: 10 | I97: Johanniter Kindertagesstätte Strandpiraten | J97: Johanniter-Unfall-Hilfe e.V. (PLÖ) | K97: 01.01.2021-31.12.2024
A98: 92 | B98: Schönberg | C98: Kindergartengruppe | E98: 20 | G98: 32.5 | I98: Johanniter Kindertagesstätte Strandpiraten | J98: Johanniter-Unfall-Hilfe e.V. (PLÖ) | K98: 01.01.2021-31.12.2024
A99: 93 | B99: Köhn | C99: altersgemischte Gruppe | D99: 5 | E99: 10 | G99: 35 | I99: Kindertagesstätte "Peter Pan" der Gemeinde Köhn | J99: Gemeinde Köhn | K99: 01.01.2021-31.12.2024
A100: 94 | B100: Stein | C100: Kindergartengruppe | E100: 20 | G100: 30 | I100: Kindertagesstätte der Gemeinde Stein | J100: Gemeinde Stein | K100: 01.01.2021-31.12.2024
A101: 95 | B101: Stein | C101: Krippengruppe | D101: 10 | G101: 30 | I101: Kindertagesstätte der Gemeinde Stein | J101: Gemeinde Stein | K101: 01.01.2021-31.12.2024
A102: 96 | B102: Stein | C102: Erg. u. Rz. altersgemischte Gruppe | D102: 5 | E102: 10 | G102: 2.5 | I102: Kindertagesstätte der Gemeinde Stein | J102: Gemeinde Stein | K102: 01.01.2021-31.12.2024
A103: 97 | B103: Stein | C103: Erg. u. Rz. altersgemischte Gruppe | D103: 5 | E103: 10 | G103: 10 | I103: Kindertagesstätte der Gemeinde Stein | J103: Gemeinde Stein | K103: 01.01.2021-31.12.2024
A104: 98 | B104: Stein | C104: altersgemischte Gruppe | D104: 5 | E104: 10 | G104: 30 | I104: Kindertagesstätte der Gemeinde Stein | J104: Gemeinde Stein | K104: 01.01.2021-31.12.2024
A105: 99 | B105: Schönberg | C105: altersgemischte Gruppe | D105: 5 | E105: 10 | G105: 30 | I105: Kita Kunterbunt Probstei | J105: Kita Kunterbunt Probstei e.V. | K105: 01.01.2021-31.12.2024
A106: 100 | B106: Schönberg | C106: Erg. u. Rz. Kindergartengruppe | E106: 20 | G106: 5 | I106: Kita Kunterbunt Probstei | J106: Kita Kunterbunt Probstei e.V. | K106: 01.01.2021-31.12.2024
A107: 101 | B107: Schönberg | C107: Erg. u. Rz. Krippengruppe | D107: 10 | G107: 5 | I107: Kita Kunterbunt Probstei | J107: Kita Kunterbunt Probstei e.V. | K107: 01.01.2021-31.12.2024
A108: 102 | B108: Schönberg | C108: Erg. u. Rz. Kindergartengruppe | E108: 20 | G108: 15 | I108: Kita Kunterbunt Probstei | J108: Kita Kunterbunt Probstei e.V. | K108: 01.01.2021-31.12.2024
A109: 103 | B109: Schönberg | C109: Krippengruppe | D109: 10 | G109: 40 | I109: Kita Kunterbunt Probstei | J109: Kita Kunterbunt Probstei e.V. | K109: 01.01.2021-31.12.2024
A110: 104 | B110: Schönberg | C110: Kindergartengruppe | E110: 20 | G110: 30 | I110: Kita Kunterbunt Probstei | J110: Kita Kunterbunt Probstei e.V. | K110: 01.01.2021-31.12.2024
A111: 105 | B111: Krummbek | C111: Kindergartengruppe | E111: 18 | G111: 30 | H111: Natur-/Bauernhofpädagogik | I111: Kita Natura Krummbek | J111: Kita Natura eG (PLÖ) | K111: 01.01.2021-31.12.2024
A112: 106 | B112: Passade | C112: Kindergartengruppe | E112: 18 | G112: 30 | H112: Natur-/Bauernhofpädagogik | I112: Kita NATURA Passade | J112: Kita Natura eG (PLÖ) | K112: 01.01.2021-31.12.2024
A113: 107 | B113: Stakendorf | C113: Erg. u. Rz. kleine Kindergartengruppe (10) | E113: 10 | G113: 5 | I113: KitaStoppelhopser Stakendorf | J113: Elternverein Kita Stoppelhopser e.V. | K113: 01.01.2021-31.12.2024
A114: 108 | B114: Stakendorf | C114: altersgemischte Gruppe | D114: 5 | E114: 10 | G114: 25 | I114: KitaStoppelhopser Stakendorf | J114: Elternverein Kita Stoppelhopser e.V. | K114: 01.01.2021-31.12.2024
A115: 109 | B115: Probsteierhagen | C115: altersgemischte Gruppe | D115: 5 | E115: 10 | G115: 40 | I115: Pädiko Kindertagesstätte | J115: Pädiko e. V. | K115: 01.01.2021-31.12.2024
A116: 110 | B116: Probsteierhagen | C116: Krippengruppe | D116: 10 | G116: 40 | I116: Pädiko Kindertagesstätte | J116: Pädiko e. V. | K116: 01.01.2021-31.12.2024
A117: 111 | B117: Probsteierhagen | C117: altersgemischte Gruppe | D117: 5 | E117: 10 | G117: 40 | I117: Pädiko Kindertagesstätte | J117: Pädiko e. V. | K117: 01.01.2021-31.12.2024
A118: 112 | B118: Schönberg | C118: Krippengruppe | D118: 10 | G118: 30 | H118: Früh- und Spätdienst i.R.v. Randzeiten | I118: offen | J118: offen | K118: 2024-12-31
A119: 113 | B119: Schönberg | C119: altersgemischte Gruppe | D119: 5 | E119: 10 | G119: 30 | H119: Früh- und Spätdienst i.R.v. Randzeiten | I119: offen | J119: offen | K119: 2024-12-31
B120: Barsbek | C120: Kindergartengruppe | D120: 0 | E120: 18 | F120: 0 | H120: Natur-/Bauernhofpädagogik | I120: Kita NATURA Barsbek | J120: Kita Natura eG (PLÖ) | K120: 01.08.2023-01.08.2027
A128: Plätze U3 | D128: =SUMIF(C6:C127, "Krippengruppe", D6:D127) + SUMIF(C6:C127, "altersgemischte Gruppe", D6:D127) + SUMIF(C6:C127, "kleine*", D6:D127) -> 230
A129: Plätze Ü3 | E129: =SUMIF(C6:C127, "Kindergartengruppe", E6:E127) + SUMIF(C6:C127, "altersgemischte Gruppe",E6:E127) + SUMIF(C6:C127, "Natur-Kindergartengruppe", E6:E127) + SUMIF(C6:C127, "mittlere Kindergartengruppe*", E6:E127) + SUMIF(C6:C127, "integrative Kindergartengruppe", E6:E127) + SUMIF(C6:C127, "kleine Kinderg*", E6:E127) -> 678 | F129: =SUMIF(C79:C127, "Kindergartengruppe", F79:F127) + SUMIF(C79:C127, "mittlere Kindergartengruppe (15)", F79:F127) + SUMIF(C79:C127, "kleine Kindergartengruppe (10)", F79:F127) -> 0
A130: Plätze gesamt | F130: =SUM(D128:F129) -> 908
E131: Kindertagespflege
A132: Plätze U3 | D132: 60
A133: Plätze Ü3 | E133: 0 | F133: 0
A134: Plätze gesamt | F134: =SUM(D132:F133) -> 60
E135: Plätze gesamt
A136: Plätze U3 | D136: =D132+D128 -> 290
A137: Plätze Ü3 | E137: =E133+E129 -> 678 | F137: =F133+F129 -> 0
A138: Plätze gesamt | F138: =SUM(D136:F137) -> 968

Sheet Planungsraum 15
C1: KiTa-Bedarfsplan | G1: Kreis Plön | H1: Planungsraum 15 | I1: Amt Schrevenborn
E3: Abschnitt 1 | J3: Abschnitt 2
A4: Nr. | B4: Ortsteil | C4: Gruppenart | D4: Gruppengröße | G4: Öffnungszeiten/Woche | H4: Sonstige Festlegungen | I4: Kitaname | J4: Träger | K4: Förderzeitraum
D5: U3 | E5: Ü3 | F5: Hort
A6: 1 | B6: Mönkeberg | C6: altersgemischte Gruppe | D6: 5 | E6: 10 | G6: 45 | I6: AWO Kinderhaus Mönkeberg | J6: AWO Landesverband Schleswig-Holstein e.V. (PLÖ) | K6: 01.01.2021-31.12.2024
A7: 2 | B7: Mönkeberg | C7: Kindergartengruppe | E7: 20 | G7: 35 | I7: AWO Kinderhaus Mönkeberg | J7: AWO Landesverband Schleswig-Holstein e.V. (PLÖ) | K7: 01.01.2021-31.12.2024
A8: 3 | B8: Mönkeberg | C8: Kindergartengruppe | E8: 20 | G8: 35 | I8: AWO Kinderhaus Mönkeberg | J8: AWO Landesverband Schleswig-Holstein e.V. (PLÖ) | K8: 01.01.2021-31.12.2024
A9: 4 | B9: Mönkeberg | C9: Kindergartengruppe | E9: 20 | G9: 45 | I9: AWO Kinderhaus Mönkeberg | J9: AWO Landesverband Schleswig-Holstein e.V. (PLÖ) | K9: 01.01.2021-31.12.2024
A10: 5 | B10: Mönkeberg | C10: Krippengruppe | D10: 10 | G10: 35 | I10: AWO Kinderhaus Mönkeberg | J10: AWO Landesverband Schleswig-Holstein e.V. (PLÖ) | K10: 01.01.2021-31.12.2024
A11: 6 | B11: Mönkeberg | C11: Krippengruppe | D11: 10 | G11: 45 | I11: AWO Kinderhaus Mönkeberg | J11: AWO Landesverband Schleswig-Holstein e.V. (PLÖ) | K11: 01.01.2021-31.12.2024
A12: 7 | B12: Mönkeberg | C12: Erg. u. Rz.kleine Kindergarten | D12: 0 | E12: 10 | G12: 5 | I12: AWO Kinderhaus Mönkeberg | J12: AWO Landesverband Schleswig-Holstein e.V. (PLÖ) | K12: 01.01.2021-31.12.2024
A13: 8 | B13: Mönkeberg | C13: Erg. u. Rz. kleine Kindergarten | D13: 0 | E13: 10 | G13: 5 | I13: AWO Kinderhaus Mönkeberg | J13: AWO Landesverband Schleswig-Holstein e.V. (PLÖ) | K13: 01.01.2021-31.12.2024
A14: 9 | B14: Mönkeberg | C14: Erg. u. Rz. Kindergartengruppe | E14: 20 | G14: 5 | I14: AWO Kinderhaus Mönkeberg | J14: AWO Landesverband Schleswig-Holstein e.V. (PLÖ) | K14: 01.01.2021-31.12.2024
A15: 10 | B15: Schönkirchen | C15: Kindergartengruppe | E15: 20 | G15: 37.5 | I15: AWO Kinderhaus Schönkirchen | J15: AWO Landesverband Schleswig-Holstein e.V. (PLÖ) | K15: 01.01.2021-31.12.2024
A16: 11 | B16: Schönkirchen | C16: Kindergartengruppe | E16: 20 | G16: 37.5 | I16: AWO Kinderhaus Schönkirchen | J16: AWO Landesverband Schleswig-Holstein e.V. (PLÖ) | K16: 01.01.2021-31.12.2024
A17: 12 | B17: Schönkirchen | C17: Erg. u. Rz. Kindergartengruppe | E17: 20 | G17: 5 | I17: AWO Kinderhaus Schönkirchen | J17: AWO Landesverband Schleswig-Holstein e.V. (PLÖ) | K17: 01.01.2021-31.12.2024
B18: Schönkirchen | C18: Erg. u. Rz. Kindergartengruppe | E18: 20 | G18: 5 | I18: AWO Kinderhaus Schönkirchen | J18: AWO Landesverband Schleswig-Holstein e.V. (PLÖ) | K18: 01.01.2021-31.12.2024
B19: Schönkirchen | C19: Erg. u. Rz. Krippengruppe | D19: 10 | G19: 5 | I19: AWO Kinderhaus Schönkirchen | J19: AWO Landesverband Schleswig-Holstein e.V. (PLÖ) | K19: 01.01.2021-31.12.2024
A20: 13 | B20: Schönkirchen | C20: Kindergartengruppe | E20: 20 | G20: 37.5 | I20: AWO Kinderhaus Schönkirchen | J20: AWO Landesverband Schleswig-Holstein e.V. (PLÖ) | K20: 01.01.2021-31.12.2024
A21: 14 | B21: Schönkirchen | C21: Krippengruppe | D21: 10 | G21: 37.5 | I21: AWO Kinderhaus Schönkirchen | J21: AWO Landesverband Schleswig-Holstein e.V. (PLÖ) | K21: 01.01.2021-31.12.2024
A22: 15 | B22: Schönkirchen | C22: Krippengruppe | D22: 10 | G22: 37.5 | I22: AWO Kinderhaus Schönkirchen | J22: AWO Landesverband Schleswig-Holstein e.V. (PLÖ) | K22: 01.01.2021-31.12.2024
A23: 16 | B23: Schönkirchen | C23: Erg. u. Rz. kleine Kindergartengruppe (10) | E23: 10 | G23: 7.5 | I23: AWO Kinderhaus Schönkirchen | J23: AWO Landesverband Schleswig-Holstein e.V. (PLÖ) | K23: 01.01.2021-31.12.2024
A24: 17 | B24: Schönkirchen | C24: Erg. u. Rz. kleine Krippengruppe (5) | D24: 5 | G24: 7.5 | I24: AWO Kinderhaus Schönkirchen | J24: AWO Landesverband Schleswig-Holstein e.V. (PLÖ) | K24: 01.01.2021-31.12.2024
A25: 18 | B25: Schönkirchen | C25: Natur-Kindergartengruppe | E25: 16 | G25: 37.5 | I25: AWO Kinderhaus Schönkirchen | J25: AWO Landesverband Schleswig-Holstein e.V. (PLÖ) | K25: 01.01.2021-31.12.2024
A26: 19 | B26: Schönkirchen | C26: Kindergartengruppe | E26: 20 | G26: 37.5 | I26: AWO Kinderhaus Schönkirchen | J26: AWO Landesverband Schleswig-Holstein e.V. (PLÖ) | K26: 01.01.2021-31.12.2024
A27: 20 | B27: Heikendorf | C27: altersgemischte Gruppe | D27: 5 | E27: 10 | G27: 30 | I27: AWO Kita Heikendorf | J27: AWO Landesverband Schleswig-Holstein e.V. (PLÖ) | K27: 01.01.2021-31.12.2024
A28: 21 | B28: Heikendorf | C28: altersgemischte Gruppe | D28: 5 | E28: 10 | G28: 30 | I28: AWO Kita Heikendorf | J28: AWO Landesverband Schleswig-Holstein e.V. (PLÖ) | K28: 01.01.2021-31.12.2024
A29: 22 | B29: Heikendorf | C29: Kindergartengruppe | E29: 20 | G29: 40 | I29: AWO Kita Heikendorf | J29: AWO Landesverband Schleswig-Holstein e.V. (PLÖ) | K29: 01.01.2021-31.12.2024
A30: 23 | B30: Heikendorf | C30: Erg. u. Rz. kleine altersgemischte Gruppe | D30: 3 | E30: 4 | G30: 5 | I30: AWO Kita Heikendorf | J30: AWO Landesverband Schleswig-Holstein e.V. (PLÖ) | K30: 01.01.2021-31.12.2024
A31: 24 | B31: Heikendorf | C31: Krippengruppe | D31: 10 | G31: 40 | I31: AWO Kita Heikendorf | J31: AWO Landesverband Schleswig-Holstein e.V. (PLÖ) | K31: 01.01.2021-31.12.2024
A32: 25 | B32: Heikendorf | C32: Krippengruppe | D32: 10 | G32: 40 | I32: AWO Kita Heikendorf | J32: AWO Landesverband Schleswig-Holstein e.V. (PLÖ) | K32: 01.01.2021-31.12.2024
A33: 26 | B33: Heikendorf | C33: Erg. u. Rz. kleine altersgemischte Gruppe | D33: 3 | E33: 4 | G33: 5 | I33: AWO Kita Heikendorf | J33: AWO Landesverband Schleswig-Holstein e.V. (PLÖ) | K33: 01.01.2021-31.12.2024
A34: 27 | B34: Heikendorf | C34: Kindergartengruppe | E34: 20 | G34: 40 | I34: AWO Kita Heikendorf | J34: AWO Landesverband Schleswig-Holstein e.V. (PLÖ) | K34: 01.01.2021-31.12.2024
A35: 28 | B35: Schönkirchen | C35: Erg. u. Rz. altersgemischte Gruppe | D35: 5 | E35: 10 | G35: 5 | I35: Ev. Kindertagesstätte „Die Kirchenmäuse“ | J35: Ev.-Lutherischer Kirchenkreis Altholstein (PLÖ) | K35: 01.01.2021-31.12.2024
A36: 29 | B36: Schönkirchen | C36: Erg. u. Rz. kleine Kindergartengruppe (10) | E36: 10 | G36: 5 | I36: Ev. Kindertagesstätte „Die Kirchenmäuse“ | J36: Ev.-Lutherischer Kirchenkreis Altholstein (PLÖ) | K36: 01.01.2021-31.12.2024
A37: 30 | B37: Schönkirchen | C37: Kindergartengruppe | E37: 20 | G37: 30 | I37: Ev. Kindertagesstätte „Die Kirchenmäuse“ | J37: Ev.-Lutherischer Kirchenkreis Altholstein (PLÖ) | K37: 01.01.2021-31.12.2024
A38: 31 | B38: Schönkirchen | C38: Krippengruppe | D38: 10 | G38: 40 | I38: Ev. Kindertagesstätte „Die Kirchenmäuse“ | J38: Ev.-Lutherischer Kirchenkreis Altholstein (PLÖ) | K38: 01.01.2021-31.12.2024
A39: 32 | B39: Schönkirchen | C39: Kindergartengruppe | E39: 20 | G39: 40 | I39: Ev. Kindertagesstätte „Die Kirchenmäuse“ | J39: Ev.-Lutherischer Kirchenkreis Altholstein (PLÖ) | K39: 01.01.2021-31.12.2024
A40: 33 | B40: Schönkirchen | C40: Krippengruppe | D40: 10 | G40: 40 | I40: Ev. Kindertagesstätte „Die Kirchenmäuse“ | J40: Ev.-Lutherischer Kirchenkreis Altholstein (PLÖ) | K40: 01.01.2021-31.12.2024
A41: 34 | B41: Mönkeberg | C41: Kindergartengruppe | E41: 20 | G41: 35 | I41: Ev. Kindertagesstätte Regenbogenfische | J41: Ev.-Lutherischer Kirchenkreis Altholstein (PLÖ) | K41: 01.01.2021-31.12.2024
A42: 35 | B42: Mönkeberg | C42: Erg. u. Rz. Kindergartengruppe | E42: 20 | G42: 10 | I42: Ev. Kindertagesstätte Regenbogenfische | J42: Ev.-Lutherischer Kirchenkreis Altholstein (PLÖ) | K42: 01.01.2021-31.12.2024
A43: 36 | B43: Mönkeberg | C43: Erg. u. Rz. kleine Kindergartengruppe (10) | E43: 10 | G43: 10 | I43: Ev. Kindertagesstätte Regenbogenfische | J43: Ev.-Lutherischer Kirchenkreis Altholstein (PLÖ) | K43: 01.01.2021-31.12.2024
A44: 37 | B44: Mönkeberg | C44: Kindergartengruppe | E44: 20 | G44: 35 | I44: Ev. Kindertagesstätte Regenbogenfische | J44: Ev.-Lutherischer Kirchenkreis Altholstein (PLÖ) | K44: 01.01.2021-31.12.2024
A45: 38 | B45: Mönkeberg | C45: Krippengruppe | D45: 10 | G45: 45 | I45: Ev. Kindertagesstätte Regenbogenfische | J45: Ev.-Lutherischer Kirchenkreis Altholstein (PLÖ) | K45: 01.01.2021-31.12.2024
A46: 39 | B46: Heikendorf | C46: Erg. u. Rz. Kindergartengruppe | E46: 20 | G46: 5 | I46: Ev. Kindertagesstätte Upendo | J46: Ev.-Lutherischer Kirchenkreis Altholstein (PLÖ) | K46: 01.01.2021-31.12.2024
A47: 40 | B47: Heikendorf | C47: Erg. u. Rz. Kindergartengruppe | E47: 20 | G47: 5 | I47: Ev. Kindertagesstätte Upendo | J47: Ev.-Lutherischer Kirchenkreis Altholstein (PLÖ) | K47: 01.01.2021-31.12.2024
A48: 41 | B48: Heikendorf | C48: Erg. u. Rz.Kindergartengruppe | E48: 20 | G48: 5 | I48: Ev. Kindertagesstätte Upendo | J48: Ev.-Lutherischer Kirchenkreis Altholstein (PLÖ) | K48: 01.01.2021-31.12.2024
A49: 42 | B49: Heikendorf | C49: Erg. u. Rz. mittlere Kindergartengruppe (10) | E49: 15 | G49: 5 | I49: Ev. Kindertagesstätte Upendo | J49: Ev.-Lutherischer Kirchenkreis Altholstein (PLÖ) | K49: 01.01.2021-31.12.2024
A50: 43 | B50: Heikendorf | C50: Krippengruppe | D50: 10 | G50: 40 | I50: Ev. Kindertagesstätte Upendo | J50: Ev.-Lutherischer Kirchenkreis Altholstein (PLÖ) | K50: 01.01.2021-31.12.2024
A51: 44 | B51: Heikendorf | C51: integrative Kindergartengruppe | E51: 15 | G51: 30 | I51: Ev. Kindertagesstätte Upendo | J51: Ev.-Lutherischer Kirchenkreis Altholstein (PLÖ) | K51: 01.01.2021-31.12.2024
A52: 45 | B52: Heikendorf | C52: Kindergartengruppe | E52: 20 | G52: 30 | I52: Ev. Kindertagesstätte Upendo | J52: Ev.-Lutherischer Kirchenkreis Altholstein (PLÖ) | K52: 01.01.2021-31.12.2024
A53: 46 | B53: Heikendorf | C53: Kindergartengruppe | E53: 20 | G53: 30 | I53: Ev. Kindertagesstätte Upendo | J53: Ev.-Lutherischer Kirchenkreis Altholstein (PLÖ) | K53: 01.01.2021-31.12.2024
A54: 47 | B54: Heikendorf | C54: Erg. u. Rz. altersgemischte Gruppe | D54: 5 | E54: 10 | G54: 5 | I54: Fördekindergarten Heikendorf | J54: Gemeinde Heikendorf | K54: 01.01.2021-31.12.2024
A55: 48 | B55: Heikendorf | C55: Erg. u. Rz. altersgemischte Gruppe | D55: 5 | E55: 10 | G55: 7.5 | I55: Fördekindergarten Heikendorf | J55: Gemeinde Heikendorf | K55: 01.01.2021-31.12.2024
A56: 49 | B56: Heikendorf | C56: Erg. u. Rz. Krippengruppe | D56: 10 | G56: 5 | I56: Fördekindergarten Heikendorf | J56: Gemeinde Heikendorf | K56: 01.01.2021-31.12.2024
A57: 50 | B57: Heikendorf | C57: Erg. u. Rz. kleine Krippengruppe (5) | D57: 5 | G57: 2.5 | I57: Fördekindergarten Heikendorf | J57: Gemeinde Heikendorf | K57: 01.01.2021-31.12.2024
A58: 51 | B58: Heikendorf | C58: Erg. u. Rz. mittlere Kindergartengruppe (15) | E58: 15 | G58: 5 | I58: Fördekindergarten Heikendorf | J58: Gemeinde Heikendorf | K58: 01.01.2021-31.12.2024
A59: 52 | B59: Heikendorf | C59: Kindergartengruppe | E59: 20 | G59: 30 | I59: Fördekindergarten Heikendorf | J59: Gemeinde Heikendorf | K59: 01.01.2021-31.12.2024
A60: 53 | B60: Heikendorf | C60: altersgemischte Gruppe | D60: 5 | E60: 10 | G60: 30 | I60: Fördekindergarten Heikendorf | J60: Gemeinde Heikendorf | K60: 01.01.2021-31.12.2024
A61: 54 | B61: Heikendorf | C61: Krippengruppe | D61: 10 | G61: 35 | I61: Fördekindergarten Heikendorf | J61: Gemeinde Heikendorf | K61: 01.01.2021-31.12.2024
A62: 55 | B62: Heikendorf | C62: Krippengruppe | D62: 10 | G62: 35 | I62: Fördekindergarten Heikendorf | J62: Gemeinde Heikendorf | K62: 01.01.2021-31.12.2024
A63: 56 | B63: Mönkeberg | C63: Erg. u. Rz. Krippengruppe | D63: 10 | G63: 5 | I63: Gemeindekindergarten Mönkeberg "Die Eichhörnchen" | J63: Gemeinde Mönkeberg | K63: 01.01.2021-31.12.2024
A64: 57 | B64: Mönkeberg | C64: Erg. u. Rz. Krippengruppe | D64: 10 | G64: 10 | I64: Gemeindekindergarten Mönkeberg "Die Eichhörnchen" | J64: Gemeinde Mönkeberg | K64: 01.01.2021-31.12.2024
A65: 58 | B65: Mönkeberg | C65: Erg. u. Rz. altersgemischte Gruppe | D65: 5 | E65: 10 | G65: 5 | I65: Gemeindekindergarten Mönkeberg "Die Eichhörnchen" | J65: Gemeinde Mönkeberg | K65: 01.01.2021-31.12.2024
A66: 59 | B66: Mönkeberg | C66: Erg. u. Rz. altersgemischte Gruppe | D66: 5 | E66: 10 | G66: 10 | I66: Gemeindekindergarten Mönkeberg "Die Eichhörnchen" | J66: Gemeinde Mönkeberg | K66: 01.01.2021-31.12.2024
A67: 60 | B67: Mönkeberg | C67: Krippengruppe | D67: 10 | G67: 30 | I67: Gemeindekindergarten Mönkeberg "Die Eichhörnchen" | J67: Gemeinde Mönkeberg | K67: 01.01.2021-31.12.2024
A68: 61 | B68: Mönkeberg | C68: altersgemischte Gruppe | D68: 5 | E68: 10 | G68: 30 | I68: Gemeindekindergarten Mönkeberg "Die Eichhörnchen" | J68: Gemeinde Mönkeberg | K68: 01.01.2021-31.12.2024
A69: 62 | B69: Mönkeberg | C69: Natur-Kindergartengruppe | E69: 16 | G69: 30 | I69: Gemeindekindergarten Mönkeberg "Die Eichhörnchen" | J69: Gemeinde Mönkeberg | K69: 01.01.2021-31.12.2024
A70: 63 | B70: Schönkirchen | C70: altersgemischte Gruppe | D70: 5 | E70: 10 | G70: 35 | I70: Johanniter Kindertagesstätte Hörnwichtel | J70: Johanniter-Unfall-Hilfe e.V. (PLÖ) | K70: 01.01.2021-31.12.2024
A71: 64 | B71: Schönkirchen | C71: Kindergartengruppe | E71: 20 | G71: 35 | I71: Johanniter Kindertagesstätte Hörnwichtel | J71: Johanniter-Unfall-Hilfe e.V. (PLÖ) | K71: 01.01.2021-31.12.2024
A72: 65 | B72: Schönkirchen | C72: Erg. u. Rz. altersgemischte Gruppe | D72: 5 | E72: 10 | G72: 5 | I72: Johanniter Kindertagesstätte Hörnwichtel | J72: Johanniter-Unfall-Hilfe e.V. (PLÖ) | K72: 01.01.2021-31.12.2024
A73: 66 | B73: Schönkirchen | C73: Erg. u. Rz. Krippengruppe | D73: 10 | G73: 5 | I73: Johanniter Kindertagesstätte Hörnwichtel | J73: Johanniter-Unfall-Hilfe e.V. (PLÖ) | K73: 01.01.2021-31.12.2024
A74: 67 | B74: Schönkirchen | C74: Erg. u. Rz. altersgemischte Gruppe | D74: 5 | E74: 10 | G74: 5 | I74: Johanniter Kindertagesstätte Hörnwichtel | J74: Johanniter-Unfall-Hilfe e.V. (PLÖ) | K74: 01.01.2021-31.12.2024
A75: 68 | B75: Schönkirchen | C75: Krippengruppe | D75: 10 | G75: 35 | I75: Johanniter Kindertagesstätte Hörnwichtel | J75: Johanniter-Unfall-Hilfe e.V. (PLÖ) | K75: 01.01.2021-31.12.2024
A76: 69 | B76: Schönkirchen | C76: Krippengruppe | D76: 10 | G76: 35 | I76: Johanniter Kindertagesstätte Hörnwichtel | J76: Johanniter-Unfall-Hilfe e.V. (PLÖ) | K76: 01.01.2021-31.12.2024
A77: 70 | B77: Schönkirchen | C77: Erg. u. Rz. integrative Kindergartengruppe | E77: 15 | G77: 5 | I77: Kindertagesstätte "Kleine Wunder" Schönkirchen | J77: Gemeinde Schönkirchen | K77: 01.01.2021-31.12.2024
A78: 71 | B78: Schönkirchen | C78: Erg. u. Rz. integrative Kindergartengruppe | E78: 15 | G78: 10 | I78: Kindertagesstätte "Kleine Wunder" Schönkirchen | J78: Gemeinde Schönkirchen | K78: 01.01.2021-31.12.2024
A79: 72 | B79: Schönkirchen | C79: Erg. u. Rz. kleine Kindergartengruppe (10) | E79: 10 | G79: 5 | I79: Kindertagesstätte "Kleine Wunder" Schönkirchen | J79: Gemeinde Schönkirchen | K79: 01.01.2021-31.12.2024
A80: 73 | B80: Schönkirchen | C80: Erg. u. Rz. kleine Kindergartengruppe (10) | E80: 10 | G80: 5 | I80: Kindertagesstätte "Kleine Wunder" Schönkirchen | J80: Gemeinde Schönkirchen | K80: 01.01.2021-31.12.2024
A81: 74 | B81: Schönkirchen | C81: Erg. u. Rz. kleine Kindergartengruppe (10) | E81: 10 | G81: 5 | I81: Kindertagesstätte "Kleine Wunder" Schönkirchen | J81: Gemeinde Schönkirchen | K81: 01.01.2021-31.12.2024
A82: 75 | B82: Schönkirchen | C82: Erg. u. Rz. Kindergartengruppe | E82: 20 | G82: 10 | I82: Kindertagesstätte "Kleine Wunder" Schönkirchen | J82: Gemeinde Schönkirchen | K82: 01.01.2021-31.12.2024
A83: 76 | B83: Schönkirchen | C83: Erg. u. Rz. mittlere Kindergartengruppe | E83: 15 | G83: 10 | I83: Kindertagesstätte "Kleine Wunder" Schönkirchen | J83: Gemeinde Schönkirchen | K83: 01.01.2021-31.12.2024
A84: 77 | B84: Schönkirchen | C84: Erg. u. Rz. kleine Kindergartengruppe | E84: 10 | G84: 10 | I84: Kindertagesstätte "Kleine Wunder" Schönkirchen | J84: Gemeinde Schönkirchen | K84: 01.01.2021-31.12.2024
A85: 78 | B85: Schönkirchen | C85: Erg. u. Rz. Krippengruppe | D85: 10 | G85: 5 | I85: Kindertagesstätte "Kleine Wunder" Schönkirchen | J85: Gemeinde Schönkirchen | K85: 01.01.2021-31.12.2024
A86: 79 | B86: Schönkirchen | C86: Erg. u. Rz. kleine Krippengruppe (5) | D86: 5 | G86: 5 | I86: Kindertagesstätte "Kleine Wunder" Schönkirchen | J86: Gemeinde Schönkirchen | K86: 01.01.2021-31.12.2024
A87: 80 | B87: Schönkirchen | C87: Kindergartengruppe | E87: 20 | G87: 25 | I87: Kindertagesstätte "Kleine Wunder" Schönkirchen | J87: Gemeinde Schönkirchen | K87: 01.01.2021-31.12.2024
A88: 81 | B88: Schönkirchen | C88: Krippengruppe | D88: 10 | G88: 35 | I88: Kindertagesstätte "Kleine Wunder" Schönkirchen | J88: Gemeinde Schönkirchen | K88: 01.01.2021-31.12.2024
A89: 82 | B89: Schönkirchen | C89: Kindergartengruppe | E89: 20 | G89: 25 | I89: Kindertagesstätte "Kleine Wunder" Schönkirchen | J89: Gemeinde Schönkirchen | K89: 01.01.2021-31.12.2024
A90: 83 | B90: Schönkirchen | C90: Kindergartengruppe | E90: 20 | G90: 25 | I90: Kindertagesstätte "Kleine Wunder" Schönkirchen | J90: Gemeinde Schönkirchen | K90: 01.01.2021-31.12.2024
A91: 84 | B91: Schönkirchen | C91: integrative Kindergartengruppe | E91: 15 | G91: 25 | I91: Kindertagesstätte "Kleine Wunder" Schönkirchen | J91: Gemeinde Schönkirchen | K91: 01.01.2021-31.12.2024
A92: 85 | B92: Schönkirchen | C92: Krippengruppe | D92: 10 | G92: 35 | I92: Kindertagesstätte "Kleine Wunder" Schönkirchen | J92: Gemeinde Schönkirchen | K92: 01.01.2021-31.12.2024
A93: 86 | B93: Heikendorf | C93: Erg. u. Rz. kleine Kindergartengruppe (10) | E93: 10 | G93: 7.5 | I93: Kindertagesstätte "Vier Jahreszeiten" Heikendorf | J93: Gemeinde Heikendorf | K93: 01.01.2021-31.12.2024
A94: 87 | B94: Heikendorf | C94: Erg. u. Rz. kleine Kindergartengruppe (10) | E94: 10 | G94: 7.5 | I94: Kindertagesstätte "Vier Jahreszeiten" Heikendorf | J94: Gemeinde Heikendorf | K94: 01.01.2021-31.12.2024
A95: 88 | B95: Heikendorf | C95: Erg. u. Rz. mittlere Kindergartengruppe (15) | E95: 15 | G95: 5 | I95: Kindertagesstätte "Vier Jahreszeiten" Heikendorf | J95: Gemeinde Heikendorf | K95: 01.01.2021-31.12.2024
A96: 89 | B96: Heikendorf | C96: Erg. u. Rz. kleine Krippengruppe (5) | D96: 5 | G96: 5 | I96: Kindertagesstätte "Vier Jahreszeiten" Heikendorf | J96: Gemeinde Heikendorf | K96: 01.01.2021-31.12.2024
A97: 90 | B97: Heikendorf | C97: Erg. u. Rz. kleine Krippengruppe (5) | D97: 5 | G97: 7.5 | I97: Kindertagesstätte "Vier Jahreszeiten" Heikendorf | J97: Gemeinde Heikendorf | K97: 01.01.2021-31.12.2024
A98: 91 | B98: Heikendorf | C98: Kindergartengruppe | E98: 20 | G98: 30 | I98: Kindertagesstätte "Vier Jahreszeiten" Heikendorf | J98: Gemeinde Heikendorf | K98: 01.01.2021-31.12.2024
A99: 92 | B99: Heikendorf | C99: Krippengruppe | D99: 10 | G99: 30 | I99: Kindertagesstätte "Vier Jahreszeiten" Heikendorf | J99: Gemeinde Heikendorf | K99: 01.01.2021-31.12.2024
A100: 93 | B100: Heikendorf | C100: Kindergartengruppe | E100: 20 | G100: 30 | I100: Kindertagesstätte "Vier Jahreszeiten" Heikendorf | J100: Gemeinde Heikendorf | K100: 01.01.2021-31.12.2024
A101: 94 | B101: Heikendorf | C101: Erg. u. Rz. altersgemischte Gruppe | D101: 5 | E101: 10 | G101: 10 | I101: Probsteier Kinderhaus | J101: Probsteier Kinderhaus e.V. | K101: 01.01.2021-31.12.2024
A102: 95 | B102: Heikendorf | C102: Erg. u. Rz. kleine Kindergartengruppe (10) | E102: 10 | G102: 5 | I102: Probsteier Kinderhaus | J102: Probsteier Kinderhaus e.V. | K102: 01.01.2021-31.12.2024
A103: 96 | B103: Heikendorf | C103: Erg. u. Rz. Kindergartengruppe | E103: 20 | G103: 10 | I103: Probsteier Kinderhaus | J103: Probsteier Kinderhaus e.V. | K103: 01.01.2021-31.12.2024
A104: 97 | B104: Heikendorf | C104: Erg. u. Rz. Krippengruppe | D104: 10 | G104: 5 | I104: Probsteier Kinderhaus | J104: Probsteier Kinderhaus e.V. | K104: 01.01.2021-31.12.2024
A105: 98 | B105: Heikendorf | C105: Erg. u. Rz. Krippengruppe | D105: 10 | G105: 5 | I105: Probsteier Kinderhaus | J105: Probsteier Kinderhaus e.V. | K105: 01.01.2021-31.12.2024
A106: 99 | B106: Heikendorf | C106: Erg. u. Rz. altersgemischte Gruppe | D106: 5 | E106: 10 | G106: 5 | I106: Probsteier Kinderhaus | J106: Probsteier Kinderhaus e.V. | K106: 01.01.2021-31.12.2024
A107: 100 | B107: Heikendorf | C107: Kindergartengruppe | E107: 20 | G107: 25 | I107: Probsteier Kinderhaus | J107: Probsteier Kinderhaus e.V. | K107: 01.01.2021-31.12.2024
A108: 101 | B108: Heikendorf | C108: altersgemischte Gruppe | D108: 5 | E108: 10 | G108: 25 | I108: Probsteier Kinderhaus | J108: Probsteier Kinderhaus e.V. | K108: 01.01.2021-31.12.2024
A109: 102 | B109: Heikendorf | C109: Krippengruppe | D109: 10 | G109: 35 | I109: Probsteier Kinderhaus | J109: Probsteier Kinderhaus e.V. | K109: 01.01.2021-31.12.2024
A110: 103 | B110: Heikendorf | C110: Natur-Kindergartengruppe | E110: 16 | G110: 30 | I110: Wald- und Naturkindergarten Heikendorf | J110: Wald- und Naturkindergarten Heikendorf e.V. | K110: 01.01.2021-31.12.2024
A111: 104 | B111: Heikendorf | C111: Erg. u. Rz. Natur-Kindergartengruppe | E111: 16 | G111: 2.5 | I111: Wald- und Naturkindergarten Heikendorf | J111: Wald- und Naturkindergarten Heikendorf e.V. | K111: 01.01.2021-31.12.2024
B112: Heikendorf | C112: Erg. u. Rz. Natur-Kindergartengruppe | E112: 16 | G112: 5 | I112: Wald- und Naturkindergarten Heikendorf | J112: Wald- und Naturkindergarten Heikendorf e.V. | K112: 01.01.2021-31.12.2024
B113: Heikendorf | C113: Natur-Kindergartengruppe | E113: 16 | G113: 30 | I113: Wald- und Naturkindergarten Heikendorf | J113: Wald- und Naturkindergarten Heikendorf e.V. | K113: 01.01.2021-31.12.2024
A118: Plätze U3 | D118: =SUMIF(C6:C117, "Krippengruppe",D6:D117) + SUMIF(C6:C117, "altersgemischte Gruppe",D6:D117) + SUMIF(C6:C117, "kleine*",D6:D117) -> 225
A119: Plätze Ü3 | E119: =SUMIF(C6:C117, "Kindergartengruppe", E6:E117) + SUMIF(C6:C117, "altersgemischte Gruppe",E6:E117) + SUMIF(C6:C117, "Natur-Kindergartengruppe", E6:E117) + SUMIF(C6:C117, "mittlere Kindergartengruppe*", E6:E117) + SUMIF(C6:C117, "integrative Kindergartengruppe", E6:E117) + SUMIF(C6:C117, "kleine Kinderg*", E6:E117) -> 624 | F119: =SUMIF(C41:C117, "Kindergartengruppe", F41:F117) + SUMIF(C41:C117, "mittlere Kindergartengruppe (15)", F41:F117) + SUMIF(C41:C117, "kleine Kindergartengruppe (10)", F41:F117) -> 0
A120: Plätze gesamt | F120: =SUM(D118:F119) -> 849
E121: Kindertagespflege
A122: Plätze U3 | D122: 48
A123: Plätze Ü3 | E123: 0 | F123: 0
A124: Plätze gesamt | F124: =SUM(D122:F123) -> 48
E125: Plätze gesamt
A126: Plätze U3 | D126: =D122+D118 -> 273
A127: Plätze Ü3 | E127: =E123+E119 -> 624 | F127: =F123+F119 -> 0
A128: Plätze gesamt | F128: =SUM(D126:F127) -> 897

Sheet Planungsraum 16
C1: KiTa-Bedarfsplan | G1: Kreis Plön | H1: Planungsraum 16 | I1: Amt Selent-Schlesen
E3: Abschnitt 1 | J3: Abschnitt 2
A4: Nr. | B4: Ortsteil | C4: Gruppenart | D4: Gruppengröße | G4: Öffnungszeiten/Woche | H4: Sonstige Festlegungen | I4: Kitaname | J4: Träger | K4: Förderzeitraum
D5: U3 | E5: Ü3 | F5: Hort
A6: 1 | B6: Fargau-Pratjau | C6: Natur-Kindergartengruppe | E6: 16 | G6: 25 | I6: Naturkindergarten Münstertal | J6: NaturNah Münstertal gUG | K6: 01.01.2021-31.12.2024
A7: 2 | B7: Fargau-Pratjau | C7: Erg. u. Rz. Natur-Kindergartengruppe | E7: 16 | G7: 5 | I7: Naturkindergarten Münstertal | J7: NaturNah Münstertal gUG | K7: 01.01.2021-31.12.2024
A8: 3 | B8: Dobersdorf | C8: Erg. u. Rz. Mittlere Kindergartengruppe | E8: 15 | G8: 10 | I8: AWO Kita Dobersdorf TöDoLi | J8: AWO Landesverband Schleswig-Holstein e.V. (PLÖ) | K8: 01.01.2021-31.12.2024
A9: 4 | B9: Dobersdorf | C9: Erg. u. Rz. Kleine Krippengruppe | D9: 5 | I9: AWO Kita Dobersdorf TöDoLi | J9: AWO Landesverband Schleswig-Holstein e.V. (PLÖ) | K9: 01.01.2021-31.12.2024
A10: 5 | B10: Dobersdorf | C10: Krippengruppe | D10: 10 | G10: 35 | I10: AWO Kita Dobersdorf TöDoLi | J10: AWO Landesverband Schleswig-Holstein e.V. (PLÖ) | K10: 01.01.2021-31.12.2024
A11: 6 | B11: Dobersdorf | C11: Kindergartengruppe | E11: 20 | G11: 35 | I11: AWO Kita Dobersdorf TöDoLi | J11: AWO Landesverband Schleswig-Holstein e.V. (PLÖ) | K11: 01.01.2021-31.12.2024
A12: 7 | B12: Dobersdorf | C12: Kindergartengruppe | E12: 20 | G12: 35 | I12: AWO Kita Dobersdorf TöDoLi | J12: AWO Landesverband Schleswig-Holstein e.V. (PLÖ) | K12: 01.01.2021-31.12.2024
A13: 8 | B13: Mucheln | C13: Natur-Kindergartengruppe | E13: 18 | G13: 25 | I13: Die Feldmäuse Hasselburg | J13: Verein der Feldmäuse Hasselburg e.V. | K13: 01.01.2021-31.12.2024
A14: 9 | B14: Mucheln | C14: Natur-Kindergartengruppe | E14: 18 | G14: 25 | I14: Die Feldmäuse Hasselburg | J14: Verein der Feldmäuse Hasselburg e.V. | K14: 01.01.2021-31.12.2024
A15: 10 | B15: Selent | C15: Kindergartengruppe | E15: 20 | G15: 25 | I15: Johanniter Kindertagesstätte Lütte Hütte Selent | J15: Johanniter-Unfall-Hilfe e.V. (PLÖ) | K15: 01.01.2021-31.12.2024
A16: 11 | B16: Selent | C16: Erg. u. Rz. altersgemischte Gruppe | D16: 5 | E16: 10 | G16: 5 | I16: Johanniter Kindertagesstätte Lütte Hütte Selent | J16: Johanniter-Unfall-Hilfe e.V. (PLÖ) | K16: 01.01.2021-31.12.2024
A17: 12 | B17: Selent | C17: Erg. u. Rz. Kindergartengruppe | E17: 20 | G17: 15 | I17: Johanniter Kindertagesstätte Lütte Hütte Selent | J17: Johanniter-Unfall-Hilfe e.V. (PLÖ) | K17: 01.01.2021-31.12.2024
A18: 13 | B18: Selent | C18: Erg. u. Rz. kleine Kindergartengruppe (10) | E18: 10 | G18: 15 | I18: Johanniter Kindertagesstätte Lütte Hütte Selent | J18: Johanniter-Unfall-Hilfe e.V. (PLÖ) | K18: 01.01.2021-31.12.2024
A19: 14 | B19: Selent | C19: Erg. u. Rz. Krippengruppe | D19: 10 | G19: 15 | I19: Johanniter Kindertagesstätte Lütte Hütte Selent | J19: Johanniter-Unfall-Hilfe e.V. (PLÖ) | K19: 01.01.2021-31.12.2024
A20: 15 | B20: Selent | C20: Krippengruppe | D20: 10 | G20: 25 | I20: Johanniter Kindertagesstätte Lütte Hütte Selent | J20: Johanniter-Unfall-Hilfe e.V. (PLÖ) | K20: 01.01.2021-31.12.2024
A21: 16 | B21: Selent | C21: Kindergartengruppe | E21: 20 | G21: 25 | I21: Johanniter Kindertagesstätte Lütte Hütte Selent | J21: Johanniter-Unfall-Hilfe e.V. (PLÖ) | K21: 01.01.2021-31.12.2024
A22: 17 | B22: Selent | C22: Natur-Kindergartengruppe | E22: 16 | G22: 25 | I22: Johanniter Kindertagesstätte Lütte Hütte Selent | J22: Johanniter-Unfall-Hilfe e.V. (PLÖ) | K22: 01.01.2021-31.12.2024
A23: 18 | B23: Selent | C23: Krippengruppe | D23: 10 | G23: 25 | I23: Johanniter Kindertagesstätte Lütte Hütte Selent | J23: Johanniter-Unfall-Hilfe e.V. (PLÖ) | K23: 01.01.2021-31.12.2024
A24: 19 | B24: Selent | C24: Krippengruppe | D24: 10 | G24: 25 | I24: Johanniter Kindertagesstätte Lütte Hütte Selent | J24: Johanniter-Unfall-Hilfe e.V. (PLÖ)
A25: 20 | B25: Selent | C25: Kindergartengruppe | E25: 20 | G25: 25 | I25: Johanniter Kindertagesstätte Lütte Hütte Selent | J25: Johanniter-Unfall-Hilfe e.V. (PLÖ)
A26: 21 | B26: Martensrade | C26: Natur-Kindergartengruppe | E26: 16 | G26: 27.5 | I26: Johanniter Kindertagesstätte Sonnenblume | J26: Johanniter-Unfall-Hilfe e.V. (PLÖ) | K26: 01.01.2021-31.12.2024
A27: 22 | B27: Martensrade | C27: Krippengruppe | D27: 10 | G27: 30 | I27: Johanniter Kindertagesstätte Sonnenblume | J27: Johanniter-Unfall-Hilfe e.V. (PLÖ) | K27: 01.01.2021-31.12.2024
A28: 23 | B28: Martensrade | C28: altersgemischte Gruppe | D28: 5 | E28: 10 | G28: 30 | I28: Johanniter Kindertagesstätte Sonnenblume | J28: Johanniter-Unfall-Hilfe e.V. (PLÖ) | K28: 01.01.2021-31.12.2024
A29: 24 | B29: Martensrade | C29: Kindergartengruppe | E29: 20 | G29: 30 | I29: Johanniter Kindertagesstätte Sonnenblume | J29: Johanniter-Unfall-Hilfe e.V. (PLÖ) | K29: 01.01.2021-31.12.2024
A30: 25 | B30: Martensrade | C30: Erg. u. Rz. altersgemischte Gruppe | D30: 5 | E30: 10 | G30: 5 | I30: Johanniter Kindertagesstätte Sonnenblume | J30: Johanniter-Unfall-Hilfe e.V. (PLÖ) | K30: 01.01.2021-31.12.2024
A31: 26 | B31: Martensrade | C31: Erg. u. Rz. altersgemischte Gruppe | D31: 5 | E31: 10 | G31: 5 | I31: Johanniter Kindertagesstätte Sonnenblume | J31: Johanniter-Unfall-Hilfe e.V. (PLÖ) | K31: 01.01.2021-31.12.2024
A32: 27 | B32: Martensrade | C32: Erg. u. Rz. kleine altersgemischte Gruppe | D32: 3 | E32: 4 | G32: 2.5 | I32: Johanniter Kindertagesstätte Sonnenblume | J32: Johanniter-Unfall-Hilfe e.V. (PLÖ) | K32: 01.01.2021-31.12.2024
A33: 28 | B33: Martensrade | C33: Erg. u. Rz. altersgemischte Gruppe | D33: 5 | E33: 10 | G33: 5 | I33: Johanniter Kindertagesstätte Sonnenblume | J33: Johanniter-Unfall-Hilfe e.V. (PLÖ) | K33: 01.01.2021-31.12.2024
A34: 29
A35: 30
A36: 31
A37: 32
A38: 33
A39: 34
A40: 35
A41: Plätze U3 | D41: =SUMIF(C6:C56, "Krippengruppe",D6:D56) + SUMIF(C6:C56, "altersgemischte Gruppe",D6:D56) + SUMIF(C6:C56, "kleine*",D6:D56) -> 55
A42: Plätze Ü3 | E42: =SUMIF(C6:C40, "Kindergartengruppe", E6:E40) + SUMIF(C6:C40, "altersgemischte Gruppe",E6:E40) + SUMIF(C6:C40, "Natur-Kindergartengruppe", E6:E40) + SUMIF(C6:C40, "mittlere Kindergartengruppe*", E6:E40) + SUMIF(C6:C40, "integrative Kindergartengruppe", E6:E40) + SUMIF(C6:C40, "kleine Kinderg*", E6:E40) -> 214 | F42: =SUMIF(C39:C56, "Kindergartengruppe", F39:F56) + SUMIF(C39:C56, "mittlere Kindergartengruppe (15)", F39:F56) + SUMIF(C39:C56, "kleine Kindergartengruppe (10)", F39:F56) -> 0
A43: Plätze gesamt | F43: =SUM(D41:F42) -> 269
E44: Kindertagespflege
A45: Plätze U3 | D45: 15
A46: Plätze Ü3 | E46: 0 | F46: 0
A47: Plätze gesamt | F47: =SUM(D45:F46) -> 15
E48: Plätze gesamt
A49: Plätze U3 | D49: =D45+D41 -> 70
A50: Plätze Ü3 | E50: =E46+E42 -> 214 | F50: =F46+F42 -> 0
A51: Plätze gesamt | F51: =SUM(D49:F50) -> 284

Sheet Planungsraum 17
C1: KiTa-Bedarfsplan | G1: Kreis Plön | H1: Planungsraum 17 | I1: Bönebüttel
E3: Abschnitt 1 | J3: Abschnitt 2
A4: Nr. | B4: Ortsteil | C4: Gruppenart | D4: Gruppengröße | G4: Öffnungszeiten/Woche | H4: Sonstige Festlegungen | I4: Kitaname | J4: Träger | K4: Förderzeitraum
D5: U3 | E5: Ü3 | F5: Hort
A6: 1 | B6: Bönebüttel | C6: Krippengruppe | D6: 10 | G6: 37.5 | I6: Bönebütteler Kinnerstuuv | J6: Waldorfkindergarten Neumünster-Einfeld e.V. | K6: 01.01.2021-31.12.2024
A7: 2 | B7: Bönebüttel | C7: Kindergartengruppe | E7: 20 | G7: 25 | I7: Ev.-Luth. Kita Bönebüttel | J7: Ev.-Luth. Kirchenkreis Altholstein | K7: 01.01.2021-31.12.2024
A8: 3 | B8: Bönebüttel | C8: Erg. u. Rz. Kindergartengruppe | E8: 20 | G8: 15 | I8: Ev.-Luth. Kita Bönebüttel | J8: Ev.-Luth. Kirchenkreis Altholstein | K8: 01.01.2021-31.12.2024
A9: 4 | B9: Bönebüttel | C9: Erg. u. Rz. Krippengruppe | D9: 10 | G9: 15 | I9: Ev.-Luth. Kita Bönebüttel | J9: Ev.-Luth. Kirchenkreis Altholstein | K9: 01.01.2021-31.12.2024
A10: 5 | B10: Bönebüttel | C10: Erg. u. Rz. altersgemischte Gruppe | D10: 5 | E10: 10 | G10: 5 | I10: Ev.-Luth. Kita Bönebüttel | J10: Ev.-Luth. Kirchenkreis Altholstein | K10: 01.01.2021-31.12.2024
A11: 6 | B11: Bönebüttel | C11: Erg. u. Rz. altersgemischte Gruppe | D11: 5 | E11: 10 | G11: 15 | I11: Ev.-Luth. Kita Bönebüttel | J11: Ev.-Luth. Kirchenkreis Altholstein | K11: 01.01.2021-31.12.2024
A12: 7 | B12: Bönebüttel | C12: altersgemischte Gruppe | D12: 5 | E12: 15 | G12: 25 | I12: Ev.-Luth. Kita Bönebüttel | J12: Ev.-Luth. Kirchenkreis Altholstein | K12: 01.01.2021-31.12.2024
A13: 8 | B13: Bönebüttel | C13: Krippengruppe | D13: 10 | G13: 25 | I13: Ev.-Luth. Kita Bönebüttel | J13: Ev.-Luth. Kirchenkreis Altholstein | K13: 01.01.2021-31.12.2024
A14: 9 | B14: Bönebüttel | C14: altersgemischte Gruppe | D14: 5 | E14: 10 | G14: 25 | I14: Ev.-Luth. Kita Bönebüttel | J14: Ev.-Luth. Kirchenkreis Altholstein | K14: 01.01.2021-31.12.2024
A15: 10 | B15: Bönebüttel | C15: Kindergartengruppe | E15: 20 | G15: 25 | I15: Ev.-Luth. Kita Bönebüttel | J15: Ev.-Luth. Kirchenkreis Altholstein | K15: 01.01.2021-31.12.2024
A16: 11
A17: 12
A18: 13
A19: 14
A20: 15
A21: 16
A22: 17
A23: 18
A24: 19
A25: 20
A26: Plätze U3 | D26: =SUMIF(C6:C41, "Krippengruppe",D6:D41) + SUMIF(C6:C41, "altersgemischte Gruppe",D6:D41) + SUMIF(C6:C41, "kleine*",D6:D41) -> 30
A27: Plätze Ü3 | E27: =SUMIF(C6:C25, "Kindergartengruppe", E6:E25) + SUMIF(C6:C25, "altersgemischte Gruppe",E6:E25) + SUMIF(C6:C25, "Natur-Kindergartengruppe", E6:E25) + SUMIF(C6:C25, "mittlere Kindergartengruppe*", E6:E25) + SUMIF(C6:C25, "integrative Kindergartengruppe", E6:E25) + SUMIF(C6:C25, "kleine Kinderg*", E6:E25) -> 65 | F27: =SUMIF(C26:C41, "Kindergartengruppe", F26:F41) + SUMIF(C26:C41, "mittlere Kindergartengruppe (15)", F26:F41) + SUMIF(C26:C41, "kleine Kindergartengruppe (10)", F26:F41) -> 0
A28: Plätze gesamt | F28: =SUM(D26:F27) -> 95
E29: Kindertagespflege
A30: Plätze U3 | D30: 5
A31: Plätze Ü3 | E31: 0 | F31: 0
A32: Plätze gesamt | F32: =SUM(D30:F31) -> 5
E33: Plätze gesamt
A34: Plätze U3 | D34: =D30+D26 -> 35
A35: Plätze Ü3 | E35: =E31+E27 -> 65 | F35: =F31+F27 -> 0
A36: Plätze gesamt | F36: =SUM(D34:F35) -> 100

Sheet Planungsraum 18
C1: KiTa-Bedarfsplan | G1: Kreis Plön | H1: Planungsraum 18 | I1: Ascheberg
E3: Abschnitt 1 | J3: Abschnitt 2
A4: Nr. | B4: Ortsteil | C4: Gruppenart | D4: Gruppengröße | G4: Öffnungszeiten/Woche | H4: Sonstige Festlegungen | I4: Kitaname | J4: Träger | K4: Förderzeitraum
D5: U3 | E5: Ü3 | F5: Hort
A6: 1 | B6: Ascheberg | C6: Erg. u. Rz. kleine Krippengruppe (5) | D6: 5 | G6: 2.5 | I6: Kita Am Mühlenholz | J6: Gemeinde Ascheberg, c/o. Stadt Quickborn | K6: 01.01.2021-31.12.2024
A7: 2 | B7: Ascheberg | C7: Erg. u. Rz. mittlere Kindergartengruppe (15) | E7: 15 | G7: 5 | I7: Kita Am Mühlenholz | J7: Gemeinde Ascheberg, c/o. Stadt Quickborn | K7: 01.01.2021-31.12.2024
A8: 3 | B8: Ascheberg | C8: Erg. u. Rz. altersgemischte Gruppe | D8: 5 | E8: 10 | G8: 5 | I8: Kita Am Mühlenholz | J8: Gemeinde Ascheberg, c/o. Stadt Quickborn | K8: 01.01.2021-31.12.2024
A9: 4 | B9: Ascheberg | C9: mittlere Kindergartengruppe (15) | E9: 15 | G9: 30 | I9: Kita Am Mühlenholz | J9: Gemeinde Ascheberg, c/o. Stadt Quickborn | K9: 01.01.2021-31.12.2024
A10: 5 | B10: Ascheberg | C10: Kindergartengruppe | E10: 20 | G10: 30 | I10: Kita Am Mühlenholz | J10: Gemeinde Ascheberg, c/o. Stadt Quickborn | K10: 01.01.2021-31.12.2024
A11: 6 | B11: Ascheberg | C11: Krippengruppe | D11: 10 | G11: 30 | I11: Kita Am Mühlenholz | J11: Gemeinde Ascheberg, c/o. Stadt Quickborn | K11: 01.01.2021-31.12.2024
A12: 7 | B12: Ascheberg | C12: Kindergartengruppe | E12: 20 | G12: 30 | I12: Kita Am Mühlenholz | J12: Gemeinde Ascheberg, c/o. Stadt Quickborn | K12: 01.01.2021-31.12.2024
A13: 8 | B13: Ascheberg | C13: mittlere Kindergartengruppe (15) | E13: 15 | G13: 40 | I13: Kita Am Mühlenholz | J13: Gemeinde Ascheberg, c/o. Stadt Quickborn | K13: 01.01.2021-31.12.2024
A14: 9 | B14: Ascheberg | C14: Kindergartengruppe | E14: 20 | G14: 30 | I14: Kita Am Mühlenholz | J14: Gemeinde Ascheberg, c/o. Stadt Quickborn | K14: 01.01.2021-31.12.2024
A15: 10 | B15: Ascheberg | C15: Erg. u. Rz. altersgemischte Gruppe | D15: 5 | E15: 10 | G15: 5 | I15: Kita Am Mühlenholz | J15: Gemeinde Ascheberg, c/o. Stadt Quickborn | K15: 01.01.2021-31.12.2024
A16: 11 | B16: Ascheberg | C16: Erg. u. Rz. altersgemischte Gruppe | D16: 5 | E16: 10 | G16: 10 | I16: Kita Am Mühlenholz | J16: Gemeinde Ascheberg, c/o. Stadt Quickborn | K16: 01.01.2021-31.12.2024
A17: 12 | B17: Ascheberg | C17: kleine Kindergartengruppe | E17: 10 | G17: 30 | J17: AWO Landesverband Schleswig-Holstein e.V. (PLÖ)
A18: 13 | B18: Ascheberg | C18: Kindergartengruppe | E18: 20 | G18: 30 | J18: AWO Landesverband Schleswig-Holstein e.V. (PLÖ)
A19: 14 | B19: Ascheberg | C19: altersgemischte Gruppe | D19: 5 | E19: 10 | G19: 30 | J19: AWO Landesverband Schleswig-Holstein e.V. (PLÖ)
A20: 15 | B20: Ascheberg | C20: Krippengruppe | D20: 10 | G20: 30 | J20: AWO Landesverband Schleswig-Holstein e.V. (PLÖ)
A21: 16 | B21: Ascheberg | C21: Krippengruppe | D21: 10 | G21: 30 | J21: AWO Landesverband Schleswig-Holstein e.V. (PLÖ)
A22: 17 | B22: Ascheberg | C22: Krippengruppe | D22: 10 | G22: 30 | J22: AWO Landesverband Schleswig-Holstein e.V. (PLÖ)
A23: 18 | B23: Ascheberg | C23: Erg. u. Rz. altersgemischte Gruppe | D23: 5 | E23: 10 | G23: 10 | H23: Nachmittagsangebot bis 16:00 Uhr | J23: AWO Landesverband Schleswig-Holstein e.V. (PLÖ)
A24: 19
A25: 20
A26: 21
A27: Plätze U3 | D27: =SUMIF(C6:C42, "Krippengruppe*",D6:D42) + SUMIF(C6:C42, "altersgemischte Gruppe",D6:D42) + SUMIF(C6:C42, "kleine*",D6:D42) -> 45
A28: Plätze Ü3 | E28: =SUMIF(C6:C26, "Kindergartengruppe", E6:E26) + SUMIF(C6:C26, "altersgemischte Gruppe",E6:E26) + SUMIF(C6:C26, "Natur-Kindergartengruppe", E6:E26) + SUMIF(C6:C26, "mittlere Kindergartengruppe*", E6:E26) + SUMIF(C6:C26, "integrative Kindergartengruppe", E6:E26) + SUMIF(C6:C26, "kleine Kinderg*", E6:E26) -> 130 | F28: =SUMIF(C27:C42, "Kindergartengruppe", F27:F42) + SUMIF(C27:C42, "mittlere Kindergartengruppe (15)", F27:F42) + SUMIF(C27:C42, "kleine Kindergartengruppe (10)", F27:F42) -> 0
A29: Plätze gesamt | F29: =SUM(D27:F28) -> 175
E30: Kindertagespflege
A31: Plätze U3 | D31: 0
A32: Plätze Ü3 | E32: 0 | F32: 0
A33: Plätze gesamt | F33: =SUM(D31:F32) -> 0
E34: Plätze gesamt
A35: Plätze U3 | D35: =D31+D27 -> 45
A36: Plätze Ü3 | E36: =E32+E28 -> 130 | F36: =F32+F28 -> 0
A37: Plätze gesamt | F37: =SUM(D35:F36) -> 175

Sheet Planungsraum 19
C1: KiTa-Bedarfsplan | G1: Kreis Plön | H1: Planungsraum 19 | I1: Bösdorf
E3: Abschnitt 1 | J3: Abschnitt 2
A4: Nr. | B4: Ortsteil | C4: Gruppenart | D4: Gruppengröße | G4: Öffnungszeiten/Woche | H4: Sonstige Festlegungen | I4: Kitaname | J4: Träger | K4: Förderzeitraum
D5: U3 | E5: Ü3 | F5: Hort
A6: 1 | B6: Bösdorf | C6: altersgemischte Gruppe | D6: 5 | E6: 10 | G6: 30 | I6: Ev.-Luth. Kindergarten Bösdorf | J6: Ev.-Luth. Kirchengemeinde Plön | K6: 01.01.2021-31.12.2024
A7: 2 | B7: Bösdorf | C7: altersgemischte Gruppe | D7: 5 | E7: 10 | G7: 30 | I7: Ev.-Luth. Kindergarten Bösdorf | J7: Ev.-Luth. Kirchengemeinde Plön | K7: 01.01.2021-31.12.2024
A8: 3 | B8: Bösdorf
A9: 4 | B9: Bösdorf | C9: Erg. u. Rz. altersgemischte Gruppe | D9: 3 | E9: 4 | G9: 10 | I9: Ev.-Luth. Kindergarten Bösdorf | J9: Ev.-Luth. Kirchengemeinde Plön | K9: 01.01.2021-31.12.2024
A10: 5
A11: 6
A12: 7
A13: 8
A14: 9
A15: 10
A16: 11
A17: Plätze U3 | D17: =SUMIF(C6:C32, "Krippengruppe*",D6:D32) + SUMIF(C6:C32, "altersgemischte Gruppe",D6:D32) + SUMIF(C6:C32, "kleine*",D6:D32) -> 10
A18: Plätze Ü3 | E18: =SUMIF(C6:C16, "Kindergartengruppe", E6:E16) + SUMIF(C6:C16, "altersgemischte Gruppe",E6:E16) + SUMIF(C6:C16, "Natur-Kindergartengruppe", E6:E16) + SUMIF(C6:C16, "mittlere Kindergartengruppe*", E6:E16) + SUMIF(C6:C16, "integrative Kindergartengruppe", E6:E16) + SUMIF(C6:C16, "kleine Kinderg*", E6:E16) -> 20 | F18: =SUMIF(C17:C32, "Kindergartengruppe", F17:F32) + SUMIF(C17:C32, "mittlere Kindergartengruppe (15)", F17:F32) + SUMIF(C17:C32, "kleine Kindergartengruppe (10)", F17:F32) -> 0
A19: Plätze gesamt | F19: =SUM(D17:F18) -> 30
E20: Kindertagespflege
A21: Plätze U3 | D21: 0
A22: Plätze Ü3 | E22: 0 | F22: 0
A23: Plätze gesamt | F23: =SUM(D21:F22) -> 0
E24: Plätze gesamt
A25: Plätze U3 | D25: =SUM(D21+D17) -> 10
A26: Plätze Ü3 | E26: =E22+E18 -> 20 | F26: =F22+F18 -> 0
A27: Plätze gesamt | F27: =SUM(D25:F26) -> 30
